Service Area,Service Division,Expense Type,Expense Code,Detailed Expense Type,Payment Date,Transaction Number,Amount Exc Vat,Supplier Name,
Children and Adult Services,Childrens Services,Supplies and Services,364358,Grants to Voluntary Organisations,01-May-2014,2740281,515.00,WESTERN UNION BUSINESS SOLUTIONS.,
Neighbourhood Services,Technical Services,Supplies and Services,304221,Equipment and Materials,01-May-2014,2739824-19351938,553.06,AGGREGATE INDUSTRIES UK LTD.,
Neighbourhood Services,Technical Services,Supplies and Services,304221,Equipment and Materials,01-May-2014,2739824-19511358,620.13,AGGREGATE INDUSTRIES UK LTD.,
Neighbourhood Services,Technical Services,Supplies and Services,304221,Equipment and Materials,01-May-2014,2739824-19524810,"1,243.18",AGGREGATE INDUSTRIES UK LTD.,
Neighbourhood Services,Technical Services,Supplies and Services,304221,Equipment and Materials,01-May-2014,2739824-19569403,517.88,AGGREGATE INDUSTRIES UK LTD.,
Neighbourhood Services,Technical Services,Supplies and Services,304221,Equipment and Materials,01-May-2014,2739824-19577215,612.40,AGGREGATE INDUSTRIES UK LTD.,
Neighbourhood Services,Technical Services,Supplies and Services,304221,Equipment and Materials,01-May-2014,2739824-19610927,986.05,AGGREGATE INDUSTRIES UK LTD.,
Neighbourhood Services,Technical Services,Supplies and Services,304221,Equipment and Materials,01-May-2014,2739824-19614773,"1,212.72",AGGREGATE INDUSTRIES UK LTD.,
Neighbourhood Services,Technical Services,Supplies and Services,304221,Equipment and Materials,01-May-2014,2739825-19459740,542.40,AGGREGATE INDUSTRIES UK LTD.,
Neighbourhood Services,Technical Services,Supplies and Services,304221,Equipment and Materials,01-May-2014,2739825-19475558,"1,383.76",AGGREGATE INDUSTRIES UK LTD.,
Neighbourhood Services,Technical Services,Supplies and Services,304221,Equipment and Materials,01-May-2014,2739825-19552846,947.72,AGGREGATE INDUSTRIES UK LTD.,
Neighbourhood Services,Technical Services,Supplies and Services,304221,Equipment and Materials,01-May-2014,2739825-19552851,"1,015.56",AGGREGATE INDUSTRIES UK LTD.,
Neighbourhood Services,Technical Services,Supplies and Services,304221,Equipment and Materials,01-May-2014,2739825-19569399,"1,768.24",AGGREGATE INDUSTRIES UK LTD.,
Neighbourhood Services,Technical Services,Supplies and Services,304221,Equipment and Materials,01-May-2014,2739825-19577211,"2,082.64",AGGREGATE INDUSTRIES UK LTD.,
Neighbourhood Services,Technical Services,Supplies and Services,304221,Equipment and Materials,01-May-2014,2739825-19583814,"1,233.80",AGGREGATE INDUSTRIES UK LTD.,
Neighbourhood Services,Technical Services,Supplies and Services,304221,Equipment and Materials,01-May-2014,2739825-19591064,"1,759.56",AGGREGATE INDUSTRIES UK LTD.,
Neighbourhood Services,Technical Services,Supplies and Services,304221,Equipment and Materials,01-May-2014,2739825-19591067,"1,015.00",AGGREGATE INDUSTRIES UK LTD.,
Neighbourhood Services,Technical Services,Supplies and Services,304221,Equipment and Materials,01-May-2014,2739825-19591069,556.24,AGGREGATE INDUSTRIES UK LTD.,
Neighbourhood Services,Technical Services,Supplies and Services,304221,Equipment and Materials,01-May-2014,2739825-19597661,"1,401.20",AGGREGATE INDUSTRIES UK LTD.,
Neighbourhood Services,Technical Services,Supplies and Services,304221,Equipment and Materials,01-May-2014,2739825-19597669,"1,018.85",AGGREGATE INDUSTRIES UK LTD.,
Neighbourhood Services,Technical Services,Supplies and Services,304221,Equipment and Materials,01-May-2014,2739825-19604902,"1,455.76",AGGREGATE INDUSTRIES UK LTD.,
Neighbourhood Services,Technical Services,Supplies and Services,304221,Equipment and Materials,01-May-2014,2739825-19604904,514.55,AGGREGATE INDUSTRIES UK LTD.,
Neighbourhood Services,Technical Services,Supplies and Services,304221,Equipment and Materials,01-May-2014,2739825-19610924,705.80,AGGREGATE INDUSTRIES UK LTD.,
Neighbourhood Services,Technical Services,Supplies and Services,304221,Equipment and Materials,01-May-2014,2739825-19610928,"1,036.28",AGGREGATE INDUSTRIES UK LTD.,
Neighbourhood Services,Technical Services,Supplies and Services,304221,Equipment and Materials,01-May-2014,2739825-19610929,"2,346.89",AGGREGATE INDUSTRIES UK LTD.,
Neighbourhood Services,Technical Services,Supplies and Services,304221,Equipment and Materials,01-May-2014,2739825-19614770,"1,254.88",AGGREGATE INDUSTRIES UK LTD.,
Neighbourhood Services,Technical Services,Supplies and Services,304221,Equipment and Materials,01-May-2014,2739825-19614772,973.94,AGGREGATE INDUSTRIES UK LTD.,
Neighbourhood Services,Technical Services,Supplies and Services,304221,Equipment and Materials,01-May-2014,2739825-19614775,"1,005.87",AGGREGATE INDUSTRIES UK LTD.,
Neighbourhood Services,Technical Services,Supplies and Services,304221,Equipment and Materials,01-May-2014,2739825-19614776,883.78,AGGREGATE INDUSTRIES UK LTD.,
Neighbourhood Services,Technical Services,Supplies and Services,304221,Equipment and Materials,01-May-2014,2739825-19621575,"1,057.72",AGGREGATE INDUSTRIES UK LTD.,
Neighbourhood Services,Technical Services,Supplies and Services,304221,Equipment and Materials,01-May-2014,2739825-19621576,665.42,AGGREGATE INDUSTRIES UK LTD.,
Neighbourhood Services,Technical Services,Supplies and Services,304221,Equipment and Materials,01-May-2014,2739825-19621577,"1,207.76",AGGREGATE INDUSTRIES UK LTD.,
Neighbourhood Services,Technical Services,Supplies and Services,304221,Equipment and Materials,01-May-2014,2739825-19621578,508.54,AGGREGATE INDUSTRIES UK LTD.,
Neighbourhood Services,Technical Services,Supplies and Services,304221,Equipment and Materials,01-May-2014,2739825-19621579,572.61,AGGREGATE INDUSTRIES UK LTD.,
Neighbourhood Services,Direct Services,Premises,115125,Repairs to Grounds,01-May-2014,2739838-19442,"1,722.94",ARBOR TIMBER & BUILDERS MERCHANTS LTD.,
Corporate Resources,Human Resources,Supplies and Services,372009,Subscriptions,01-May-2014,2739843-B08019201403147,"1,400.00",BACS PAYMENT SCHEMES LTD.,
Neighbourhood Services,Direct Services,Supplies and Services,304259,Equipment and Materials,01-May-2014,2739846-95421464,"2,617.10",BALL COLEGRAVE LTD.,
Assistant Chief Executive,Partnerships & Community Engagement Div.,Supplies and Services,384086,Miscellaneous Expenses,01-May-2014,2739862-VOUCHER13NB,"4,646.00",BOWES MUSEUM.,
Assistant Chief Executive,Policy & Communications Division,Supplies and Services,384540,Miscellaneous Expenses,01-May-2014,2739868-000005659721,"2,608.50",BRITISH TELECOMMUNICATIONS PLC.,
Neighbourhood Services,Culture & Sport,Premises,120021,Energy Costs,01-May-2014,2739874-25503523,751.47,CALOR GAS LTD.,
Neighbourhood Services,Direct Services,Third Party Payments,430100,Rendered by Private Contractors,01-May-2014,2739883-045,"1,433.91",CEILINGS DIRECT LTD.,
Neighbourhood Services,Direct Services,Supplies and Services,304221,Equipment and Materials,01-May-2014,2739885-9950/01586872,759.84,CERAMIC TILE DISTRIBUTORS (CTD).,
Children and Adult Services,Head of Adults,Transport,230005,Contract Hire,01-May-2014,2739908-289,"1,080.00",CONNORS MINI BUSES.,
Regeneration & Economic Development,Economic Development and Housing,Premises,120021,Energy Costs,01-May-2014,2739913-09204029,"1,400.30",CORONA ENERGY RETAIL 2 LTD.,
Neighbourhood Services,Technical Services,Third Party Payments,430100,Rendered by Private Contractors,01-May-2014,2739924-N004346,502.00,D DRILL (MASTER DRILLERS) LTD.,
RED HRA,HRA Capital,Construction Work,908105,Construction work,01-May-2014,2739937-193591,"1,379.94",DELTA ELECTRICAL & MECHANICAL SERVICES.,
RED HRA,HRA Capital,Construction Work,908105,Construction work,01-May-2014,2739937-193595,"1,216.94",DELTA ELECTRICAL & MECHANICAL SERVICES.,
Children and Adult Services,Commissioning inc Supporting People,Third Party Payments,479111,Purchase of Care,01-May-2014,2739946-200,"4,700.80",DURHAM COUNTY CARERS SUPPORT.,
Regeneration & Economic Development,Strategy Programmes and Performance,Supplies and Services,384899,Miscellaneous Expenses,01-May-2014,2739948-FEDF004/04,"4,719.15",DURHAM GIN LTD T/A DURHAM DISTILLERY.,
Neighbourhood Services,Culture & Sport,Supplies and Services,338047,Services,01-May-2014,2739951-8-12/4/14,"17,017.59",DURHAM MUSICAL THEATRE CO.,
RED HRA,HRA Capital,Construction Work,908105,Construction work,01-May-2014,2739968-0000129940,886.06,ENVIROVENT LTD.,
RED HRA,HRA Capital,Construction Work,908105,Construction work,01-May-2014,2739968-0000129941,786.73,ENVIROVENT LTD.,
Neighbourhood Services,Direct Services,Supplies and Services,304221,Equipment and Materials,01-May-2014,2739981-1404-206250,771.59,FLAME HEATING SPARES LTD.,
Regeneration & Economic Development,"Spatial Policy, Planning, Assets & Environment",Supplies and Services,372009,Subscriptions,01-May-2014,2739989-219015,"1,315.00",G4S ASSESSMENT SERVICES (UK) LTD T/A QUALITY IN TOURISM.,
Assistant Chief Executive,Policy & Communications Division,Supplies and Services,384999,Miscellaneous Expenses,01-May-2014,2740002-14606,"1,000.00",GOSS INTERACTIVE LTD.,
Neighbourhood Services,Direct Services,Supplies and Services,304259,Equipment and Materials,01-May-2014,2740003-INV051015,"1,267.20",GOTT TECHNICAL SERVICES LTD.,
Regeneration & Economic Development,"Spatial Policy, Planning, Assets & Environment",Supplies and Services,384199,Miscellaneous Expenses,01-May-2014,2740007-9675,"1,170.00",GROUNDWORK NORTH EAST.,
Neighbourhood Services,Direct Services,Supplies and Services,304221,Equipment and Materials,01-May-2014,2740012-679373,588.53,HARVEST ENERGY LTD.,
Children and Adult Services,Education,Construction Work,908105,Construction work,01-May-2014,2740028-DURH/0484,"17,826.25",INSPIREDSPACES DURHAM LTD.,
Children and Adult Services,Education,Construction Work,908105,Construction work,01-May-2014,2740028-DURH/0485,"20,193.00",INSPIREDSPACES DURHAM LTD.,
Children and Adult Services,Education,Construction Work,908105,Construction work,01-May-2014,2740028-DURH/Q483,"8,170.00",INSPIREDSPACES DURHAM LTD.,
Neighbourhood Services,"Environment,Health & Consumer Protection",Income,720330,Fees and Charges,01-May-2014,2740029-17457,"1,382.75",INTELLIGENT DATA SYSTEMS (UK) LTD.,
RED HRA,Housing Revenue Account,Supplies and Services,338027,Services,01-May-2014,2740033-11080,"2,955.00",IPB COMMUNICATIONS LTD.,
Neighbourhood Services,Direct Services,Supplies and Services,304259,Equipment and Materials,01-May-2014,2740043-4100419527,"4,800.00",JN KEARTON.,
Neighbourhood Services,Direct Services,Supplies and Services,304259,Equipment and Materials,01-May-2014,2740043-4100419528,600.00,JN KEARTON.,
Neighbourhood Services,Direct Services,Supplies and Services,304259,Equipment and Materials,01-May-2014,2740043-4100419529,600.00,JN KEARTON.,
Neighbourhood Services,Direct Services,Supplies and Services,304259,Equipment and Materials,01-May-2014,2740043-4100419530,600.00,JN KEARTON.,
Neighbourhood Services,Technical Services,Stock,926900,Stock in hand-Inventory system,01-May-2014,2740049-STI398417,506.51,JT DOVE LTD.,
Neighbourhood Services,Technical Services,Supplies and Services,304221,Equipment and Materials,01-May-2014,2740049-STI398807,511.04,JT DOVE LTD.,
Regeneration & Economic Development,Economic Development and Housing,Supplies and Services,384700,Miscellaneous Expenses,01-May-2014,2740053-RED-04-2014-212,"1,000.00",KC ENGINEERING LTD.,
Dedicated Schools Grant,Dedicated Schools Grant,Transport,230010,Contract Hire,01-May-2014,2740054-00500,"1,275.00",KENNAS CABS.,
Children and Adult Services,Education,Transport,230006,Contract Hire,01-May-2014,2740054-00501,672.00,KENNAS CABS.,
Neighbourhood Services,Technical Services,Supplies and Services,304221,Equipment and Materials,01-May-2014,2740061-9030823057,606.40,LAFARGE TARMAC TRADING LTD.,
Neighbourhood Services,Technical Services,Supplies and Services,304221,Equipment and Materials,01-May-2014,2740061-9030884163,566.63,LAFARGE TARMAC TRADING LTD.,
Neighbourhood Services,Technical Services,Supplies and Services,304221,Equipment and Materials,01-May-2014,2740061-9030886929,"1,136.08",LAFARGE TARMAC TRADING LTD.,
Neighbourhood Services,Culture & Sport,Supplies and Services,304221,Equipment and Materials,01-May-2014,2740069-34914194,"3,670.99",LIFE FITNESS (UK) LTD.,
Assistant Chief Executive,Partnerships & Community Engagement Div.,Premises,125009,Rents,01-May-2014,2740074-RSHPIN/00000814,"1,005.12",LIVIN HOUSING LTD.,
Children and Adult Services,Education,Transport,230007,Contract Hire,01-May-2014,2740079-4895,"1,707.51",MAKEPEACE MOTORS.,
Regeneration & Economic Development,Economic Development and Housing,Fees,901002,Professional fees,01-May-2014,2740091-936663,"1,200.00",MAZARS LLP.,
Neighbourhood Services,Culture & Sport,Supplies and Services,338047,Services,01-May-2014,2740099-INV-6271,578.80,MORE2SCREEN LTD.,
Children and Adult Services,Education,Transport,230008,Contract Hire,01-May-2014,2740101-ELH03-14,"2,124.00",MR CT WALKER T/A COLIN`S TAXIS.,
Children and Adult Services,Education,Transport,230008,Contract Hire,01-May-2014,2740101-MEAD03-14,"3,830.75",MR CT WALKER T/A COLIN`S TAXIS.,
Children and Adult Services,Head of Adults,Third Party Payments,472101,Purchase of Care,01-May-2014,2740112-11982,"3,855.00",NEURO PARTNERS LTD.,
Children and Adult Services,Education,Transport,230008,Contract Hire,01-May-2014,2740121-M0006279266,"1,520.00",NORTH TYNESIDE COUNCIL.,
Neighbourhood Services,Technical Services,Supplies and Services,304221,Equipment and Materials,01-May-2014,2740126-13092,722.19,NORTHUMBRIAN ROADS LTD.,
Regeneration & Economic Development,Economic Development and Housing,Premises,120009,Energy Costs,01-May-2014,2740127-NN07J5VJ,"1,813.23",NPOWER.,
Regeneration & Economic Development,Economic Development and Housing,Premises,120009,Energy Costs,01-May-2014,2740127-NNQ7KF8Z,"1,127.56",NPOWER.,
Children and Adult Services,Head of Adults,Supplies and Services,304259,Equipment and Materials,01-May-2014,2740130-CN18682926,796.14,OCS GROUP UK LTD T/A CANNON HYGIENE.,
Children and Adult Services,Head of Adults,Supplies and Services,304259,Equipment and Materials,01-May-2014,2740130-CN18697176,505.98,OCS GROUP UK LTD T/A CANNON HYGIENE.,
Children and Adult Services,Head of Adults,Premises,108099,Service Repairs and Maintenance,01-May-2014,2740135-555120,"1,655.00",P & N ASSOCIATES LTD.,
Children and Adult Services,Childrens Services,Supplies and Services,338078,Services,01-May-2014,2740157-4062,"15,162.72",QW SECURITY LTD.,
Neighbourhood Services,Culture & Sport,Supplies and Services,304221,Equipment and Materials,01-May-2014,2740168-00001193,914.00,RARING2GO TEES VALLEY & CO DURHAM.,
Children and Adult Services,Commissioning inc Supporting People,Third Party Payments,479101,Purchase of Care,01-May-2014,2740173-4400,"7,500.00",RETHINK MENTAL ILLNESS.,
Children and Adult Services,Education,Transport,230006,Contract Hire,01-May-2014,2740177-192,"1,470.00",ROAD RUNNERS (NE) LTD.,
Neighbourhood Services,Culture & Sport,Supplies and Services,336005,Advertising,01-May-2014,2740186-3403,525.00,SAVILLS UK LTD.,
Corporate Resources,I.C.T. Services,Supplies and Services,342051,Computers and Communications,01-May-2014,2740201-31063,"3,758.96",SITEIMPROVE LTD.,
Children and Adult Services,Education,Premises,125009,Rents,01-May-2014,2740234-2960,"4,813.75",THE WORK PLACE (AYCLIFFE) LTD.,
Children and Adult Services,Head of Adults,Supplies and Services,338365,Services,01-May-2014,2740243-OP/I079453,"2,810.00",TOTAL HYGIENE LTD.,
Neighbourhood Services,Direct Services,Supplies and Services,304221,Equipment and Materials,01-May-2014,2740245-29234,"1,499.00",TOTAL PUMP SOLUTIONS LTD.,
RED HRA,HRA Capital,Construction Work,908105,Construction work,01-May-2014,2740258-URI265,"1,530.00",UNIQUE RESINS LTD T/A METFLEX SYSTEMS.,
Neighbourhood Services,Technical Services,Third Party Payments,460350,Contract Payments,01-May-2014,2740272-37002,833.00,W MARLEY AGRICULTURAL CONTRACTORS LTD.,
Neighbourhood Services,Technical Services,Third Party Payments,460350,Contract Payments,01-May-2014,2740272-37081,762.00,W MARLEY AGRICULTURAL CONTRACTORS LTD.,
Neighbourhood Services,Technical Services,Supplies and Services,304221,Equipment and Materials,01-May-2014,2740274-16653,698.67,WARD TIMBER LTD.,
Children and Adult Services,Education,Supplies and Services,384199,Miscellaneous Expenses,01-May-2014,2740280-183A,"1,667.00",WELLSPRING CONNECTIONS.,
Children and Adult Services,Childrens Services,Premises,125009,Rents,01-May-2014,2740282-285609,612.00,WHITTLE JONES (GROUP) LTD.,
Assistant Chief Executive,Partnerships & Community Engagement Div.,Cap Exp on Grants & Other Financial Assistance (REFCUS),918004,Contributions to other bodies,01-May-2014,2740284,"6,000.00",WINGATE & STATION TOWN FAMILY CENTRE.,
Neighbourhood Services,Direct Services,Supplies and Services,304221,Equipment and Materials,01-May-2014,2740285-11972917,"1,710.00",WOLSELEY UK LTD.,
Neighbourhood Services,Technical Services,Supplies and Services,304358,Equipment and Materials,01-May-2014,2740291-3921,930.75,YOULL CONSTRUCTION LTD.,
Neighbourhood Services,Technical Services,Supplies and Services,304358,Equipment and Materials,01-May-2014,2740291-3967,646.00,YOULL CONSTRUCTION LTD.,
Neighbourhood Services,Technical Services,Supplies and Services,304358,Equipment and Materials,01-May-2014,2740291-3968,701.63,YOULL CONSTRUCTION LTD.,
Neighbourhood Services,Culture & Sport,Income,720115,Fees and Charges,02-May-2014,2740304,"1,141.32",ANIMOTION ART LONDON LTD.,
Neighbourhood Services,Direct Services,Third Party Payments,430100,Rendered by Private Contractors,02-May-2014,2740327,"2,614.50",BRIAN YOUNGER T/A B & E YOUNGER FLOORING.,
Regeneration & Economic Development,"Spatial Policy, Planning, Assets & Environment",Supplies and Services,338066,Services,02-May-2014,2740450,"1,300.00",JL MASON.,
Children and Adult Services,Education,Construction Work,908105,Construction work,02-May-2014,2740453,"6,876.34",JOHN WADE (HAULAGE) LTD.,
Neighbourhood Services,Direct Services,Third Party Payments,430103,Rendered by Private Contractors,02-May-2014,2740640,"6,709.72",TEESDALE CONSERVATION VOLUNTEERS.,
Neighbourhood Services,Direct Services,Premises,108301,Service Repairs and Maintenance,02-May-2014,2740297-26480805-61,720.00,ADT FIRE & SECURITY PLC.,
Regeneration & Economic Development,Transport and Contracted Services,Fees,901002,Professional fees,02-May-2014,2740298-28188357,"3,015.75",AECOM LTD.,
Neighbourhood Services,Technical Services,Supplies and Services,304221,Equipment and Materials,02-May-2014,2740299-19577212,"10,265.81",AGGREGATE INDUSTRIES UK LTD.,
Neighbourhood Services,Technical Services,Supplies and Services,304221,Equipment and Materials,02-May-2014,2740299-19628402,"1,806.82",AGGREGATE INDUSTRIES UK LTD.,
Neighbourhood Services,Technical Services,Supplies and Services,304221,Equipment and Materials,02-May-2014,2740299-19628403,783.67,AGGREGATE INDUSTRIES UK LTD.,
Neighbourhood Services,Technical Services,Supplies and Services,304221,Equipment and Materials,02-May-2014,2740300-19552847,"1,435.36",AGGREGATE INDUSTRIES UK LTD.,
Neighbourhood Services,Technical Services,Supplies and Services,304221,Equipment and Materials,02-May-2014,2740300-19628391,"1,080.04",AGGREGATE INDUSTRIES UK LTD.,
Neighbourhood Services,Technical Services,Supplies and Services,304221,Equipment and Materials,02-May-2014,2740300-19628397,"1,020.86",AGGREGATE INDUSTRIES UK LTD.,
Neighbourhood Services,Technical Services,Supplies and Services,304221,Equipment and Materials,02-May-2014,2740300-19635680,"1,249.92",AGGREGATE INDUSTRIES UK LTD.,
Neighbourhood Services,Technical Services,Supplies and Services,304221,Equipment and Materials,02-May-2014,2740300-19644579,"1,164.36",AGGREGATE INDUSTRIES UK LTD.,
Neighbourhood Services,Technical Services,Supplies and Services,304221,Equipment and Materials,02-May-2014,2740300-19644580,607.44,AGGREGATE INDUSTRIES UK LTD.,
Neighbourhood Services,Technical Services,Supplies and Services,304221,Equipment and Materials,02-May-2014,2740300-19649850,"1,194.12",AGGREGATE INDUSTRIES UK LTD.,
Neighbourhood Services,Technical Services,Supplies and Services,304221,Equipment and Materials,02-May-2014,2740300-19649851,932.54,AGGREGATE INDUSTRIES UK LTD.,
Neighbourhood Services,Technical Services,Supplies and Services,304221,Equipment and Materials,02-May-2014,2740300-19649852,"1,015.56",AGGREGATE INDUSTRIES UK LTD.,
Neighbourhood Services,Technical Services,Supplies and Services,304221,Equipment and Materials,02-May-2014,2740300-19656312,"1,527.68",AGGREGATE INDUSTRIES UK LTD.,
Neighbourhood Services,Technical Services,Supplies and Services,304221,Equipment and Materials,02-May-2014,2740300-19656313,677.53,AGGREGATE INDUSTRIES UK LTD.,
Neighbourhood Services,Technical Services,Supplies and Services,304221,Equipment and Materials,02-May-2014,2740300-19663730,"1,778.32",AGGREGATE INDUSTRIES UK LTD.,
Neighbourhood Services,Technical Services,Supplies and Services,304221,Equipment and Materials,02-May-2014,2740300-19669565,"1,748.40",AGGREGATE INDUSTRIES UK LTD.,
Neighbourhood Services,Technical Services,Supplies and Services,304221,Equipment and Materials,02-May-2014,2740300-19669566,503.28,AGGREGATE INDUSTRIES UK LTD.,
Neighbourhood Services,Technical Services,Supplies and Services,304221,Equipment and Materials,02-May-2014,2740300-19669567,"1,330.56",AGGREGATE INDUSTRIES UK LTD.,
Corporate Resources,I.C.T. Services,Supplies and Services,304245,Equipment and Materials,02-May-2014,2740305-WJ3718251,756.00,ANTALIS LTD.,
Neighbourhood Services,Direct Services,Supplies and Services,372009,Subscriptions,02-May-2014,2740306-1415/93,"3,836.00",APSE.,
Neighbourhood Services,Technical Services,Stock,926900,Stock in hand-Inventory system,02-May-2014,2740309-921803597,"2,818.68",ARCO LTD.,
Children and Adult Services,Education,Transport,235005,Public Transport,02-May-2014,2740311-106933,"39,425.00",ARRIVA NORTH EAST LTD.,
Neighbourhood Services,Projects and Business services,Fees,901002,Professional fees,02-May-2014,2740314-14003034,"4,800.00",ATKINS GLOBAL.,
Children and Adult Services,Childrens Services,Premises,106082,Centrally Controlled Rep and Maint,02-May-2014,2740319-25142,"1,319.00",BARR & WRAY LTD.,
Neighbourhood Services,Direct Services,Supplies and Services,328041,"Clothing, Uniforms and Laundry",02-May-2014,2740321-SN1612600,511.40,BERENDSEN UK LTD,
Neighbourhood Services,Direct Services,Supplies and Services,328041,"Clothing, Uniforms and Laundry",02-May-2014,2740321-SN1670529,639.25,BERENDSEN UK LTD,
Corporate Resources,Legal & Democratic Services,Premises,120021,Energy Costs,02-May-2014,2740325-D13709,"1,098.50",BRADLEY HALL CHARTERED SURVEYORS CLIENT ACCOUNT.,
Neighbourhood Services,Direct Services,Third Party Payments,430100,Rendered by Private Contractors,02-May-2014,2740327-STAN,"2,618.00",BRIAN YOUNGER T/A B & E YOUNGER FLOORING.,
Children and Adult Services,Childrens Services,Construction Work,908105,Construction work,02-May-2014,2740335-AYCL,"4,916.95",C & A PUMPS & ENGINEERING LTD.,
Children and Adult Services,Childrens Services,Construction Work,908105,Construction work,02-May-2014,2740335-INS,"7,375.41",C & A PUMPS & ENGINEERING LTD.,
RED HRA,Housing Revenue Account,Supplies and Services,344033,Telephones,02-May-2014,2740336-12749126,"2,012.26",CABLE & WIRELESS UK.,
Neighbourhood Services,Culture & Sport,Supplies and Services,324001,Provisions,02-May-2014,2740339-840168024,731.99,CARLSBERG UK LTD.,
Neighbourhood Services,Culture & Sport,Supplies and Services,324117,Provisions,02-May-2014,2740339-840178533,782.35,CARLSBERG UK LTD.,
Neighbourhood Services,Direct Services,Premises,106082,Centrally Controlled Rep and Maint,02-May-2014,2740341-125117,"1,012.00",CDS SECURITY LTD.,
Neighbourhood Services,Culture & Sport,Premises,120037,Energy Costs,02-May-2014,2740344-2282055,"1,505.00",CERTAS ENERGY UK LTD.,
Children and Adult Services,Commissioning inc Supporting People,Third Party Payments,479111,Purchase of Care,02-May-2014,2740347-CACD003,"15,000.00",CITIZENS ADVICE COUNTY DURHAM.,
Children and Adult Services,Public Health,Third Party Payments,460803,Contract Payments,02-May-2014,2740350-Alcohol April,"1,473.22",CLAYPATH & UNIVERSITY MEDICAL GROUP.,
RED HRA,Housing Revenue Account,Supplies and Services,348037,Subsistence,02-May-2014,2740352-475322,"4,822.23",CLICK TRAVEL LTD.,
Corporate Resources,I.C.T. Services,Supplies and Services,348037,Subsistence,02-May-2014,2740352-486829,"2,813.39",CLICK TRAVEL LTD.,
Neighbourhood Services,Culture & Sport,Supplies and Services,324001,Provisions,02-May-2014,2740354-9101565315,750.40,COCA COLA ENTERPRISES LTD.,
Children and Adult Services,Public Health,Supplies and Services,344033,Telephones,02-May-2014,2740357-11060,"1,093.27",CONNECTED WORLD COMMUNICATIONS LTD.,
Children and Adult Services,Public Health,Supplies and Services,344033,Telephones,02-May-2014,2740357-11835,"1,066.77",CONNECTED WORLD COMMUNICATIONS LTD.,
Corporate Resources,Human Resources,Income,740029,Other Income,02-May-2014,2740358,"3,480.00",CONSETT ACADEMY.,
Neighbourhood Services,Technical Services,Construction Work,908108,Capital - Surface Dressing,02-May-2014,2740361-10317,683.36,COUPE LINE LTD.,
Neighbourhood Services,Technical Services,Third Party Payments,430100,Rendered by Private Contractors,02-May-2014,2740364-N004419,541.50,D DRILL (MASTER DRILLERS) LTD.,
Children and Adult Services,Childrens Services,Supplies and Services,384199,Miscellaneous Expenses,02-May-2014,2740365-MC14/01,"6,000.00",DALES AREA EIC.,
Neighbourhood Services,Culture & Sport,Supplies and Services,338099,Services,02-May-2014,2740370-KAS00176I,"1,507.40",DEBORAH MCKENNA LTD (ON BEHALF OF DEAN EDWARDS).,
Neighbourhood Services,Culture & Sport,Supplies and Services,338099,Services,02-May-2014,2740370-SGA00295I,"1,336.50",DEBORAH MCKENNA LTD (ON BEHALF OF DEAN EDWARDS).,
Corporate Resources,I.C.T. Services,Stock,926900,Stock in hand-Inventory system,02-May-2014,2740372-7402115114,"8,349.00",DELL COMPUTER CORPORATION LTD.,
Neighbourhood Services,Culture & Sport,Supplies and Services,338099,Services,02-May-2014,2740376-149187,900.00,DO YOU LOVE FOOD LTD.,
Neighbourhood Services,Direct Services,Premises,106099,Centrally Controlled Rep and Maint,02-May-2014,2740377-9888153871,"17,198.67",DORMA UK LTD.,
Dedicated Schools Grant,Dedicated Schools Grant,Transport,230005,Contract Hire,02-May-2014,2740386-DC07,660.00,DUNCAN G CUMMINGS T/A DC TAXIS.,
Assistant Chief Executive,Partnerships & Community Engagement Div.,Supplies and Services,338094,Services,02-May-2014,2740387-APR1403,"1,045.48",DURHAM COMMUNITY ACTION LTD.,
Neighbourhood Services,Culture & Sport,Supplies and Services,384700,Miscellaneous Expenses,02-May-2014,2740388-4100415698,600.00,DURHAM CRICKET BOARD COACHES ASSOCIATION.,
Neighbourhood Services,Culture & Sport,Supplies and Services,338047,Services,02-May-2014,2740389-ARSENIC-6-12/4,"2,292.05",DURHAM DRAMATIC SOCIETY.,
Children and Adult Services,Childrens Services,Supplies and Services,384199,Miscellaneous Expenses,02-May-2014,2740391-20011939,"2,250.00",DURHAM POLICE & CRIME COMMISSIONER.,
Children and Adult Services,Childrens Services,Supplies and Services,338099,Services,02-May-2014,2740391-20011942,600.00,DURHAM POLICE & CRIME COMMISSIONER.,
Regeneration & Economic Development,"Spatial Policy, Planning, Assets & Environment",Supplies and Services,384159,Miscellaneous Expenses,02-May-2014,2740394-122,"6,538.40",EAGLE SECURITY BISHOP AUCKLAND LTD.,
Neighbourhood Services,Technical Services,Stock,926900,Stock in hand-Inventory system,02-May-2014,2740396-059-142232,567.69,EDMUNDSON ELECTRICAL LTD.,
Neighbourhood Services,Culture & Sport,Supplies and Services,338099,Services,02-May-2014,2740402-273,"2,000.00",EVENTS OF EXCELLENCE LTD.,
Neighbourhood Services,Direct Services,Third Party Payments,430100,Rendered by Private Contractors,02-May-2014,2740403-DCC131,"4,000.00",FARNLEY FARM PARTNERS.,
Children and Adult Services,Childrens Services,Third Party Payments,425040,Rendered by Voluntary Organisations,02-May-2014,2740405-0000050747,"3,128.57",FIVE RIVERS CHILD CARE LTD.,
Neighbourhood Services,Technical Services,Stock,926900,Stock in hand-Inventory system,02-May-2014,2740407-OP/I278488,640.38,FLEMING & CO (MACHINERY) LTD.,
Children and Adult Services,Childrens Services,Third Party Payments,486022,Service Level Agreements,02-May-2014,2740408-7370,"4,517.24",FLEXIBLE SUPPORT OPTIONS UK (DOMICILARY) LTD.,
Children and Adult Services,Childrens Services,Third Party Payments,425040,Rendered by Voluntary Organisations,02-May-2014,2740411-FC014862,760.00,FOSTER CARES LTD.,
Children and Adult Services,Childrens Services,Third Party Payments,425040,Rendered by Voluntary Organisations,02-May-2014,2740411-FC014904,700.00,FOSTER CARES LTD.,
Children and Adult Services,Childrens Services,Third Party Payments,425040,Rendered by Voluntary Organisations,02-May-2014,2740411-FC014905,"1,180.00",FOSTER CARES LTD.,
Children and Adult Services,Childrens Services,Third Party Payments,425040,Rendered by Voluntary Organisations,02-May-2014,2740411-FC014923,820.00,FOSTER CARES LTD.,
Children and Adult Services,Childrens Services,Third Party Payments,425040,Rendered by Voluntary Organisations,02-May-2014,2740411-FC014932,700.00,FOSTER CARES LTD.,
Children and Adult Services,Childrens Services,Third Party Payments,425040,Rendered by Voluntary Organisations,02-May-2014,2740411-FDC014914,760.00,FOSTER CARES LTD.,
Regeneration & Economic Development,Transport and Contracted Services,Third Party Payments,430106,Rendered by Private Contractors,02-May-2014,2740417-41396,"64,138.49",GO GATESHEAD LTD.,
Regeneration & Economic Development,Transport and Contracted Services,Third Party Payments,430106,Rendered by Private Contractors,02-May-2014,2740417-41397,"64,599.05",GO GATESHEAD LTD.,
Neighbourhood Services,Direct Services,Supplies and Services,304252,Equipment and Materials,02-May-2014,2740418-INV051135,564.20,GOTT TECHNICAL SERVICES LTD.,
Neighbourhood Services,Direct Services,Premises,145023,Cleaning and Domestic Supplies,02-May-2014,2740420-06/509293,671.20,GREENHAM TRADING LTD.,
Corporate Resources,I.C.T. Services,Supplies and Services,304303,Equipment and Materials,02-May-2014,2740421-INV0153685,"7,829.08",GV MULTI MEDIA LTD.,
Corporate Resources,I.C.T. Services,Stock,926900,Stock in hand-Inventory system,02-May-2014,2740421-INV0153688,"3,029.50",GV MULTI MEDIA LTD.,
Neighbourhood Services,Redundant Direct Services,Supplies and Services,304221,Equipment and Materials,02-May-2014,2740425-SI1972,604.00,HARELAW SAWMILL LTD.,
Neighbourhood Services,Redundant Direct Services,Supplies and Services,304221,Equipment and Materials,02-May-2014,2740425-SI1977,532.84,HARELAW SAWMILL LTD.,
Neighbourhood Services,Redundant Direct Services,Supplies and Services,304221,Equipment and Materials,02-May-2014,2740425-SI1978,615.60,HARELAW SAWMILL LTD.,
Corporate Resources,I.C.T. Services,Supplies and Services,304303,Equipment and Materials,02-May-2014,2740431-1051168,873.42,HIGHLANDER COMPUTING SOLUTIONS LTD.,
Corporate Resources,I.C.T. Services,Stock,926900,Stock in hand-Inventory system,02-May-2014,2740431-1051602,711.26,HIGHLANDER COMPUTING SOLUTIONS LTD.,
Neighbourhood Services,Technical Services,Supplies and Services,304221,Equipment and Materials,02-May-2014,2740433-29346,565.80,HOGG BLASTING & FINISHING EQUIPMENT LTD.,
Neighbourhood Services,Direct Services,Premises,115125,Repairs to Grounds,02-May-2014,2740438-B33/0066765,652.27,HOWDENS JOINERY LTD.,
Neighbourhood Services,Direct Services,Supplies and Services,304221,Equipment and Materials,02-May-2014,2740438-B33/0066766,597.98,HOWDENS JOINERY LTD.,
Neighbourhood Services,Direct Services,Supplies and Services,304221,Equipment and Materials,02-May-2014,2740438-B33/0066821,703.84,HOWDENS JOINERY LTD.,
Neighbourhood Services,Projects and Business services,Third Party Payments,430113,Rendered by Private Contractors,02-May-2014,2740439-W141619,"259,483.41",HW MARTIN WASTE LTD.,
Neighbourhood Services,Culture & Sport,Premises,106082,Centrally Controlled Rep and Maint,02-May-2014,2740440-131092,"13,746.60",HYGIENIC CLEANING COMPANY (UK) LTD.,
Neighbourhood Services,Culture & Sport,Premises,106082,Centrally Controlled Rep and Maint,02-May-2014,2740440-131094,"6,390.40",HYGIENIC CLEANING COMPANY (UK) LTD.,
Regeneration & Economic Development,Economic Development and Housing,Supplies and Services,384700,Miscellaneous Expenses,02-May-2014,2740442-RED-05-2014-002,"1,415.00",IBEX INNOVATIONS LTD.,
Corporate Resources,Legal & Democratic Services,Supplies and Services,342051,Computers and Communications,02-May-2014,2740443-IK23308,"3,200.00",IKEN BUSINESS LTD.,
Children and Adult Services,Public Health,Third Party Payments,460802,Contract Payments,02-May-2014,2740446-A83610/JUNE/2013A,"2,636.94",INTRAHEALTH LTD.,
Neighbourhood Services,Direct Services,Supplies and Services,304221,Equipment and Materials,02-May-2014,2740449-3307/0143381,622.00,JEWSON LTD.,
Neighbourhood Services,Direct Services,Supplies and Services,304221,Equipment and Materials,02-May-2014,2740449-3307/0143465,509.70,JEWSON LTD.,
Neighbourhood Services,Direct Services,Supplies and Services,304221,Equipment and Materials,02-May-2014,2740455-334019,716.33,JOINERY & TIMBER CREATIONS (65) LTD.,
Neighbourhood Services,Direct Services,Supplies and Services,304221,Equipment and Materials,02-May-2014,2740455-334020,534.70,JOINERY & TIMBER CREATIONS (65) LTD.,
RED HRA,HRA Capital,Construction Work,908105,Construction work,02-May-2014,2740456-197253,"4,159.44",JOINERY & TIMBER CREATIONS (65) LTD.,
Neighbourhood Services,Direct Services,Supplies and Services,304221,Equipment and Materials,02-May-2014,2740459-CN119402/D,"1,382.55",JT DOVE LTD.,
Neighbourhood Services,Technical Services,Stock,926900,Stock in hand-Inventory system,02-May-2014,2740459-NO149893,509.04,JT DOVE LTD.,
Neighbourhood Services,Technical Services,Stock,926900,Stock in hand-Inventory system,02-May-2014,2740459-STI399902,518.00,JT DOVE LTD.,
Neighbourhood Services,Technical Services,Stock,926900,Stock in hand-Inventory system,02-May-2014,2740459-STI399910,537.49,JT DOVE LTD.,
Children and Adult Services,Education,Transport,230007,Contract Hire,02-May-2014,2740460-163,525.00,KAB IT.,
Neighbourhood Services,Technical Services,Supplies and Services,304221,Equipment and Materials,02-May-2014,2740463-9030090427,"1,105.00",LAFARGE TARMAC TRADING LTD.,
Neighbourhood Services,Technical Services,Supplies and Services,304221,Equipment and Materials,02-May-2014,2740463-9030350998,529.50,LAFARGE TARMAC TRADING LTD.,
Neighbourhood Services,Technical Services,Supplies and Services,304221,Equipment and Materials,02-May-2014,2740463-9030718159,529.50,LAFARGE TARMAC TRADING LTD.,
Neighbourhood Services,Technical Services,Supplies and Services,304221,Equipment and Materials,02-May-2014,2740463-9030823050,"1,324.75",LAFARGE TARMAC TRADING LTD.,
Neighbourhood Services,Technical Services,Supplies and Services,304221,Equipment and Materials,02-May-2014,2740463-9030823056,"1,455.46",LAFARGE TARMAC TRADING LTD.,
Neighbourhood Services,Technical Services,Supplies and Services,304221,Equipment and Materials,02-May-2014,2740463-9030842717,793.50,LAFARGE TARMAC TRADING LTD.,
Neighbourhood Services,Technical Services,Supplies and Services,304221,Equipment and Materials,02-May-2014,2740463-9030890726,626.00,LAFARGE TARMAC TRADING LTD.,
Neighbourhood Services,Technical Services,Supplies and Services,304221,Equipment and Materials,02-May-2014,2740463-9030893930,"3,068.06",LAFARGE TARMAC TRADING LTD.,
Neighbourhood Services,Technical Services,Supplies and Services,304221,Equipment and Materials,02-May-2014,2740463-9030898971,"1,641.06",LAFARGE TARMAC TRADING LTD.,
Corporate Resources,Legal & Democratic Services,Supplies and Services,372009,Subscriptions,02-May-2014,2740468-0444,500.00,LAWYERS IN LOCAL GOVERNMENT (LLG).,
Children and Adult Services,Public Health,Third Party Payments,460803,Contract Payments,02-May-2014,2740476-FD810,"1,069.72",LLOYDS PHARMACY.,
Neighbourhood Services,Culture & Sport,Supplies and Services,338099,Services,02-May-2014,2740480-149185,"2,000.00",LOVE FOOD FESTIVALS LTD.,
Neighbourhood Services,Culture & Sport,Supplies and Services,338047,Services,02-May-2014,2740485-0014,"4,869.78",MAPLE TREE ENTERTAINMENT LTD.,
Neighbourhood Services,Culture & Sport,Supplies and Services,338066,Services,02-May-2014,2740491-17APRIL2014,"8,920.00",MAURICE HOGARTH.,
Children and Adult Services,Commissioning inc Supporting People,Third Party Payments,479111,Purchase of Care,02-May-2014,2740492-555/03103,"14,830.50",MENTAL HEALTH MATTERS.,
RED HRA,HRA Capital,Construction Work,908105,Construction work,02-May-2014,2740493-23204,"8,894.95",MGM LTD.,
Neighbourhood Services,Technical Services,Supplies and Services,384110,Miscellaneous Expenses,02-May-2014,2740495-140416474,"2,610.00",MICRO DRAINAGE LTD.,
Children and Adult Services,Childrens Services,Supplies and Services,338042,Services,02-May-2014,2740498-301166/INVMM57,540.00,MISS AMANDA MILLER.,
Children and Adult Services,Childrens Services,Supplies and Services,338042,Services,02-May-2014,2740499-300585/INVBD27,600.00,MISS BEATRICE DAWSON.,
Children and Adult Services,Childrens Services,Supplies and Services,338042,Services,02-May-2014,2740501-301613/INVKH19,"1,680.00",MISS KERRY HOLT.,
Corporate Resources,Legal & Democratic Services,Supplies and Services,338042,Services,02-May-2014,2740503-302292/INVSW104,"1,920.00",MISS SARAH WOOLRICH.,
Corporate Resources,Legal & Democratic Services,Supplies and Services,338042,Services,02-May-2014,2740503-304985/INVSW106,660.00,MISS SARAH WOOLRICH.,
Corporate Resources,Legal & Democratic Services,Supplies and Services,338042,Services,02-May-2014,2740504-301609INVSEB146,"2,450.00",MISS SUSAN BOOTHROYD.,
Children and Adult Services,Public Health,Third Party Payments,460803,Contract Payments,02-May-2014,2740505-FYR54/JUL/13,936.25,MJ & A TAYLOR.,
Corporate Resources,Legal & Democratic Services,Supplies and Services,338042,Services,02-May-2014,2740514-304622/INVMT116,780.00,MR MARTIN TODD.,
Corporate Resources,Legal & Democratic Services,Supplies and Services,338042,Services,02-May-2014,2740515-304701/INVSPA33,"1,560.00",MR STEPHEN AINSLEY.,
Neighbourhood Services,Culture & Sport,Supplies and Services,304259,Equipment and Materials,02-May-2014,2740519-0012635,738.00,MTELECOM LTD.,
Children and Adult Services,Education,Supplies and Services,372009,Subscriptions,02-May-2014,2740521-1415043,"13,358.98",NCER CIC.,
RED HRA,HRA Capital,Construction Work,908105,Construction work,02-May-2014,2740522-8045,"1,010.50",NELSONS OF DURHAM.,
Regeneration & Economic Development,Economic Development and Housing,Supplies and Services,308011,Furniture,02-May-2014,2740522-8052,"1,155.00",NELSONS OF DURHAM.,
Regeneration & Economic Development,Economic Development and Housing,Supplies and Services,340001,Postages,02-May-2014,2740523-RED-04-2014-233,"1,000.00",NEOPOST LTD CREDIFON RCB ACCOUNT.,
Children and Adult Services,Public Health,Supplies and Services,384155,Miscellaneous Expenses,02-May-2014,2740528-1000039656,"62,560.19",NHS BUSINESS SERVICES AUTHORITY.,
Children and Adult Services,Public Health,Supplies and Services,384155,Miscellaneous Expenses,02-May-2014,2740529-7010100112,"23,983.00",NHS DDES CCG.,
Dedicated Schools Grant,Dedicated Schools Grant,Third Party Payments,440080,Other Third Party Payments,02-May-2014,2740532-0000017312,"2,818.40",NORTH EAST AUTISM SOCIETY.,
Dedicated Schools Grant,Dedicated Schools Grant,Third Party Payments,440080,Other Third Party Payments,02-May-2014,2740532-0000017316,"2,094.08",NORTH EAST AUTISM SOCIETY.,
Dedicated Schools Grant,Dedicated Schools Grant,Third Party Payments,440080,Other Third Party Payments,02-May-2014,2740532-0000017326,"2,745.48",NORTH EAST AUTISM SOCIETY.,
Dedicated Schools Grant,Dedicated Schools Grant,Third Party Payments,440080,Other Third Party Payments,02-May-2014,2740532-0000017437,"2,378.50",NORTH EAST AUTISM SOCIETY.,
RED HRA,HRA Capital,Construction Work,908105,Construction work,02-May-2014,2740537-136,"1,050.00",NORTHEAST STAIRLIFTS LTD.,
Neighbourhood Services,Direct Services,Supplies and Services,304357,Equipment and Materials,02-May-2014,2740543-913150452,"1,924.00",NORTHUMBRIAN WATER LTD.,
Regeneration & Economic Development,"Spatial Policy, Planning, Assets & Environment",Premises,135005,Water Services,02-May-2014,2740544-260100310158-003,"5,578.35",NORTHUMBRIAN WATER LTD.,
Children and Adult Services,Head of Adults,Supplies and Services,304259,Equipment and Materials,02-May-2014,2740547-CN18711304,503.64,OCS GROUP UK LTD T/A CANNON HYGIENE.,
Children and Adult Services,Childrens Services,Third Party Payments,425040,Rendered by Voluntary Organisations,02-May-2014,2740549-03084,"3,100.00",ORCHARD CARE (NORTH EAST) LTD.,
Children and Adult Services,Childrens Services,Third Party Payments,425040,Rendered by Voluntary Organisations,02-May-2014,2740549-03085,"3,631.43",ORCHARD CARE (NORTH EAST) LTD.,
Neighbourhood Services,Culture & Sport,Premises,106082,Centrally Controlled Rep and Maint,02-May-2014,2740550-01114167,"5,970.63",OTIS LTD.,
Neighbourhood Services,Technical Services,Stock,926900,Stock in hand-Inventory system,02-May-2014,2740553-XL113461,"2,750.00",PARK ELECTRICAL DISTRIBUTORS LTD.,
Neighbourhood Services,Technical Services,Stock,926900,Stock in hand-Inventory system,02-May-2014,2740553-XL113465,539.00,PARK ELECTRICAL DISTRIBUTORS LTD.,
Neighbourhood Services,Technical Services,Stock,926900,Stock in hand-Inventory system,02-May-2014,2740553-XL113555,580.00,PARK ELECTRICAL DISTRIBUTORS LTD.,
Neighbourhood Services,Technical Services,Stock,926900,Stock in hand-Inventory system,02-May-2014,2740553-XL113569,537.00,PARK ELECTRICAL DISTRIBUTORS LTD.,
Children and Adult Services,Public Health,Third Party Payments,460803,Contract Payments,02-May-2014,2740555-Alcohol April,"1,166.20",PEASEWAY PARTNERSHIP.,
Children and Adult Services,Childrens Services,Third Party Payments,425020,Rendered by Voluntary Organisations,02-May-2014,2740557-20264,"2,241.00",PERCY HEDLEY FOUNDATION.,
Children and Adult Services,Childrens Services,Third Party Payments,425020,Rendered by Voluntary Organisations,02-May-2014,2740557-20265,"1,472.00",PERCY HEDLEY FOUNDATION.,
Children and Adult Services,Public Health,Third Party Payments,460803,Contract Payments,02-May-2014,2740560-12151/15,"12,009.34",PIONEERING CARE PARTNERSHIP.,
Neighbourhood Services,Direct Services,Supplies and Services,304221,Equipment and Materials,02-May-2014,2740561-4120164728,881.82,PLUMBING TRADE SUPPLIES LTD.,
Neighbourhood Services,Direct Services,Supplies and Services,304221,Equipment and Materials,02-May-2014,2740561-4120164816,"1,106.95",PLUMBING TRADE SUPPLIES LTD.,
Neighbourhood Services,Direct Services,Supplies and Services,304221,Equipment and Materials,02-May-2014,2740561-4120165114,906.77,PLUMBING TRADE SUPPLIES LTD.,
Neighbourhood Services,Direct Services,Supplies and Services,304221,Equipment and Materials,02-May-2014,2740562-4120164729,"1,178.94",PLUMBING TRADE SUPPLIES LTD.,
Neighbourhood Services,Direct Services,Supplies and Services,304221,Equipment and Materials,02-May-2014,2740563-197846,"4,469.51",PLUMBING TRADE SUPPLIES LTD.,
Neighbourhood Services,Direct Services,Third Party Payments,430100,Rendered by Private Contractors,02-May-2014,2740564-151180331,"2,876.00",POLAR (NE) LTD.,
Neighbourhood Services,Culture & Sport,Supplies and Services,312013,"Newspapers, Books and Periodicals",02-May-2014,2740569-UK1644892,"9,775.00",PROQUEST INFORMATION & LEARNING LTD.,
Neighbourhood Services,Direct Services,Third Party Payments,430100,Rendered by Private Contractors,02-May-2014,2740570-65988,"1,440.96",PROTECTOR SECURITY GROUP LTD.,
Neighbourhood Services,Direct Services,Supplies and Services,338078,Services,02-May-2014,2740571-4071,"2,479.00",QW SECURITY LTD.,
Regeneration & Economic Development,Transport and Contracted Services,Third Party Payments,430106,Rendered by Private Contractors,02-May-2014,2740572-200,"7,217.12",R COOPER T/A DC TAXIS.,
Regeneration & Economic Development,Economic Development and Housing,Supplies and Services,384700,Miscellaneous Expenses,02-May-2014,2740575-RED-04-2014-217,"1,000.00",RAY GARDNER DESIGN & BUILD.,
Children and Adult Services,Childrens Services,Third Party Payments,486021,Service Level Agreements,02-May-2014,2740576-2861,"1,670.03",REACH OUT CARE SUPPORT SERVICES LTD.,
Corporate Resources,Legal & Democratic Services,Premises,125009,Rents,02-May-2014,2740581-5994,567.06,RIVERGREEN DEVELOPMENTS PLC.,
Regeneration & Economic Development,Economic Development and Housing,Construction Work,908105,Construction work,02-May-2014,2740584-6459,"2,736.25",ROBERTSON SIMPSON LTD.,
Regeneration & Economic Development,"Spatial Policy, Planning, Assets & Environment",Supplies and Services,340001,Postages,02-May-2014,2740586-9047160956,"1,534.91",ROYAL MAIL GROUP PLC.,
Neighbourhood Services,Direct Services,Third Party Payments,430100,Rendered by Private Contractors,02-May-2014,2740590-APR02414,"1,969.68",RW CHICKEN (SCAFFOLDING) LTD.,
Neighbourhood Services,Direct Services,Third Party Payments,430100,Rendered by Private Contractors,02-May-2014,2740590-APR02514,"1,234.80",RW CHICKEN (SCAFFOLDING) LTD.,
Neighbourhood Services,Direct Services,Third Party Payments,430100,Rendered by Private Contractors,02-May-2014,2740590-APR02814,"2,380.92",RW CHICKEN (SCAFFOLDING) LTD.,
Neighbourhood Services,Technical Services,Supplies and Services,304252,Equipment and Materials,02-May-2014,2740592-14824,"3,268.35",SALFORD VAN HIRE LTD.,
Regeneration & Economic Development,Economic Development and Housing,Supplies and Services,384540,Miscellaneous Expenses,02-May-2014,2740594-013/359,"1,994.00",SARAH PATRICK CONSULTING.,
RED HRA,HRA Capital,Construction Work,908105,Construction work,02-May-2014,2740598-73326,"1,260.00",SGS MIS ENVIRONMENTAL LTD.,
Assistant Chief Executive,Partnerships & Community Engagement Div.,Transfer Payments,525030,Other,02-May-2014,2740601-SJ/126,"2,943.00",SHOPJACKET LTD.,
Regeneration & Economic Development,Economic Development and Housing,Supplies and Services,384700,Miscellaneous Expenses,02-May-2014,2740604-RED-04-2014-216,725.00,SINSO RETAIL SUPPORT LTD.,
Neighbourhood Services,Technical Services,Stock,926900,Stock in hand-Inventory system,02-May-2014,2740606-317698,"140,420.00",SMITH BROS (CAER CONAN) WHOLESALE LTD.,
Neighbourhood Services,Technical Services,Stock,926900,Stock in hand-Inventory system,02-May-2014,2740608-184093,"2,419.60",SNAPFAST.,
Corporate Resources,I.C.T. Services,Construction Work,908105,Construction work,02-May-2014,2740611-INV00938021,"4,494.97",SOFTCAT LTD.,
Neighbourhood Services,Culture & Sport,Supplies and Services,384700,Miscellaneous Expenses,02-May-2014,2740620-NEI,792.00,SPENNYMOOR BOXING ACADEMY.,
Corporate Resources,I.C.T. Services,Supplies and Services,332029,"Printing, Stationery and Gen Off Exps",02-May-2014,2740621-7427,"1,544.00",SPOT ON DISPLAYS LTD.,
Neighbourhood Services,Technical Services,Supplies and Services,304221,Equipment and Materials,02-May-2014,2740626-016408,691.36,STONEGRAVE AGGREGATES LTD.,
Neighbourhood Services,Technical Services,Supplies and Services,304221,Equipment and Materials,02-May-2014,2740626-061285,"1,412.16",STONEGRAVE AGGREGATES LTD.,
Neighbourhood Services,Technical Services,Supplies and Services,304221,Equipment and Materials,02-May-2014,2740626-061324,626.92,STONEGRAVE AGGREGATES LTD.,
Neighbourhood Services,Technical Services,Supplies and Services,304221,Equipment and Materials,02-May-2014,2740626-061370,581.56,STONEGRAVE AGGREGATES LTD.,
Neighbourhood Services,Technical Services,Supplies and Services,304221,Equipment and Materials,02-May-2014,2740626-061444,544.32,STONEGRAVE AGGREGATES LTD.,
Neighbourhood Services,Technical Services,Supplies and Services,304221,Equipment and Materials,02-May-2014,2740626-061519,"1,095.96",STONEGRAVE AGGREGATES LTD.,
Neighbourhood Services,Technical Services,Supplies and Services,304221,Equipment and Materials,02-May-2014,2740626-061554,"1,182.28",STONEGRAVE AGGREGATES LTD.,
Neighbourhood Services,Technical Services,Supplies and Services,304221,Equipment and Materials,02-May-2014,2740626-061741,925.60,STONEGRAVE AGGREGATES LTD.,
Corporate Resources,I.C.T. Services,Stock,926900,Stock in hand-Inventory system,02-May-2014,2740630-4100424887,540.42,SUPPLIES TEAM LTD.,
Dedicated Schools Grant,Dedicated Schools Grant,Supplies and Services,332047,"Printing, Stationery and Gen Off Exps",02-May-2014,2740630-6626765,655.36,SUPPLIES TEAM LTD.,
Children and Adult Services,Education,Construction Work,908105,Construction work,02-May-2014,2740632-INS,"21,210.18",SURGO CONSTRUCTION LTD.,
Children and Adult Services,Childrens Services,Third Party Payments,425040,Rendered by Voluntary Organisations,02-May-2014,2740635-145613,891.90,SWIIS FOSTER CARE LTD.,
Children and Adult Services,Childrens Services,Third Party Payments,425040,Rendered by Voluntary Organisations,02-May-2014,2740635-145614,"1,069.00",SWIIS FOSTER CARE LTD.,
Children and Adult Services,Education,Supplies and Services,324500,Provisions,02-May-2014,2740638-SI-TSW-1015098,"2,984.85",TAYLOR SHAW LTD.,
Children and Adult Services,Public Health,Third Party Payments,460803,Contract Payments,02-May-2014,2740642-FLL39/JULY/13,"1,118.24",TESCO PHARMACY.,
Neighbourhood Services,Culture & Sport,Supplies and Services,312013,"Newspapers, Books and Periodicals",02-May-2014,2740645-22484,855.00,THE READING AGENCY LTD.,
Children and Adult Services,Education,Premises,125009,Rents,02-May-2014,2740647-2988,"4,813.75",THE WORK PLACE (AYCLIFFE) LTD.,
Children and Adult Services,Education,Premises,125009,Rents,02-May-2014,2740647-2989,"1,233.30",THE WORK PLACE (AYCLIFFE) LTD.,
Neighbourhood Services,Technical Services,Stock,926900,Stock in hand-Inventory system,02-May-2014,2740649-N/IN120956,782.72,THOMAS OWEN & SONS (NEWCASTLE) LTD.,
Neighbourhood Services,Technical Services,Stock,926900,Stock in hand-Inventory system,02-May-2014,2740649-N/IN120976,713.54,THOMAS OWEN & SONS (NEWCASTLE) LTD.,
Neighbourhood Services,Culture & Sport,Supplies and Services,338099,Services,02-May-2014,2740655-1415781,"1,000.00",TRINITY MIRROR PUBLISHING LTD.,
Children and Adult Services,Education,Employees,040001,"Recruitment, Instruction and Training",02-May-2014,2740656-TARINV/15296946,652.50,TSL EDUCATION LTD.,
Children and Adult Services,Education,Employees,040001,"Recruitment, Instruction and Training",02-May-2014,2740656-TARINV/15297257,652.50,TSL EDUCATION LTD.,
Children and Adult Services,Education,Employees,040001,"Recruitment, Instruction and Training",02-May-2014,2740656-TARINV/15298179,652.50,TSL EDUCATION LTD.,
Neighbourhood Services,Redundant Direct Services,Supplies and Services,304221,Equipment and Materials,02-May-2014,2740659-49771,725.97,TURF CARE SPECIALISTS LTD.,
Regeneration & Economic Development,Economic Development and Housing,Construction Work,908105,Construction work,02-May-2014,2740660-1798,"95,753.40",TURNEY WYLDE (CONSTRUCTION) LTD.,
Neighbourhood Services,Projects and Business services,"Vehicles, Equipment, Furniture and Fittings",912529,Purchase-equipment,02-May-2014,2740661-92099,"1,985.00",TW STEAM & HEATING SERVICES LTD.,
Neighbourhood Services,Technical Services,Construction Work,908105,Construction work,02-May-2014,2740664-084797,"1,773.78",UNIPART DORMAN.,
Corporate Resources,I.C.T. Services,Stock,926900,Stock in hand-Inventory system,02-May-2014,2740666-2341764,"6,380.00",VIGLEN LTD.,
Corporate Resources,I.C.T. Services,Debtors,930168,Debtor - Mobile Telephone Holding Account,02-May-2014,2740668-71648104,"12,327.34",VODAFONE CORPORATE LTD.,
Corporate Resources,I.C.T. Services,Supplies and Services,344014,Telephones,02-May-2014,2740668-71648567,"50,674.59",VODAFONE CORPORATE LTD.,
Corporate Resources,I.C.T. Services,Debtors,930168,Debtor - Mobile Telephone Holding Account,02-May-2014,2740669-71648104,"12,327.34",VODAFONE LTD.,
Neighbourhood Services,Direct Services,Supplies and Services,304221,Equipment and Materials,02-May-2014,2740670-SIN041186,"1,116.41",VP BASTION LTD.,
Neighbourhood Services,Technical Services,Supplies and Services,304358,Equipment and Materials,02-May-2014,2740671-37133,"2,176.00",W MARLEY AGRICULTURAL CONTRACTORS LTD.,
Children and Adult Services,Childrens Services,Supplies and Services,384638,Miscellaneous Expenses,02-May-2014,2740673-WM07,"2,000.00",WEAR MENCAP.,
Neighbourhood Services,Direct Services,Supplies and Services,304259,Equipment and Materials,02-May-2014,2740680-35515,"1,135.48",WILLOWCRETE MFG CO LTD.,
Neighbourhood Services,Redundant Direct Services,Supplies and Services,304221,Equipment and Materials,02-May-2014,2740680-35618,"1,190.10",WILLOWCRETE MFG CO LTD.,
Children and Adult Services,Head of Adults,Cap Exp on Grants & Other Financial Assistance (REFCUS),918401,Capital grants,02-May-2014,2740682-CAS-04-2014-156,855.36,WINGATE & STATION TOWN FAMILY CENTRE.,
Neighbourhood Services,Direct Services,Supplies and Services,304221,Equipment and Materials,02-May-2014,2740683-12029467,770.76,WOLSELEY UK LTD.,
Neighbourhood Services,Technical Services,Stock,926900,Stock in hand-Inventory system,02-May-2014,2740683-12139838,587.42,WOLSELEY UK LTD.,
Neighbourhood Services,Technical Services,Stock,926900,Stock in hand-Inventory system,02-May-2014,2740683-12140103,"1,742.00",WOLSELEY UK LTD.,
Neighbourhood Services,Direct Services,Third Party Payments,430100,Rendered by Private Contractors,02-May-2014,2740687-30962,"5,725.96",YWC GROUP LTD.,
Children and Adult Services,Childrens Services,Third Party Payments,440999,Other Third Party Payments,06-May-2014,2740865,848.00,REDACTED - PAYMENT TO INDIVIDUAL,
Children and Adult Services,Childrens Services,Third Party Payments,425040,Rendered by Voluntary Organisations,06-May-2014,2740691-14/1440,"3,000.00",ACORN HOUSE (FOSTERING SERVICES) LTD.,
Neighbourhood Services,Technical Services,Supplies and Services,304221,Equipment and Materials,06-May-2014,2740693-19552852,"1,228.84",AGGREGATE INDUSTRIES UK LTD.,
Children and Adult Services,Public Health,Transport,230710,Contract Hire,06-May-2014,2740694-IVC01158488,"5,517.66",ALPHABET (GB) LTD.,
Children and Adult Services,Education,Construction Work,908105,Construction work,06-May-2014,2740695-14418,"4,950.00",AMBIC LTD.,
Children and Adult Services,Public Health,Third Party Payments,460803,Contract Payments,06-May-2014,2740698-FA415/AUG/13,"2,249.36",ASDA PHARMACY.,
Neighbourhood Services,Direct Services,Third Party Payments,430100,Rendered by Private Contractors,06-May-2014,2740699-1418,"1,750.00",AWR ROOFING & ALUMIN RAINWATER SYSTEMS LTD.,
Neighbourhood Services,Technical Services,Stock,926900,Stock in hand-Inventory system,06-May-2014,2740701-151820,606.90,BDPLASTICS LTD.,
Neighbourhood Services,Direct Services,Transport,210057,Repair and Maintenance of Vehicles,06-May-2014,2740703-45045608,789.01,BELL TRUCK SALES LTD.,
Children and Adult Services,Head of Adults,Third Party Payments,473101,Purchase of Care,06-May-2014,2740706-SIN017022,858.00,BID SERVICES WITH DEAF PEOPLE.,
Neighbourhood Services,Culture & Sport,Supplies and Services,384199,Miscellaneous Expenses,06-May-2014,2740707-00032,"9,130.88",BISHOP CATERING LTD.,
Regeneration & Economic Development,"Spatial Policy, Planning, Assets & Environment",Supplies and Services,372009,Subscriptions,06-May-2014,2740714-NERC12666,"1,705.00",BRITISH GEOLOGICAL SURVEY.,
Neighbourhood Services,Direct Services,Third Party Payments,430100,Rendered by Private Contractors,06-May-2014,2740723-448851,760.21,CARRS BILLINGTON AGRICULTURE.,
Neighbourhood Services,Technical Services,Stock,926900,Stock in hand-Inventory system,06-May-2014,2740725-9950/01589223,"1,021.72",CERAMIC TILE DISTRIBUTORS (CTD).,
Neighbourhood Services,Technical Services,Stock,926900,Stock in hand-Inventory system,06-May-2014,2740726-0350260,"2,100.00",CHAMBERLAIN DOORS LTD.,
Assistant Chief Executive,Planning & Performance Division,Supplies and Services,348037,Subsistence,06-May-2014,2740733-483132,"2,586.80",CLICK TRAVEL LTD.,
Children and Adult Services,Public Health,Premises,145009,Cleaning and Domestic Supplies,06-May-2014,2740735-3980004193,"1,578.37",CO DURHAM & DARLINGTON NHS FOUNDATION TRUST.,
Neighbourhood Services,Direct Services,Transport,210057,Repair and Maintenance of Vehicles,06-May-2014,2740739-01001016670,579.00,CROMWELL GROUP (HOLDINGS) LTD.,
Neighbourhood Services,Direct Services,Supplies and Services,304221,Equipment and Materials,06-May-2014,2740748-059-141868,700.40,EDMUNDSON ELECTRICAL LTD.,
Children and Adult Services,Head of Adults,Supplies and Services,308011,Furniture,06-May-2014,2740751-24/04/2014,"1,599.00",ELMOLINE LTD.,
Neighbourhood Services,Technical Services,Stock,926900,Stock in hand-Inventory system,06-May-2014,2740753-18SI/175483,"1,064.00",ENCON INSULATION LTD.,
Neighbourhood Services,Direct Services,Third Party Payments,430100,Rendered by Private Contractors,06-May-2014,2740754-19095,690.21,ENTERPRISE ACCIDENT REPAIR CENTRE LTD.,
Neighbourhood Services,Direct Services,Third Party Payments,430100,Rendered by Private Contractors,06-May-2014,2740757-DCC127,780.00,FARNLEY FARM PARTNERS.,
Neighbourhood Services,Direct Services,Premises,145009,Cleaning and Domestic Supplies,06-May-2014,2740758-1095927,639.40,FCC RECYCLING (UK)  LTD.,
Neighbourhood Services,Direct Services,Third Party Payments,430100,Rendered by Private Contractors,06-May-2014,2740762-93003474,524.07,GARDNER DENVER LTD.,
Regeneration & Economic Development,Economic Development and Housing,Supplies and Services,384700,Miscellaneous Expenses,06-May-2014,2740764-RED-05-2014-011,"1,250.00",GENTOO GROUP LTD.,
Neighbourhood Services,Technical Services,Supplies and Services,304221,Equipment and Materials,06-May-2014,2740766-100420732,"2,700.00",GRAEME HOPPER.,
Neighbourhood Services,Direct Services,Supplies and Services,304221,Equipment and Materials,06-May-2014,2740770-SIN357089,582.30,HANDICARE ACCESSIBILITY LTD.,
Neighbourhood Services,Direct Services,Stock,926004,Stock,06-May-2014,2740771-678969,"38,548.80",HARVEST ENERGY LTD.,
Neighbourhood Services,Direct Services,Stock,926004,Stock,06-May-2014,2740771-680220,"11,982.30",HARVEST ENERGY LTD.,
Neighbourhood Services,Direct Services,Stock,926004,Stock,06-May-2014,2740771-680221,"3,131.00",HARVEST ENERGY LTD.,
Neighbourhood Services,Direct Services,Stock,926004,Stock,06-May-2014,2740771-680223,"18,872.69",HARVEST ENERGY LTD.,
Neighbourhood Services,Redundant Direct Services,Supplies and Services,304221,Equipment and Materials,06-May-2014,2740772-TBINV01/14,"4,220.00",HASWELL PARISH COUNCIL.,
Regeneration & Economic Development,"Spatial Policy, Planning, Assets & Environment",Supplies and Services,332029,"Printing, Stationery and Gen Off Exps",06-May-2014,2740773-21158,685.00,HAYWARDS.,
Dedicated Schools Grant,Dedicated Schools Grant,Third Party Payments,440080,Other Third Party Payments,06-May-2014,2740775-SIN049471,"3,993.90",HENSHAWS SOCIETY FOR THE BLIND.,
Neighbourhood Services,Direct Services,Third Party Payments,430100,Rendered by Private Contractors,06-May-2014,2740778-53830,586.00,HOGARTH COACHWORKS LTD.,
Neighbourhood Services,Direct Services,Third Party Payments,430100,Rendered by Private Contractors,06-May-2014,2740778-53938,524.00,HOGARTH COACHWORKS LTD.,
Neighbourhood Services,Direct Services,Supplies and Services,304221,Equipment and Materials,06-May-2014,2740780-B33/0066886,768.10,HOWDENS JOINERY LTD.,
Children and Adult Services,Education,Supplies and Services,384199,Miscellaneous Expenses,06-May-2014,2740790-0041150,"4,937.50",INTRAIN SOLUTIONS LTD.,
Neighbourhood Services,Culture & Sport,Supplies and Services,336005,Advertising,06-May-2014,2740792-12272,"3,288.80",ISAPPHIRE LTD.,
Neighbourhood Services,Culture & Sport,Supplies and Services,384540,Miscellaneous Expenses,06-May-2014,2740792-12274,747.12,ISAPPHIRE LTD.,
Neighbourhood Services,Projects and Business services,Third Party Payments,430114,Rendered by Private Contractors,06-May-2014,2740793-77060,"3,420.80",J & B RECYCLING LTD.,
Neighbourhood Services,Projects and Business services,Third Party Payments,430114,Rendered by Private Contractors,06-May-2014,2740793-77061,"14,595.00",J & B RECYCLING LTD.,
Neighbourhood Services,Projects and Business services,Third Party Payments,430114,Rendered by Private Contractors,06-May-2014,2740793-77425,"5,478.84",J & B RECYCLING LTD.,
Neighbourhood Services,Technical Services,Stock,926900,Stock in hand-Inventory system,06-May-2014,2740794-NI024722,"40,972.00",JOHN MACLEAN & SONS ELECTRICAL (DINGWALL) LTD.,
Neighbourhood Services,Technical Services,Third Party Payments,430100,Rendered by Private Contractors,06-May-2014,2740797-0042,"6,177.60",JOSHUA THOMAS CONSTRUCTION LTD.,
Children and Adult Services,Public Health,Third Party Payments,460802,Contract Payments,06-May-2014,2740799-A83068/JULY/13,951.94,JUPITER HOUSE PRACTICE.,
Regeneration & Economic Development,Transport and Contracted Services,Supplies and Services,342053,Computers and Communications,06-May-2014,2740801-T1413431,"3,960.00",KEYSOFT SOLUTIONS LTD.,
Neighbourhood Services,Direct Services,Third Party Payments,430100,Rendered by Private Contractors,06-May-2014,2740803-INV00457682,610.00,LANES GROUP PLC.,
Children and Adult Services,Education,Transport,230007,Contract Hire,06-May-2014,2740805-19201,"1,867.50",LEE`S COACHES LTD.,
Regeneration & Economic Development,Economic Development and Housing,Supplies and Services,384700,Miscellaneous Expenses,06-May-2014,2740813-RED-05-2014-010,"1,000.00",LJ RETAIL GROUP.,
Neighbourhood Services,Projects and Business services,Supplies and Services,304357,Equipment and Materials,06-May-2014,2740815-10,960.00,M & E & MR WALTON.,
Children and Adult Services,Public Health,Third Party Payments,460803,Contract Payments,06-May-2014,2740816-AUG2013,"1,124.81",M & M PHARMACIES LTD.,
Children and Adult Services,Head of Adults,Premises,145051,Cleaning and Domestic Supplies,06-May-2014,2740818-01466,545.48,MAX RECYCLE T/A THE DURHAM COMPANY (TDC).,
Neighbourhood Services,Direct Services,Supplies and Services,304221,Equipment and Materials,06-May-2014,2740820-51055,"1,913.25",MIKROFILL SYSTEMS LTD.,
Neighbourhood Services,Direct Services,Transport,210057,Repair and Maintenance of Vehicles,06-May-2014,2740828-INVDUR00311450,730.00,NE TRUCK SPARES LTD.,
RED HRA,HRA Capital,Construction Work,908105,Construction work,06-May-2014,2740830-8047,842.50,NELSONS OF DURHAM.,
Regeneration & Economic Development,Strategy Programmes and Performance,Employees,040149,"Recruitment, Instruction and Training",06-May-2014,2740831-50058642,"1,800.00",NEW COLLEGE DURHAM.,
Regeneration & Economic Development,Strategy Programmes and Performance,Employees,040149,"Recruitment, Instruction and Training",06-May-2014,2740831-50058643,"1,800.00",NEW COLLEGE DURHAM.,
Regeneration & Economic Development,Strategy Programmes and Performance,Employees,040149,"Recruitment, Instruction and Training",06-May-2014,2740831-50058645,"1,800.00",NEW COLLEGE DURHAM.,
Regeneration & Economic Development,Strategy Programmes and Performance,Employees,040149,"Recruitment, Instruction and Training",06-May-2014,2740831-50058646,"1,800.00",NEW COLLEGE DURHAM.,
Regeneration & Economic Development,Strategy Programmes and Performance,Employees,040149,"Recruitment, Instruction and Training",06-May-2014,2740831-50058649,"1,800.00",NEW COLLEGE DURHAM.,
Regeneration & Economic Development,Strategy Programmes and Performance,Employees,040149,"Recruitment, Instruction and Training",06-May-2014,2740831-50058653,"1,800.00",NEW COLLEGE DURHAM.,
Regeneration & Economic Development,Strategy Programmes and Performance,Employees,040149,"Recruitment, Instruction and Training",06-May-2014,2740831-50058654,"1,800.00",NEW COLLEGE DURHAM.,
Neighbourhood Services,Direct Services,Third Party Payments,430100,Rendered by Private Contractors,06-May-2014,2740835-1361956,681.38,NORTH EAST TRUCK & VAN LTD.,
Neighbourhood Services,Direct Services,Transport,210057,Repair and Maintenance of Vehicles,06-May-2014,2740835-21690164,523.67,NORTH EAST TRUCK & VAN LTD.,
Neighbourhood Services,Direct Services,Supplies and Services,304221,Equipment and Materials,06-May-2014,2740837-48143,"8,979.00",NORTHERN HOUSING CONSORTIUM LTD.,
Neighbourhood Services,Direct Services,Transport,210057,Repair and Maintenance of Vehicles,06-May-2014,2740849-578294,600.03,QUICKCO.,
Children and Adult Services,Childrens Services,Third Party Payments,425040,Rendered by Voluntary Organisations,06-May-2014,2740851-618,"2,914.20",REACH OUT CARE LTD.,
Neighbourhood Services,Direct Services,Transport,210057,Repair and Maintenance of Vehicles,06-May-2014,2740854-705437,562.91,RICKERBY LTD.,
RED HRA,HRA Capital,Construction Work,908105,Construction work,06-May-2014,2740863-73368,"1,400.00",SGS MIS ENVIRONMENTAL LTD.,
RED HRA,HRA Capital,Construction Work,908105,Construction work,06-May-2014,2740863-73382,552.00,SGS MIS ENVIRONMENTAL LTD.,
Corporate Resources,Legal & Democratic Services,Supplies and Services,304259,Equipment and Materials,06-May-2014,2740864-0000237459,"6,944.40",SHAW & SONS LTD.,
Corporate Resources,Legal & Democratic Services,Supplies and Services,304259,Equipment and Materials,06-May-2014,2740864-0000237460,962.76,SHAW & SONS LTD.,
Children and Adult Services,Education,Third Party Payments,440999,Other Third Party Payments,06-May-2014,2740870-200933,"26,407.08",SKILLSHARE NORTH EAST LTD.,
Corporate Resources,I.C.T. Services,Construction Work,908105,Construction work,06-May-2014,2740871-INV0Q940329,"4,980.00",SOFTCAT LTD.,
Corporate Resources,I.C.T. Services,Stock,926900,Stock in hand-Inventory system,06-May-2014,2740872-OP/L835877,"2,073.60",SPECIALIST COMPUTER CENTRES PLC.,
Children and Adult Services,Childrens Services,Third Party Payments,425040,Rendered by Voluntary Organisations,06-May-2014,2740874-145921,910.00,SWIIS FOSTER CARE LTD.,
Children and Adult Services,Childrens Services,Third Party Payments,425040,Rendered by Voluntary Organisations,06-May-2014,2740874-145922,"1,069.00",SWIIS FOSTER CARE LTD.,
Children and Adult Services,Childrens Services,Third Party Payments,425040,Rendered by Voluntary Organisations,06-May-2014,2740874-145923,"1,075.00",SWIIS FOSTER CARE LTD.,
Children and Adult Services,Childrens Services,Third Party Payments,425040,Rendered by Voluntary Organisations,06-May-2014,2740874-145924,891.90,SWIIS FOSTER CARE LTD.,
Children and Adult Services,Childrens Services,Third Party Payments,425040,Rendered by Voluntary Organisations,06-May-2014,2740874-145925,"1,069.00",SWIIS FOSTER CARE LTD.,
Corporate Resources,I.C.T. Services,Construction Work,908105,Construction work,06-May-2014,2740878-PSI-9086556,"1,098.40",TECHNOLOGY SERVICES GROUP LTD.,
Corporate Resources,I.C.T. Services,Construction Work,908105,Construction work,06-May-2014,2740878-PSI-9086581,"1,432.80",TECHNOLOGY SERVICES GROUP LTD.,
Corporate Resources,I.C.T. Services,Construction Work,908105,Construction work,06-May-2014,2740878-PSI-9086601,"1,013.60",TECHNOLOGY SERVICES GROUP LTD.,
Neighbourhood Services,Direct Services,Transport,210057,Repair and Maintenance of Vehicles,06-May-2014,2740879-96296198,507.37,TERBERG MATEC (UK) LTD.,
Neighbourhood Services,Direct Services,Third Party Payments,430100,Rendered by Private Contractors,06-May-2014,2740881-C51742,"1,469.82",TH WHITE LTD.,
Neighbourhood Services,Direct Services,Supplies and Services,304221,Equipment and Materials,06-May-2014,2740883-98907,921.88,TOMMY WARDLE.,
Children and Adult Services,Childrens Services,Supplies and Services,304259,Equipment and Materials,06-May-2014,2740885-109698,770.00,TP ELECTRICAL SUPPLIES & FIXINGS LTD.,
RED HRA,Housing Revenue Account,Premises,125009,Rents,06-May-2014,2740888-2540,"16,250.00",WELLSPRINGS PROPERTIES LTD.,
Neighbourhood Services,Technical Services,Stock,926900,Stock in hand-Inventory system,06-May-2014,2740895-12247577,656.10,WOLSELEY UK LTD.,
Neighbourhood Services,Direct Services,Transport,210057,Repair and Maintenance of Vehicles,06-May-2014,2740897-SI62356,729.08,ZOELLER WASTE SYSTEMS LTD.,
Neighbourhood Services,Direct Services,Third Party Payments,430100,Rendered by Private Contractors,06-May-2014,2740897-SVI26649,785.98,ZOELLER WASTE SYSTEMS LTD.,
Neighbourhood Services,Culture & Sport,Supplies and Services,338047,Services,07-May-2014,231041,"5,129.78",DURHAM SCHOOL.,
RED HRA,HRA Centrally Managed,Supplies and Services,384999,Miscellaneous Expenses,07-May-2014,231090,500.80,REDACTED - PAYMENT TO INDIVIDUAL,
RED HRA,HRA Centrally Managed,Supplies and Services,384999,Miscellaneous Expenses,07-May-2014,231112,588.40,REDACTED - PAYMENT TO INDIVIDUAL,
RED HRA,HRA Centrally Managed,Supplies and Services,384999,Miscellaneous Expenses,07-May-2014,231114,512.75,REDACTED - PAYMENT TO INDIVIDUAL,
Neighbourhood Services,Culture & Sport,Supplies and Services,336005,Advertising,07-May-2014,2741657,850.00,IAN WELDON PHOTOGRAPHY.,
Neighbourhood Services,Culture & Sport,Supplies and Services,338099,Services,07-May-2014,2741674,830.00,JOHN MURDOCH.,
Regeneration & Economic Development,"Spatial Policy, Planning, Assets & Environment",Construction Work,908105,Construction work,07-May-2014,2741675,"39,960.00",JOHN WADE (HAULAGE) LTD.,
RED HRA,HRA Centrally Managed,Supplies and Services,384999,Miscellaneous Expenses,07-May-2014,2741721,912.19,REDACTED - PAYMENT TO INDIVIDUAL,
Children and Adult Services,Education,Premises,145009,Cleaning and Domestic Supplies,07-May-2014,230953-003363,570.00,A & B INDUSTRIAL CLEANING LTD.,
Regeneration & Economic Development,"Spatial Policy, Planning, Assets & Environment",Supplies and Services,338066,Services,07-May-2014,230960-ILLANSCAPES1,"2,450.00",CASSOP ENVIRONMENTAL EXTRA.,
Assistant Chief Executive,Partnerships & Community Engagement Div.,Supplies and Services,384085,Miscellaneous Expenses,07-May-2014,230961-ARML01-14BATA02-14,"1,650.00",CHESTER LE STREET AND DISTRICT ALLOTMENTS SOCIETY FLOWER SHOW.,
Assistant Chief Executive,Partnerships & Community Engagement Div.,Supplies and Services,384085,Miscellaneous Expenses,07-May-2014,230962-DAVK02-14,600.00,CHESTER MOOR COMMUNITY GROUP.,
Neighbourhood Services,Culture & Sport,Supplies and Services,338047,Services,07-May-2014,230967-23/4/14,"3,652.30",CROOK ROTARY CLUB.,
Regeneration & Economic Development,Economic Development and Housing,Supplies and Services,384700,Miscellaneous Expenses,07-May-2014,230968-RED-05-2014-001,"2,000.00",D & J FRANKS.,
Neighbourhood Services,Culture & Sport,Supplies and Services,338099,Services,07-May-2014,231045-11490,"2,010.00",FOOLS PARADISE LTD.,
Neighbourhood Services,Culture & Sport,Supplies and Services,338099,Services,07-May-2014,231045-11491,"1,470.00",FOOLS PARADISE LTD.,
Neighbourhood Services,Culture & Sport,Supplies and Services,338099,Services,07-May-2014,231045-11492,"1,535.00",FOOLS PARADISE LTD.,
Regeneration & Economic Development,Economic Development and Housing,Income,720334,Fees and Charges,07-May-2014,231047-RED-04-2014-220,"1,800.00",REDACTED - PAYMENT TO INDIVIDUAL,
Neighbourhood Services,Projects and Business services,Third Party Payments,430120,Rendered by Private Contractors,07-May-2014,231056-UI10019055,603.00,INTEGRATED UTILITY SERVICES LTD.,
Neighbourhood Services,Direct Services,Third Party Payments,430100,Rendered by Private Contractors,07-May-2014,231060-B03468,652.74,JOHN HART COMMERCIALS LTD.,
Children and Adult Services,Education,Transport,230006,Contract Hire,07-May-2014,231072-007,946.00,MICHAEL CONNOR.,
Neighbourhood Services,Technical Services,Construction Work,908202,Capital - Public Utilities - Telephones Services,07-May-2014,231122-RED-04-2014-203,"277,033.67",OPENREACH LLU.,
Children and Adult Services,Childrens Services,Supplies and Services,338044,Services,07-May-2014,231125-07022014,805.20,PAULINE FAIRBAIRN CONSULTANCY LTD.,
Children and Adult Services,Education,Supplies and Services,384199,Miscellaneous Expenses,07-May-2014,231126-22042014,900.00,PETER WATKINSON.,
Children and Adult Services,Public Health,Premises,145009,Cleaning and Domestic Supplies,07-May-2014,231128-14094,540.00,QUALITY CLEANING SERVICES (NORTHERN) LTD.,
Assistant Chief Executive,Partnerships & Community Engagement Div.,Supplies and Services,384085,Miscellaneous Expenses,07-May-2014,231131-FORS02-14SHAK02-14,500.00,SEAHAM METHODIST CHURCH.,
Assistant Chief Executive,Partnerships & Community Engagement Div.,Supplies and Services,384085,Miscellaneous Expenses,07-May-2014,231133-ROBJ02-14,500.00,SEDGEFIELD IN BLOOM.,
Regeneration & Economic Development,"Spatial Policy, Planning, Assets & Environment",Income,720190,Fees and Charges,07-May-2014,231137-RED-04-2014-222,"2,695.00",SKM ENVIROS.,
Children and Adult Services,Education,Transport,230008,Contract Hire,07-May-2014,231140-3473,840.00,STATION TAXIS (SUNDERLAND).,
Children and Adult Services,Childrens Services,Third Party Payments,440016,Other Third Party Payments,07-May-2014,231162-947810,"1,008.34",REDACTED - PAYMENT TO INDIVIDUAL,
Children and Adult Services,Childrens Services,Supplies and Services,364352,Grants to Voluntary Organisations,07-May-2014,2741110-948470,630.71,REDACTED - PAYMENT TO INDIVIDUAL,
Children and Adult Services,Childrens Services,Third Party Payments,440035,Other Third Party Payments,07-May-2014,2741110-948471,575.71,REDACTED - PAYMENT TO INDIVIDUAL,
Children and Adult Services,Childrens Services,Third Party Payments,440016,Other Third Party Payments,07-May-2014,2741185-947809,"1,743.00",REDACTED - PAYMENT TO INDIVIDUAL,
Children and Adult Services,Childrens Services,Third Party Payments,440028,Other Third Party Payments,07-May-2014,2741481-948464,714.84,REDACTED - PAYMENT TO INDIVIDUAL,
Neighbourhood Services,Direct Services,Supplies and Services,344033,Telephones,07-May-2014,2741508-0900000381-007,"11,806.84",AIRWAVE SOLUTIONS LTD.,
Neighbourhood Services,Technical Services,Supplies and Services,304221,Equipment and Materials,07-May-2014,2741516-12689,"4,994.22",APOLLO PRODUCTS LTD.,
Regeneration & Economic Development,Economic Development and Housing,Supplies and Services,384999,Miscellaneous Expenses,07-May-2014,2741562-RGEI/00000372,"1,522.13",CESTRIA HOUSING.,
Children and Adult Services,Childrens Services,Transport,235057,Public Transport,07-May-2014,2741573-480988,"5,584.92",CLICK TRAVEL LTD.,
Corporate Resources,Legal & Democratic Services,Supplies and Services,338057,Services,07-May-2014,2741575-3910003741,"2,253.00",CO DURHAM & DARLINGTON NHS FOUNDATION TRUST.,
Corporate Resources,Legal & Democratic Services,Supplies and Services,338057,Services,07-May-2014,2741575-3910003742,"1,203.00",CO DURHAM & DARLINGTON NHS FOUNDATION TRUST.,
Neighbourhood Services,Technical Services,Third Party Payments,430100,Rendered by Private Contractors,07-May-2014,2741584-10183,779.93,COUPE LINE LTD.,
Neighbourhood Services,Technical Services,Third Party Payments,430100,Rendered by Private Contractors,07-May-2014,2741584-10184,"1,602.58",COUPE LINE LTD.,
Neighbourhood Services,Technical Services,Third Party Payments,430100,Rendered by Private Contractors,07-May-2014,2741584-10206,"2,475.16",COUPE LINE LTD.,
Neighbourhood Services,Technical Services,Third Party Payments,430100,Rendered by Private Contractors,07-May-2014,2741584-10208,601.96,COUPE LINE LTD.,
Neighbourhood Services,Technical Services,Third Party Payments,430100,Rendered by Private Contractors,07-May-2014,2741584-15823,"1,377.50",COUPE LINE LTD.,
Assistant Chief Executive,Planning & Performance Division,Supplies and Services,304259,Equipment and Materials,07-May-2014,2741588-8791.,"4,180.00",CROWNFAST PRESENTATIONAL PACKAGING T/A PELAW PACKAGING.,
Assistant Chief Executive,Planning & Performance Division,Supplies and Services,304259,Equipment and Materials,07-May-2014,2741588-8811.,"1,770.00",CROWNFAST PRESENTATIONAL PACKAGING T/A PELAW PACKAGING.,
Children and Adult Services,Education,Supplies and Services,384199,Miscellaneous Expenses,07-May-2014,2741606-193/14,"1,312.00",DISC LTD.,
Corporate Resources,Legal & Democratic Services,Creditors,952027,Creditor-lab grp-deds frm memb all,07-May-2014,2741611-RES-02-2014-40,"7,280.27",DURHAM COUNTY COUNCIL LABOUR GROUP.,
Assistant Chief Executive,Partnerships & Community Engagement Div.,Transfer Payments,525030,Other,07-May-2014,2741613,"5,000.00",DURHAM POLICE & CRIME COMMISSIONER.,
Neighbourhood Services,Direct Services,Supplies and Services,304221,Equipment and Materials,07-May-2014,2741616-059-141281,561.48,EDMUNDSON ELECTRICAL LTD.,
Neighbourhood Services,Technical Services,Supplies and Services,304357,Equipment and Materials,07-May-2014,2741633-DCC270414,"13,000.17",GAP GROUP LTD.,
Neighbourhood Services,Direct Services,Premises,120009,Energy Costs,07-May-2014,2741635-253905,"1,646.71",GAZPROM MARKETING & TRADING RETAIL LTD.,
Corporate Resources,Human Resources,Supplies and Services,384150,Miscellaneous Expenses,07-May-2014,2741640-52755004R,"4,114.80",GLAXO SMITHKLINE UK LTD.,
Corporate Resources,I.C.T. Services,Employees,040149,"Recruitment, Instruction and Training",07-May-2014,2741643-14680,"3,600.00",GOSS INTERACTIVE LTD.,
Neighbourhood Services,Technical Services,Supplies and Services,304260,Equipment and Materials,07-May-2014,2741649-679368,635.37,HARVEST ENERGY LTD.,
Neighbourhood Services,Direct Services,Supplies and Services,304221,Equipment and Materials,07-May-2014,2741670-3307/0323549,754.39,JEWSON LTD.,
Neighbourhood Services,Technical Services,Supplies and Services,304221,Equipment and Materials,07-May-2014,2741680-BAI218197,519.40,JT DOVE LTD.,
Neighbourhood Services,Technical Services,Supplies and Services,304221,Equipment and Materials,07-May-2014,2741680-BI1130823,"1,300.00",JT DOVE LTD.,
Neighbourhood Services,Technical Services,Supplies and Services,304221,Equipment and Materials,07-May-2014,2741680-CNI19155/D,"1,004.02",JT DOVE LTD.,
Neighbourhood Services,Technical Services,Supplies and Services,304221,Equipment and Materials,07-May-2014,2741680-CNI19157/D,713.60,JT DOVE LTD.,
Neighbourhood Services,Technical Services,Supplies and Services,304221,Equipment and Materials,07-May-2014,2741680-CNI19200/D,"2,002.93",JT DOVE LTD.,
Children and Adult Services,Head of Adults,Transport,230005,Contract Hire,07-May-2014,2741681-WV079/004,819.00,KEITH HAMMOND T/A FERRYHILL VILLAGE TRAVEL.,
Children and Adult Services,Education,Supplies and Services,384199,Miscellaneous Expenses,07-May-2014,2741688-19715,510.00,LEE`S COACHES LTD.,
Neighbourhood Services,Technical Services,Supplies and Services,338027,Services,07-May-2014,2741696-10246,"1,485.00",LUCION ENVIRONMENTAL LLP LTD.,
Children and Adult Services,Head of Adults,Transport,230005,Contract Hire,07-May-2014,2741698-55,780.00,M BUTCHER.,
Children and Adult Services,Head of Adults,Premises,145051,Cleaning and Domestic Supplies,07-May-2014,2741706-110099,"2,074.80",MAX RECYCLE T/A THE DURHAM COMPANY (TDC).,
RED HRA,HRA Capital,Construction Work,908105,Construction work,07-May-2014,2741708-197263,"22,634.37",MGM LTD.,
Children and Adult Services,Head of Adults,Transport,230005,Contract Hire,07-May-2014,2741709-00654,948.00,MICHAELS TRAVEL.,
Children and Adult Services,Childrens Services,Supplies and Services,336005,Advertising,07-May-2014,2741741-4653654,500.00,NEWSQUEST (YORKSHIRE & NORTH EAST) LTD.,
Neighbourhood Services,Technical Services,Premises,120009,Energy Costs,07-May-2014,2741751-NNO7J6LM,"245,210.58",NPOWER.,
Assistant Chief Executive,Partnerships & Community Engagement Div.,Cap Exp on Grants & Other Financial Assistance (REFCUS),918004,Contributions to other bodies,07-May-2014,2741754,"2,500.00",OAKENSHAW COMMUNITY ASSOCIATION.,
Corporate Resources,Corporate Finance,Supplies and Services,342051,Computers and Communications,07-May-2014,2741760-1440464,"46,741.11",ORACLE CORPORATION UK LTD.,
Corporate Resources,Corporate Finance,Supplies and Services,342051,Computers and Communications,07-May-2014,2741760-1440740,"77,332.14",ORACLE CORPORATION UK LTD.,
Neighbourhood Services,Direct Services,Third Party Payments,430100,Rendered by Private Contractors,07-May-2014,2741764-212B,644.34,PARAMOUNT CEILINGS & PARTITIONS.,
Regeneration & Economic Development,"Spatial Policy, Planning, Assets & Environment",Supplies and Services,332029,"Printing, Stationery and Gen Off Exps",07-May-2014,2741777-603022,"3,042.00",POTTS PRINTERS LTD.,
Assistant Chief Executive,Partnerships & Community Engagement Div.,Cap Exp on Grants & Other Financial Assistance (REFCUS),918004,Contributions to other bodies,07-May-2014,2741785,"3,000.00",QUARRINGTON HILL COMMUNITY ASSOCIATION.,
Regeneration & Economic Development,Econ Dev and Regen Financing,Creditors,952146,Creditor-Section 106 agreement,07-May-2014,2741798-RED-01-2014-118,"18,000.00",SACRISTON PARISH COUNCIL.,
Children and Adult Services,Education,Supplies and Services,384199,Miscellaneous Expenses,07-May-2014,2741820-214235,660.00,SIMPLY SPORT LTD.,
Regeneration & Economic Development,Economic Development and Housing,Supplies and Services,338066,Services,07-May-2014,2741829-INV00135,500.00,STEM NORTH EAST.,
Children and Adult Services,Head of Adults,Transport,230005,Contract Hire,07-May-2014,2741830-DCC060/SLD005,920.04,STEPHEN COXON.,
Neighbourhood Services,Direct Services,Supplies and Services,304221,Equipment and Materials,07-May-2014,2741835-1153163,"1,499.25",T CROSSLING & CO LTD.,
Neighbourhood Services,Direct Services,Supplies and Services,304221,Equipment and Materials,07-May-2014,2741835-1154700,"1,117.75",T CROSSLING & CO LTD.,
Neighbourhood Services,Direct Services,Supplies and Services,304221,Equipment and Materials,07-May-2014,2741835-1156655,"2,281.00",T CROSSLING & CO LTD.,
Children and Adult Services,Planning & Service Strategy,Supplies and Services,342053,Computers and Communications,07-May-2014,2741842-430024783,"16,179.00",TEES ESK & WEAR VALLEYS NHS FOUNDATION TRUST.,
Assistant Chief Executive,Partnerships & Community Engagement Div.,Supplies and Services,384085,Miscellaneous Expenses,07-May-2014,2741843-BELR01-14HARB02-14,"1,600.00",TEESDALE CITIZENS ADVICE BUREAU.,
Neighbourhood Services,Culture & Sport,Supplies and Services,304252,Equipment and Materials,07-May-2014,2741848-3005,512.00,THE WOOD FLOOR CO (UK) LTD.,
Dedicated Schools Grant,Dedicated Schools Grant,Transport,230005,Contract Hire,07-May-2014,2741860-58,"1,318.00",TRIDENT TAXIS.,
Assistant Chief Executive,Partnerships & Community Engagement Div.,Supplies and Services,384086,Miscellaneous Expenses,07-May-2014,2741861,"2,000.00",TRIMDON PARISH COUNCIL.,
Children and Adult Services,Head of Adults,Transport,230005,Contract Hire,07-May-2014,2741881-874,"1,228.00",WAYNE`S TAXIS.,
Children and Adult Services,Head of Adults,Transport,230005,Contract Hire,07-May-2014,2741881-876,"1,400.00",WAYNE`S TAXIS.,
Neighbourhood Services,Technical Services,Supplies and Services,304221,Equipment and Materials,07-May-2014,2741885-820,"7,215.00",WILF HUSBAND PLANT HIRE.,
Neighbourhood Services,Technical Services,Stock,926900,Stock in hand-Inventory system,07-May-2014,2741888-11973202,611.79,WOLSELEY UK LTD.,
RED HRA,HRA Capital,Construction Work,908105,Construction work,07-May-2014,2741893-30640,"2,426.53",YWC GROUP LTD.,
Children and Adult Services,Public Health,Third Party Payments,460802,Contract Payments,08-May-2014,2742013,558.46,JUPITER HOUSE PRACTICE.,
RED HRA,HRA Centrally Managed,Creditors,952191,Creditor-HRA-rents-refunds,08-May-2014,2742056,"1,040.38",REDACTED - PAYMENT TO INDIVIDUAL,
RED HRA,HRA Centrally Managed,Creditors,952191,Creditor-HRA-rents-refunds,08-May-2014,2742069,500.00,REDACTED - PAYMENT TO INDIVIDUAL,
RED HRA,HRA Centrally Managed,Creditors,952191,Creditor-HRA-rents-refunds,08-May-2014,2742073,596.91,REDACTED - PAYMENT TO INDIVIDUAL,
RED HRA,HRA Centrally Managed,Creditors,952191,Creditor-HRA-rents-refunds,08-May-2014,2742074,508.86,REDACTED - PAYMENT TO INDIVIDUAL,
RED HRA,HRA Centrally Managed,Creditors,952191,Creditor-HRA-rents-refunds,08-May-2014,2742086,"1,799.80",REDACTED - PAYMENT TO INDIVIDUAL,
RED HRA,HRA Centrally Managed,Creditors,952191,Creditor-HRA-rents-refunds,08-May-2014,2742087,565.48,REDACTED - PAYMENT TO INDIVIDUAL,
RED HRA,HRA Centrally Managed,Creditors,952191,Creditor-HRA-rents-refunds,08-May-2014,2742088,803.97,REDACTED - PAYMENT TO INDIVIDUAL,
RED HRA,HRA Centrally Managed,Creditors,952191,Creditor-HRA-rents-refunds,08-May-2014,2742094,546.75,REDACTED - PAYMENT TO INDIVIDUAL,
Regeneration & Economic Development,"Spatial Policy, Planning, Assets & Environment",Supplies and Services,338066,Services,08-May-2014,2742097,"20,603.62",NEPRO LTD.,
Children and Adult Services,Education,Construction Work,908105,Construction work,08-May-2014,2742145,"123,490.31",SURGO CONSTRUCTION LTD.,
Neighbourhood Services,Culture & Sport,Construction Work,908105,Construction work,08-May-2014,2741897-14237,"11,210.60",ACROL AIR CONDITIONING CO LTD.,
Neighbourhood Services,Technical Services,Third Party Payments,430100,Rendered by Private Contractors,08-May-2014,2741899-443,500.00,ALL SEASONS ARBORISTS.,
Neighbourhood Services,Technical Services,Stock,926900,Stock in hand-Inventory system,08-May-2014,2741901-14432,"1,027.13",AMECAL.,
Neighbourhood Services,Technical Services,Supplies and Services,304221,Equipment and Materials,08-May-2014,2741904-19439,887.40,ARBOR TIMBER & BUILDERS MERCHANTS LTD.,
Neighbourhood Services,Technical Services,Stock,926900,Stock in hand-Inventory system,08-May-2014,2741905-921783994,976.54,ARCO LTD.,
Children and Adult Services,Public Health,Third Party Payments,460803,Contract Payments,08-May-2014,2741908-FDE75/NOV13,878.00,ASDA PHARMACY.,
Children and Adult Services,Public Health,Third Party Payments,460803,Contract Payments,08-May-2014,2741910-TW299/NOV13,"1,303.03",ASDA PHARMACY.,
Neighbourhood Services,Direct Services,Third Party Payments,430100,Rendered by Private Contractors,08-May-2014,2741912-21134,"20,208.00",ASTROFADE LTD.,
Children and Adult Services,Head of Adults,Transport,230005,Contract Hire,08-May-2014,2741914-DCC8APRIL14,"2,195.00",ATLAS TAXIS BISHOP AUCKLAND.,
Children and Adult Services,Head of Adults,Transport,230005,Contract Hire,08-May-2014,2741914-DDCAAPRIL14,"1,715.00",ATLAS TAXIS BISHOP AUCKLAND.,
Children and Adult Services,Public Health,Third Party Payments,460802,Contract Payments,08-May-2014,2741924-A830047/MAR/2014,"1,191.00",BLACKHALL & PETERLEE PRACTICE.,
Children and Adult Services,Public Health,Third Party Payments,460802,Contract Payments,08-May-2014,2741929-9217,641.79,BOOTS THE CHEMISTS LTD.,
Children and Adult Services,Public Health,Third Party Payments,460802,Contract Payments,08-May-2014,2741931-9218,"2,139.30",BOOTS THE CHEMISTS LTD.,
Children and Adult Services,Public Health,Third Party Payments,460802,Contract Payments,08-May-2014,2741935-9208,665.56,BOOTS THE CHEMISTS LTD.,
Regeneration & Economic Development,Economic Development and Housing,Premises,120021,Energy Costs,08-May-2014,2741940-600504885,"73,171.42",BRITISH GAS BUSINESS.,
Neighbourhood Services,Culture & Sport,Premises,120021,Energy Costs,08-May-2014,2741946-17344583,751.47,CALOR GAS LTD.,
Corporate Resources,Financial Services,Supplies and Services,384199,Miscellaneous Expenses,08-May-2014,2741947-93575872,"6,312.00",CAPITA BUSINESS SERVICES LTD.,
Neighbourhood Services,Culture & Sport,Supplies and Services,324001,Provisions,08-May-2014,2741948-9840128288,579.30,CARLSBERG UK LTD.,
Corporate Resources,Financial Services,Supplies and Services,364999,Grants to Voluntary Organisations,08-May-2014,2741952-CACD001,"115,125.00",CITIZENS ADVICE COUNTY DURHAM.,
Neighbourhood Services,Direct Services,Premises,145009,Cleaning and Domestic Supplies,08-May-2014,2741953-CC92370,796.00,CITY CLEAN.,
Children and Adult Services,Public Health,Third Party Payments,460803,Contract Payments,08-May-2014,2741955-FQR60,"1,359.54",CO-OPERATIVE PHARMACY.,
Children and Adult Services,Public Health,Third Party Payments,460803,Contract Payments,08-May-2014,2741956-FDP23/SEPT/13,578.90,CO-OPERATIVE PHARMACY.,
Children and Adult Services,Public Health,Third Party Payments,460803,Contract Payments,08-May-2014,2741956-FOP23/NOV13,731.72,CO-OPERATIVE PHARMACY.,
Children and Adult Services,Public Health,Third Party Payments,460803,Contract Payments,08-May-2014,2741958-FGN07/NOV13,624.14,CO-OPERATIVE PHARMACY.,
Regeneration & Economic Development,Economic Development and Housing,Premises,120021,Energy Costs,08-May-2014,2741960-12634204,568.05,CORONA ENERGY RETAIL 2 LTD.,
Regeneration & Economic Development,Economic Development and Housing,Premises,120021,Energy Costs,08-May-2014,2741960-888209420,993.20,CORONA ENERGY RETAIL 2 LTD.,
Neighbourhood Services,Technical Services,Third Party Payments,430100,Rendered by Private Contractors,08-May-2014,2741961-15824,"1,133.85",COUPE LINE LTD.,
RED HRA,HRA Capital,Construction Work,908105,Construction work,08-May-2014,2741966-197192-5,"5,393.07",DELTA ELECTRICAL & MECHANICAL SERVICES.,
RED HRA,HRA Capital,Construction Work,908105,Construction work,08-May-2014,2741966-197554,"24,658.52",DELTA ELECTRICAL & MECHANICAL SERVICES.,
Children and Adult Services,Education,Transfer Payments,510026,School Children,08-May-2014,2741970-CAS-03-2014-069,"8,000.00",EARLY LEARNERS PRIVATE DAY NURSERY.,
Regeneration & Economic Development,Economic Development and Housing,Supplies and Services,384999,Miscellaneous Expenses,08-May-2014,2741972-RED-05-2014-038,"1,184.23",EAST DURHAM HOMES.,
Neighbourhood Services,Direct Services,Supplies and Services,304221,Equipment and Materials,08-May-2014,2741973-059-139701,"1,024.90",EDMUNDSON ELECTRICAL LTD.,
Neighbourhood Services,Direct Services,Supplies and Services,304221,Equipment and Materials,08-May-2014,2741973-059-139703,814.90,EDMUNDSON ELECTRICAL LTD.,
Neighbourhood Services,Direct Services,Transport,230005,Contract Hire,08-May-2014,2741981-9568,"1,030.00",GEORGE VARDY HAULAGE.,
Neighbourhood Services,Direct Services,Transport,230005,Contract Hire,08-May-2014,2741981-9611,"2,030.00",GEORGE VARDY HAULAGE.,
Children and Adult Services,Education,Supplies and Services,304259,Equipment and Materials,08-May-2014,2741982-979267,"1,008.35",GL ASSESSMENT LTD.,
Neighbourhood Services,Technical Services,Supplies and Services,338027,Services,08-May-2014,2741983-BGPP0125/041,"3,704.00",GLEEDS ADVISORY LTD.,
Children and Adult Services,Head of Adults,Transport,230005,Contract Hire,08-May-2014,2741984-WV091/013,"1,245.00",GMC TAXIS NORTH EAST.,
Children and Adult Services,Public Health,Third Party Payments,460802,Contract Payments,08-May-2014,2741990-9234,879.49,HANCOCK & AINSLEY CHEMIST LTD.,
Neighbourhood Services,Technical Services,Supplies and Services,304260,Equipment and Materials,08-May-2014,2741991-679367,639.15,HARVEST ENERGY LTD.,
Neighbourhood Services,Direct Services,Supplies and Services,304221,Equipment and Materials,08-May-2014,2741993-SIP-UK-149351,"2,216.50",HERAS READY FENCE HIRE & SALES.,
Neighbourhood Services,Technical Services,Supplies and Services,304999,Equipment and Materials,08-May-2014,2741997-350-13,650.00,INTEGRATED SKILLS LTD.,
Neighbourhood Services,Technical Services,Supplies and Services,304357,Equipment and Materials,08-May-2014,2741999-5304623,974.85,JA GILSON (AGRICULTURAL CONTRACTORS) LTD.,
Neighbourhood Services,Technical Services,Supplies and Services,304357,Equipment and Materials,08-May-2014,2741999-5304630,792.06,JA GILSON (AGRICULTURAL CONTRACTORS) LTD.,
Neighbourhood Services,Technical Services,Supplies and Services,304357,Equipment and Materials,08-May-2014,2741999-5304631,"1,127.17",JA GILSON (AGRICULTURAL CONTRACTORS) LTD.,
Children and Adult Services,Head of Adults,Transport,230005,Contract Hire,08-May-2014,2742000-499,"1,069.00",JDS PRIVATE HIRE DURHAM.,
Neighbourhood Services,Technical Services,Supplies and Services,304221,Equipment and Materials,08-May-2014,2742003-00087727,"3,380.16",JOBLING PURSER LTD.,
Neighbourhood Services,Technical Services,Supplies and Services,304358,Equipment and Materials,08-May-2014,2742004-495,"2,096.00",JOHN DOBSON PLANT HIRE LTD.,
Neighbourhood Services,Technical Services,Stock,926900,Stock in hand-Inventory system,08-May-2014,2742006-NI024299,"6,375.60",JOHN MACLEAN & SONS ELECTRICAL (DINGWALL) LTD.,
Neighbourhood Services,Technical Services,Stock,926900,Stock in hand-Inventory system,08-May-2014,2742006-NI024301,"23,908.50",JOHN MACLEAN & SONS ELECTRICAL (DINGWALL) LTD.,
Neighbourhood Services,Technical Services,Stock,926900,Stock in hand-Inventory system,08-May-2014,2742006-NI024427,"14,345.10",JOHN MACLEAN & SONS ELECTRICAL (DINGWALL) LTD.,
Neighbourhood Services,Technical Services,Third Party Payments,430100,Rendered by Private Contractors,08-May-2014,2742009-0039,"7,722.00",JOSHUA THOMAS CONSTRUCTION LTD.,
Neighbourhood Services,Technical Services,Third Party Payments,430100,Rendered by Private Contractors,08-May-2014,2742009-0041,"8,236.80",JOSHUA THOMAS CONSTRUCTION LTD.,
Neighbourhood Services,Direct Services,Supplies and Services,304221,Equipment and Materials,08-May-2014,2742012-BII130920,606.16,JT DOVE LTD.,
Neighbourhood Services,Direct Services,Supplies and Services,304221,Equipment and Materials,08-May-2014,2742012-NOI47948,596.40,JT DOVE LTD.,
RED HRA,HRA Capital,Construction Work,908105,Construction work,08-May-2014,2742016-SINVF000534,"2,552.50",KEEPMOAT REGENERATION (FHM) LTD.,
Children and Adult Services,Head of Adults,Transport,230005,Contract Hire,08-May-2014,2742017-020414,"1,512.00",KEVIN EDMUNDSON.,
Regeneration & Economic Development,Economic Development and Housing,Income,725051,Rents,08-May-2014,2742019-345617,"1,033.31",KNIGHT FRANK LLP.,
Neighbourhood Services,Direct Services,Transport,230005,Contract Hire,08-May-2014,2742023-4333696,"1,943.00",LEEDS COMMERCIAL LTD.,
Neighbourhood Services,Direct Services,Transport,230005,Contract Hire,08-May-2014,2742023-433697,"3,243.00",LEEDS COMMERCIAL LTD.,
Corporate Resources,Financial Services,Supplies and Services,384199,Miscellaneous Expenses,08-May-2014,2742024-87887RI,"20,339.20",CAPACITYGRID.,
Regeneration & Economic Development,Economic Development and Housing,Third Party Payments,440999,Other Third Party Payments,08-May-2014,2742025-0000005399,"50,000.00",LIFELINE PROJECT LTD.,
Children and Adult Services,Public Health,Third Party Payments,460803,Contract Payments,08-May-2014,2742027-FXL31/NOV13,707.00,LLOYDS PHARMACY.,
Children and Adult Services,Public Health,Third Party Payments,460803,Contract Payments,08-May-2014,2742031-FRR32,"1,649.24",LLOYDS PHARMACY.,
Children and Adult Services,Public Health,Third Party Payments,460803,Contract Payments,08-May-2014,2742031-FRR32,"1,265.83",LLOYDS PHARMACY.,
Neighbourhood Services,Direct Services,Third Party Payments,430100,Rendered by Private Contractors,08-May-2014,2742032-4028,"1,083.00",LMC ELECTRICAL SERVICES T/A LMC ELECTRICAL & STAIRLIFT SERVICES LTD.,
Neighbourhood Services,Direct Services,Third Party Payments,430100,Rendered by Private Contractors,08-May-2014,2742032-4059,912.00,LMC ELECTRICAL SERVICES T/A LMC ELECTRICAL & STAIRLIFT SERVICES LTD.,
Neighbourhood Services,Direct Services,Transport,230005,Contract Hire,08-May-2014,2742034-105567,"1,545.00",LONDONDERRY GARAGE LTD.,
Corporate Resources,Financial Services,Supplies and Services,384180,Miscellaneous Expenses,08-May-2014,2742035-0732347,"4,375.92",LOOMIS UK LTD.,
Children and Adult Services,Public Health,Third Party Payments,460803,Contract Payments,08-May-2014,2742038-FVW28SEPT2013,"1,284.61",M & M PHARMACIES LTD.,
Children and Adult Services,Head of Adults,Transport,230005,Contract Hire,08-May-2014,2742041-0414,924.00,MAG`S CARS.,
Children and Adult Services,Education,Transport,230007,Contract Hire,08-May-2014,2742042-4896,"1,690.08",MAKEPEACE MOTORS.,
Children and Adult Services,Education,Transport,230007,Contract Hire,08-May-2014,2742042-4897,"1,509.48",MAKEPEACE MOTORS.,
Neighbourhood Services,Technical Services,Third Party Payments,430100,Rendered by Private Contractors,08-May-2014,2742042-4899,"3,168.00",MAKEPEACE MOTORS.,
Neighbourhood Services,Technical Services,Third Party Payments,410037,Rendered by Other Local Authorities,08-May-2014,2742042-4903,"1,184.80",MAKEPEACE MOTORS.,
Neighbourhood Services,Technical Services,Third Party Payments,430100,Rendered by Private Contractors,08-May-2014,2742042-4904,"3,363.20",MAKEPEACE MOTORS.,
Neighbourhood Services,Technical Services,Third Party Payments,430100,Rendered by Private Contractors,08-May-2014,2742042-4905,"4,133.00",MAKEPEACE MOTORS.,
Neighbourhood Services,Culture & Sport,Supplies and Services,338047,Services,08-May-2014,2742046-000344,"1,125.00",MARK LUNDQUIST MLM CONCERTS LTD.,
Neighbourhood Services,Technical Services,Supplies and Services,304221,Equipment and Materials,08-May-2014,2742047-ZJB0025608,"2,494.50",MARSHALLS MONO LTD.,
Children and Adult Services,Head of Adults,Transport,230005,Contract Hire,08-May-2014,2742049-00656,"1,180.00",MICHAELS TRAVEL.,
Children and Adult Services,Head of Adults,Transport,230005,Contract Hire,08-May-2014,2742066-616,"2,970.00",MR AD HOWARD.,
RED HRA,HRA Centrally Managed,Supplies and Services,384999,Miscellaneous Expenses,08-May-2014,2742070-1057248,"1,353.58",REDACTED - PAYMENT TO INDIVIDUAL,
Children and Adult Services,Head of Adults,Supplies and Services,338045,Services,08-May-2014,2742076-304202/INVJB124,840.00,MR JAMES BROWN.,
Children and Adult Services,Head of Adults,Transport,230005,Contract Hire,08-May-2014,2742080-230,670.00,MR LEE ANDERSON.,
Children and Adult Services,Head of Adults,Transport,230005,Contract Hire,08-May-2014,2742083-DM12-30/04/2014,"1,440.00",MR S BOWERS.,
Neighbourhood Services,Culture & Sport,Supplies and Services,384199,Miscellaneous Expenses,08-May-2014,2742099-174,"71,250.00",NEW WRITING NORTH LTD.,
Neighbourhood Services,Direct Services,Transport,230005,Contract Hire,08-May-2014,2742102-70147,"3,900.00",NOBLET MUNICIPAL SERVICES LTD.,
Neighbourhood Services,Technical Services,Stock,926900,Stock in hand-Inventory system,08-May-2014,2742103-1154968,521.00,NORTHERN TOOLS & ACCESSORIES.,
Children and Adult Services,Head of Adults,Transport,230005,Contract Hire,08-May-2014,2742106-0054,759.00,NORTHVIEW PRIVATE HIRE.,
Regeneration & Economic Development,Transport and Contracted Services,Premises,120009,Energy Costs,08-May-2014,2742107-NNO7FXMP,"2,722.93",NPOWER.,
Regeneration & Economic Development,Transport and Contracted Services,Premises,120009,Energy Costs,08-May-2014,2742107-NNO7HFPN,"2,722.93",NPOWER.,
Regeneration & Economic Development,Transport and Contracted Services,Premises,120009,Energy Costs,08-May-2014,2742107-NNO7J587,"2,705.85",NPOWER.,
Neighbourhood Services,Technical Services,Premises,120009,Energy Costs,08-May-2014,2742107-NNO7KGR8,"16,297.38",NPOWER.,
Neighbourhood Services,Technical Services,Third Party Payments,430100,Rendered by Private Contractors,08-May-2014,2742111-SIN3011737,680.00,OWEN PUGH & CO LTD.,
Neighbourhood Services,Direct Services,Third Party Payments,430100,Rendered by Private Contractors,08-May-2014,2742113-230,"6,085.96",PARAMOUNT CEILINGS & PARTITIONS.,
Neighbourhood Services,Direct Services,Third Party Payments,430100,Rendered by Private Contractors,08-May-2014,2742113-233,"1,537.50",PARAMOUNT CEILINGS & PARTITIONS.,
Children and Adult Services,Head of Adults,Transport,230005,Contract Hire,08-May-2014,2742118-00850,858.00,PHILLIPS TAXI GROUP LTD.,
Children and Adult Services,Head of Adults,Transport,230005,Contract Hire,08-May-2014,2742118-00877,600.00,PHILLIPS TAXI GROUP LTD.,
Children and Adult Services,Head of Adults,Transport,230005,Contract Hire,08-May-2014,2742119-974,952.00,PODA LTD.,
Regeneration & Economic Development,"Spatial Policy, Planning, Assets & Environment",Supplies and Services,332029,"Printing, Stationery and Gen Off Exps",08-May-2014,2742120-602949,963.00,POTTS PRINTERS LTD.,
Children and Adult Services,Head of Adults,Transport,230005,Contract Hire,08-May-2014,2742121-140403,685.00,PRATTS TAXIS.,
Children and Adult Services,Head of Adults,Transport,230005,Contract Hire,08-May-2014,2742121-140404,"1,235.40",PRATTS TAXIS.,
Neighbourhood Services,Direct Services,Third Party Payments,430100,Rendered by Private Contractors,08-May-2014,2742128-24397,"1,210.00",RJ UTILITY SERVICES LTD.,
Neighbourhood Services,Technical Services,Third Party Payments,430100,Rendered by Private Contractors,08-May-2014,2742131-1146,"2,133.32",SAFE STRIP UK LTD.,
Neighbourhood Services,Technical Services,Supplies and Services,304221,Equipment and Materials,08-May-2014,2742131-1147,"2,986.65",SAFE STRIP UK LTD.,
Children and Adult Services,Head of Adults,Transport,230005,Contract Hire,08-May-2014,2742134-APRIL2014,"1,000.00",SCOTT TAYLOR T/A ABA LOCAL TAXIS.,
Neighbourhood Services,Direct Services,Transport,230005,Contract Hire,08-May-2014,2742136-10478684,"1,155.00",SHB HIRE LTD.,
Neighbourhood Services,Technical Services,Supplies and Services,304221,Equipment and Materials,08-May-2014,2742137-714516789674,"4,266.00",SIG TECHNICAL INSULATION.,
Neighbourhood Services,Culture & Sport,Premises,145023,Cleaning and Domestic Supplies,08-May-2014,2742138-266149,"1,225.70",SIS CHEMICALS.,
Regeneration & Economic Development,Transport and Contracted Services,Other Expenses,914001,Other capital expenses,08-May-2014,2742146-6804,"1,760.00",SURVEY & MARKETING SERVICES LTD T/A SMS MARKET RESEARCH.,
Corporate Resources,Financial Services,Supplies and Services,342051,Computers and Communications,08-May-2014,2742150-100931,"30,000.00",TEAM NETSOL LTD.,
Corporate Resources,I.C.T. Services,Debtors,930168,Debtor - Mobile Telephone Holding Account,08-May-2014,2742156-71648051,"18,822.74",VODAFONE LTD.,
Corporate Resources,I.C.T. Services,Debtors,930168,Debtor - Mobile Telephone Holding Account,08-May-2014,2742156-71648075,"8,098.49",VODAFONE LTD.,
Corporate Resources,I.C.T. Services,Debtors,930168,Debtor - Mobile Telephone Holding Account,08-May-2014,2742156-71656832,"5,567.06",VODAFONE LTD.,
Corporate Resources,I.C.T. Services,Debtors,930168,Debtor - Mobile Telephone Holding Account,08-May-2014,2742156-71656964,"1,240.90",VODAFONE LTD.,
RED HRA,Housing Revenue Account,Premises,120021,Energy Costs,08-May-2014,2742160-2526,831.86,WELLSPRINGS PROPERTIES LTD.,
Neighbourhood Services,Technical Services,Supplies and Services,304221,Equipment and Materials,08-May-2014,2742165-13-0698,"36,750.00",WM O SILMON LTD.,
Neighbourhood Services,Technical Services,Stock,926900,Stock in hand-Inventory system,08-May-2014,2742167-11972916,"1,191.43",WOLSELEY UK LTD.,
Neighbourhood Services,Technical Services,Stock,926900,Stock in hand-Inventory system,08-May-2014,2742167-12046886,"5,853.99",WOLSELEY UK LTD.,
Regeneration & Economic Development,Transport and Contracted Services,Third Party Payments,430106,Rendered by Private Contractors,09-May-2014,2742444,859.03,MAURICE & SONS.,
Children and Adult Services,Childrens Services,Supplies and Services,338057,Services,09-May-2014,2742448,"4,962.25",MICHAEL SAVAGE.,
RED HRA,HRA Centrally Managed,Creditors,952191,Creditor-HRA-rents-refunds,09-May-2014,2742453,"1,016.85",REDACTED - PAYMENT TO INDIVIDUAL,
RED HRA,HRA Centrally Managed,Creditors,952191,Creditor-HRA-rents-refunds,09-May-2014,2742460,809.28,REDACTED - PAYMENT TO INDIVIDUAL,
RED HRA,HRA Centrally Managed,Creditors,952191,Creditor-HRA-rents-refunds,09-May-2014,2742464,500.63,REDACTED - PAYMENT TO INDIVIDUAL,
Corporate Resources,Human Resources,Employees,040149,"Recruitment, Instruction and Training",09-May-2014,2742175-2T/14006,"2,820.00",2TRAIN LTD.,
Regeneration & Economic Development,Economic Development and Housing,Supplies and Services,324117,Provisions,09-May-2014,2742176-54588521,909.22,3663.,
Regeneration & Economic Development,Economic Development and Housing,Supplies and Services,324117,Provisions,09-May-2014,2742176-54686503,711.67,3663.,
Neighbourhood Services,Technical Services,Employees,040149,"Recruitment, Instruction and Training",09-May-2014,2742179-5830,"1,900.00",ABC FOOD SAFETY LTD.,
Children and Adult Services,Education,Third Party Payments,440999,Other Third Party Payments,09-May-2014,2742182-INV01922,"3,705.04",ACUMEN COMMUNITY ENTERPRISE DEVELOPMENT TRUST LTD.,
Children and Adult Services,Education,Supplies and Services,384871,Miscellaneous Expenses,09-May-2014,2742183-0514/02,500.00,ADAM BUSHNELL STORY TALES.,
Neighbourhood Services,Direct Services,Third Party Payments,430100,Rendered by Private Contractors,09-May-2014,2742185-10919,"1,000.00",ADVANTAGE UTILITIES SERVICES LTD.,
Neighbourhood Services,Technical Services,Supplies and Services,304221,Equipment and Materials,09-May-2014,2742187-19552849,"2,356.00",AGGREGATE INDUSTRIES UK LTD.,
Neighbourhood Services,Technical Services,Supplies and Services,304221,Equipment and Materials,09-May-2014,2742187-19600811,670.16,AGGREGATE INDUSTRIES UK LTD.,
Neighbourhood Services,Technical Services,Supplies and Services,304221,Equipment and Materials,09-May-2014,2742187-19673096,"1,212.72",AGGREGATE INDUSTRIES UK LTD.,
Neighbourhood Services,Technical Services,Supplies and Services,304221,Equipment and Materials,09-May-2014,2742187-19673097,"1,200.32",AGGREGATE INDUSTRIES UK LTD.,
Neighbourhood Services,Technical Services,Supplies and Services,304221,Equipment and Materials,09-May-2014,2742187-19673098,"3,869.33",AGGREGATE INDUSTRIES UK LTD.,
Neighbourhood Services,Technical Services,Supplies and Services,304221,Equipment and Materials,09-May-2014,2742187-19680810,"1,701.28",AGGREGATE INDUSTRIES UK LTD.,
Neighbourhood Services,Technical Services,Supplies and Services,304221,Equipment and Materials,09-May-2014,2742187-19680815,806.68,AGGREGATE INDUSTRIES UK LTD.,
Neighbourhood Services,Technical Services,Supplies and Services,304221,Equipment and Materials,09-May-2014,2742187-19688871,"1,894.72",AGGREGATE INDUSTRIES UK LTD.,
Neighbourhood Services,Technical Services,Supplies and Services,304221,Equipment and Materials,09-May-2014,2742188-19635682,"1,028.40",AGGREGATE INDUSTRIES UK LTD.,
Regeneration & Economic Development,Economic Development and Housing,Cap Exp on Grants & Other Financial Assistance (REFCUS),918401,Capital grants,09-May-2014,2742190-RED-05-2014-015,"2,475.00",ALAN LEE & SON.,
Neighbourhood Services,Technical Services,Stock,926900,Stock in hand-Inventory system,09-May-2014,2742201-921821555,"1,156.77",ARCO LTD.,
Neighbourhood Services,Technical Services,Stock,926900,Stock in hand-Inventory system,09-May-2014,2742201-921863408,"3,441.36",ARCO LTD.,
Regeneration & Economic Development,Transport and Contracted Services,Third Party Payments,430106,Rendered by Private Contractors,09-May-2014,2742203-106784,"107,300.90",ARRIVA NORTH EAST LTD.,
Regeneration & Economic Development,Transport and Contracted Services,Third Party Payments,430106,Rendered by Private Contractors,09-May-2014,2742203-106898,"102,885.10",ARRIVA NORTH EAST LTD.,
Neighbourhood Services,Technical Services,Supplies and Services,336005,Advertising,09-May-2014,2742211-1343,"3,630.50",AUTO ITEMS LTD.,
Children and Adult Services,Head of Adults,Third Party Payments,470101,Purchase of Care,09-May-2014,2742217-203301949,"55,652.96",BARNARDOS.,
Neighbourhood Services,Direct Services,Supplies and Services,304221,Equipment and Materials,09-May-2014,2742221-DUR/136546,"4,680.00",BEMCO LTD.,
Corporate Resources,Corporate Finance,Supplies and Services,384199,Miscellaneous Expenses,09-May-2014,2742224-101267,"25,440.00",BEYOND SYSTEMS.,
Neighbourhood Services,Culture & Sport,Supplies and Services,384700,Miscellaneous Expenses,09-May-2014,2742226-NEI-EXP-04-2014-056,600.00,BISHOP AUCKLAND TABLE TENNIS CLUB.,
Corporate Resources,I.C.T. Services,Supplies and Services,332029,"Printing, Stationery and Gen Off Exps",09-May-2014,2742232-6041,805.00,BORDER SIGNS & GRAPHICS.,
Neighbourhood Services,Culture & Sport,Supplies and Services,384700,Miscellaneous Expenses,09-May-2014,2742235-NEI-EXD-04-2014-054,"1,280.00",BRANDON & BYSHOTTLES TABLE TENNIS CLUB.,
Corporate Resources,I.C.T. Services,Debtors,930167,Debtor-Telephone Holding Account,09-May-2014,2742238-GD55800157Q069,"18,864.09",BRITISH TELECOMMUNICATIONS PLC.,
Neighbourhood Services,Direct Services,Supplies and Services,304221,Equipment and Materials,09-May-2014,2742240-1650/0302285,"2,246.66",BSS GROUP PLC.,
Neighbourhood Services,Direct Services,Supplies and Services,304221,Equipment and Materials,09-May-2014,2742241-1650/0302284,821.35,BSS GROUP PLC.,
Neighbourhood Services,Technical Services,Third Party Payments,460251,Contract Payments,09-May-2014,2742242-4657,"12,440.00",BUILDING SOFTWARE LTD.,
Neighbourhood Services,Direct Services,Transport,230005,Contract Hire,09-May-2014,2742246-8108292,567.00,BURNT TREE GROUP LTD.,
Children and Adult Services,Head of Adults,Supplies and Services,338366,Services,09-May-2014,2742248-16271,"2,827.67",CARE ABILITY.,
Children and Adult Services,Head of Adults,Supplies and Services,338366,Services,09-May-2014,2742248-16273,815.37,CARE ABILITY.,
Neighbourhood Services,Direct Services,Supplies and Services,304221,Equipment and Materials,09-May-2014,2742253-449055,"2,520.00",CARRS BILLINGTON AGRICULTURE.,
Neighbourhood Services,Technical Services,Stock,926900,Stock in hand-Inventory system,09-May-2014,2742257-9950/01589857,"1,071.84",CERAMIC TILE DISTRIBUTORS (CTD).,
Neighbourhood Services,Technical Services,Stock,926900,Stock in hand-Inventory system,09-May-2014,2742257-9950/01590655,"2,458.24",CERAMIC TILE DISTRIBUTORS (CTD).,
Children and Adult Services,Head of Adults,Transport,230005,Contract Hire,09-May-2014,2742269-228,"1,140.30",COLIN HOLMES.,
Neighbourhood Services,Culture & Sport,Supplies and Services,384199,Miscellaneous Expenses,09-May-2014,2742283-171,500.00,CRAIG HEAP LTD.,
Neighbourhood Services,Culture & Sport,Premises,145023,Cleaning and Domestic Supplies,09-May-2014,2742287-921871933,511.87,CRYOSERVICE LTD T/A AIR PRODUCTS..,
RED HRA,HRA Capital,Construction Work,908105,Construction work,09-May-2014,2742293-198235,"1,569.97",DELTA ELECTRICAL & MECHANICAL SERVICES.,
Neighbourhood Services,Direct Services,Supplies and Services,338066,Services,09-May-2014,2742303-NEI-EXP-05-2014-005,"1,468.50","DR BRIAN LAMBERT, DR IAN BRUNT, & DR RACHEL NG.",
Neighbourhood Services,Direct Services,Supplies and Services,338066,Services,09-May-2014,2742303-NEI-EXP-05-2014-006,"1,666.50","DR BRIAN LAMBERT, DR IAN BRUNT, & DR RACHEL NG.",
Children and Adult Services,Education,Transport,230007,Contract Hire,09-May-2014,2742306-7281,"10,492.10",DURHAM CITY COACHES.,
Neighbourhood Services,Culture & Sport,Supplies and Services,384700,Miscellaneous Expenses,09-May-2014,2742308-NEI-INC-05-2014-009,624.00,DURHAM INDOOR BOWLING COMMUNITY ASSOCIATION LTD.,
Neighbourhood Services,Culture & Sport,Supplies and Services,384700,Miscellaneous Expenses,09-May-2014,2742310-NEI-INC-05-2014-007,635.00,DURHAM SWIFTS BADMINTON CLUB.,
Neighbourhood Services,Technical Services,Employees,040149,"Recruitment, Instruction and Training",09-May-2014,2742311-0000032894,"1,100.00",EAST DURHAM COLLEGE.,
Neighbourhood Services,Direct Services,Supplies and Services,304259,Equipment and Materials,09-May-2014,2742312-404201,"4,114.80",EAST RIDING HORTICULTURE LTD.,
Neighbourhood Services,Direct Services,Supplies and Services,304221,Equipment and Materials,09-May-2014,2742314-059-141924,554.80,EDMUNDSON ELECTRICAL LTD.,
Neighbourhood Services,Technical Services,Stock,926900,Stock in hand-Inventory system,09-May-2014,2742314-059-142115,864.00,EDMUNDSON ELECTRICAL LTD.,
Neighbourhood Services,Direct Services,Supplies and Services,304221,Equipment and Materials,09-May-2014,2742314-059-142324,556.80,EDMUNDSON ELECTRICAL LTD.,
Neighbourhood Services,Direct Services,Supplies and Services,304221,Equipment and Materials,09-May-2014,2742314-059-142655,"1,523.60",EDMUNDSON ELECTRICAL LTD.,
Regeneration & Economic Development,"Spatial Policy, Planning, Assets & Environment",Supplies and Services,304259,Equipment and Materials,09-May-2014,2742318-334,"5,000.00",ELECTRIC CYCLE CENTRE PENRITH.,
Regeneration & Economic Development,Economic Development and Housing,Cap Exp on Grants & Other Financial Assistance (REFCUS),918401,Capital grants,09-May-2014,2742319-RED-05-2014-014,"2,590.00",ELLIOT HIRD & PARTNERS LTD.,
Corporate Resources,Legal & Democratic Services,Supplies and Services,338057,Services,09-May-2014,2742320-1224,609.40,ELYSIAN PATHOLOGY SERVICES LTD.,
Corporate Resources,Legal & Democratic Services,Supplies and Services,338057,Services,09-May-2014,2742320-1226,567.30,ELYSIAN PATHOLOGY SERVICES LTD.,
Neighbourhood Services,Technical Services,Stock,926900,Stock in hand-Inventory system,09-May-2014,2742321-18SI/175904,554.06,ENCON INSULATION LTD.,
Regeneration & Economic Development,Transport and Contracted Services,Supplies and Services,384960,Miscellaneous Expenses,09-May-2014,2742324-984234,"2,633.75",ESP SYSTEX LTD.,
Neighbourhood Services,Projects and Business services,Third Party Payments,430120,Rendered by Private Contractors,09-May-2014,2742331-CTIN06420424,"3,147.65",FINNING (UK) LTD.,
Neighbourhood Services,Projects and Business services,Third Party Payments,430120,Rendered by Private Contractors,09-May-2014,2742331-CTIN06420425,"3,448.35",FINNING (UK) LTD.,
Neighbourhood Services,Projects and Business services,Third Party Payments,430120,Rendered by Private Contractors,09-May-2014,2742331-CTIN06420426,"1,678.10",FINNING (UK) LTD.,
Neighbourhood Services,Technical Services,Supplies and Services,336005,Advertising,09-May-2014,2742332-FCI280,"3,600.00",FIRSTCAR LTD.,
Neighbourhood Services,Technical Services,Stock,926900,Stock in hand-Inventory system,09-May-2014,2742334-OP/I278562,"1,512.25",FLEMING & CO (MACHINERY) LTD.,
Children and Adult Services,Childrens Services,Third Party Payments,425040,Rendered by Voluntary Organisations,09-May-2014,2742335-630114200,"4,180.58",FOSTERING PEOPLE LTD.,
Children and Adult Services,Childrens Services,Third Party Payments,425040,Rendered by Voluntary Organisations,09-May-2014,2742335-630114409,"4,079.43",FOSTERING PEOPLE LTD.,
Children and Adult Services,Childrens Services,Third Party Payments,425040,Rendered by Voluntary Organisations,09-May-2014,2742335-630114581,"4,079.43",FOSTERING PEOPLE LTD.,
Children and Adult Services,Childrens Services,Third Party Payments,425040,Rendered by Voluntary Organisations,09-May-2014,2742335-630115153,"4,079.43",FOSTERING PEOPLE LTD.,
Children and Adult Services,Childrens Services,Third Party Payments,425040,Rendered by Voluntary Organisations,09-May-2014,2742335-630115363,"4,162.68",FOSTERING PEOPLE LTD.,
Children and Adult Services,Childrens Services,Third Party Payments,425040,Rendered by Voluntary Organisations,09-May-2014,2742335-630115392,"4,079.43",FOSTERING PEOPLE LTD.,
Children and Adult Services,Childrens Services,Third Party Payments,425040,Rendered by Voluntary Organisations,09-May-2014,2742335-630115394,"4,079.43",FOSTERING PEOPLE LTD.,
Regeneration & Economic Development,"Spatial Policy, Planning, Assets & Environment",Supplies and Services,338027,Services,09-May-2014,2742341-05/14,500.00,FUTURE PROJECTS.,
Neighbourhood Services,Direct Services,Supplies and Services,304221,Equipment and Materials,09-May-2014,2742348-IN141369,608.00,GB LUBRICANTS LTD.,
Neighbourhood Services,Direct Services,Supplies and Services,304259,Equipment and Materials,09-May-2014,2742349-14-551-RS,655.00,GB SPORT & LEISURE UK LTD.,
Neighbourhood Services,Direct Services,Supplies and Services,304259,Equipment and Materials,09-May-2014,2742351-365429,795.10,GEMCO SERVICE LTD.,
Regeneration & Economic Development,Transport and Contracted Services,Third Party Payments,430100,Rendered by Private Contractors,09-May-2014,2742357-41398,"63,998.94",GO GATESHEAD LTD.,
Neighbourhood Services,Culture & Sport,Supplies and Services,336005,Advertising,09-May-2014,2742359-3600,"2,320.00",GORILLA MEDIA LTD.,
Neighbourhood Services,Direct Services,Supplies and Services,304221,Equipment and Materials,09-May-2014,2742362-113393,"1,150.00",GREENLAY (GRASS MACHINERY) LTD.,
Children and Adult Services,Childrens Services,Supplies and Services,304259,Equipment and Materials,09-May-2014,2742363-INV0153614,"1,664.00",GV MULTI MEDIA LTD.,
Neighbourhood Services,Direct Services,Premises,115125,Repairs to Grounds,09-May-2014,2742364-0333/14,"1,755.00",H BRADLEY.,
Children and Adult Services,Head of Adults,Supplies and Services,304516,Equipment and Materials,09-May-2014,2742366-31694,"1,170.00",HANDS FREE COMPUTING LTD.,
Neighbourhood Services,Direct Services,Supplies and Services,304221,Equipment and Materials,09-May-2014,2742369-679377,"1,854.77",HARVEST ENERGY LTD.,
Neighbourhood Services,Technical Services,Supplies and Services,304260,Equipment and Materials,09-May-2014,2742369-680219,666.92,HARVEST ENERGY LTD.,
Regeneration & Economic Development,Transport and Contracted Services,Third Party Payments,460160,Contract Payments,09-May-2014,2742371-SIN7039226,501.50,HCS DRAIN SERVICES LTD.,
Neighbourhood Services,Technical Services,Stock,926900,Stock in hand-Inventory system,09-May-2014,2742374-2546300,"1,160.00",HIRE STATION LTD.,
Children and Adult Services,Education,Transport,230007,Contract Hire,09-May-2014,2742376-010816,"2,089.50",HODGSONS COACH OPERATORS LTD.,
Children and Adult Services,Education,Transport,230007,Contract Hire,09-May-2014,2742376-010819,"1,785.00",HODGSONS COACH OPERATORS LTD.,
Children and Adult Services,Education,Transport,230007,Contract Hire,09-May-2014,2742376-010823,"1,134.00",HODGSONS COACH OPERATORS LTD.,
Children and Adult Services,Education,Transport,230007,Contract Hire,09-May-2014,2742376-010824,924.00,HODGSONS COACH OPERATORS LTD.,
Children and Adult Services,Education,Transport,230007,Contract Hire,09-May-2014,2742376-010825,"1,260.00",HODGSONS COACH OPERATORS LTD.,
Children and Adult Services,Education,Transport,230007,Contract Hire,09-May-2014,2742376-010828,840.00,HODGSONS COACH OPERATORS LTD.,
Children and Adult Services,Education,Transport,230007,Contract Hire,09-May-2014,2742376-010829,"1,785.00",HODGSONS COACH OPERATORS LTD.,
Children and Adult Services,Education,Transport,230007,Contract Hire,09-May-2014,2742376-010831,"2,058.00",HODGSONS COACH OPERATORS LTD.,
Neighbourhood Services,Direct Services,Supplies and Services,304221,Equipment and Materials,09-May-2014,2742378-B33/0066767,"1,067.23",HOWDENS JOINERY LTD.,
Neighbourhood Services,Direct Services,Premises,115125,Repairs to Grounds,09-May-2014,2742378-B33/0066944,974.03,HOWDENS JOINERY LTD.,
Neighbourhood Services,Direct Services,Premises,115125,Repairs to Grounds,09-May-2014,2742378-B33/0066948,903.66,HOWDENS JOINERY LTD.,
Neighbourhood Services,Direct Services,Supplies and Services,304221,Equipment and Materials,09-May-2014,2742378-B33/0066997,843.97,HOWDENS JOINERY LTD.,
Neighbourhood Services,Direct Services,Premises,115125,Repairs to Grounds,09-May-2014,2742378-B33/0067005,846.49,HOWDENS JOINERY LTD.,
Neighbourhood Services,Direct Services,Premises,115125,Repairs to Grounds,09-May-2014,2742378-B33/0067012,857.88,HOWDENS JOINERY LTD.,
Neighbourhood Services,Technical Services,Stock,926900,Stock in hand-Inventory system,09-May-2014,2742381-082477,"2,882.50",HYDRAM ENGINEERING LTD.,
Neighbourhood Services,Technical Services,Stock,926900,Stock in hand-Inventory system,09-May-2014,2742381-082495,"1,671.85",HYDRAM ENGINEERING LTD.,
Dedicated Schools Grant,Dedicated Schools Grant,Supplies and Services,332047,"Printing, Stationery and Gen Off Exps",09-May-2014,2742382-113577,"2,287.50",INCLUSIVE TECHNOLOGY LTD.,
Neighbourhood Services,Technical Services,Third Party Payments,460151,Contract Payments,09-May-2014,2742386-446246,735.28,INSTARMAC GROUP PLC.,
Neighbourhood Services,Technical Services,Stock,926900,Stock in hand-Inventory system,09-May-2014,2742386-446979,"2,214.24",INSTARMAC GROUP PLC.,
RED HRA,Housing Revenue Account,Supplies and Services,338027,Services,09-May-2014,2742390-11107,"2,880.00",IPB COMMUNICATIONS LTD.,
Children and Adult Services,Head of Adults,Supplies and Services,384616,Miscellaneous Expenses,09-May-2014,2742391-2014/D5COURT/06,551.00,ISOS HOUSING LTD FORMERLY NOMADE5 HOUSING GROUP LTD.,
Children and Adult Services,Public Health,Third Party Payments,460803,Contract Payments,09-May-2014,2742393-13/2014,"3,450.00",JANICE KIRBY COUNSELLING SERVICES.,
Children and Adult Services,Head of Adults,Transport,230005,Contract Hire,09-May-2014,2742395-500,734.40,JDS PRIVATE HIRE DURHAM.,
Neighbourhood Services,Technical Services,Stock,926900,Stock in hand-Inventory system,09-May-2014,2742403-NI024737,"13,725.62",JOHN MACLEAN & SONS ELECTRICAL (DINGWALL) LTD.,
Neighbourhood Services,Technical Services,Third Party Payments,430100,Rendered by Private Contractors,09-May-2014,2742407-0043,"6,692.40",JOSHUA THOMAS CONSTRUCTION LTD.,
Neighbourhood Services,Technical Services,Supplies and Services,304221,Equipment and Materials,09-May-2014,2742410-BI1132695,556.09,JT DOVE LTD.,
Neighbourhood Services,Technical Services,Supplies and Services,304221,Equipment and Materials,09-May-2014,2742410-BI1132830,"1,265.58",JT DOVE LTD.,
Neighbourhood Services,Technical Services,Supplies and Services,304221,Equipment and Materials,09-May-2014,2742410-BI1132837,795.86,JT DOVE LTD.,
Neighbourhood Services,Technical Services,Supplies and Services,304221,Equipment and Materials,09-May-2014,2742410-BI1132954,532.00,JT DOVE LTD.,
Neighbourhood Services,Technical Services,Supplies and Services,304221,Equipment and Materials,09-May-2014,2742410-BI1132955,532.00,JT DOVE LTD.,
Neighbourhood Services,Technical Services,Stock,926900,Stock in hand-Inventory system,09-May-2014,2742410-STI400082,852.75,JT DOVE LTD.,
Regeneration & Economic Development,Transport and Contracted Services,Third Party Payments,430106,Rendered by Private Contractors,09-May-2014,2742413-ED1120605-APRIL,"5,621.93",KEITH HAMMOND T/A FERRYHILL VILLAGE TRAVEL.,
Children and Adult Services,Education,Transfer Payments,510026,School Children,09-May-2014,2742417-CAS-05-2014-11,"1,541.18",KIDS 1ST NURSERIES DURHAM.,
Children and Adult Services,Education,Supplies and Services,304259,Equipment and Materials,09-May-2014,2742423-148493,"1,171.94",LEON PAUL EQUIPMENT CO LTD.,
Corporate Resources,I.C.T. Services,"Vehicles, Equipment, Furniture and Fittings",912701,Computer equipment,09-May-2014,2742424-00202927,724.00,LEVANT OFFICE INTERIORS.,
Neighbourhood Services,Direct Services,Supplies and Services,304221,Equipment and Materials,09-May-2014,2742425-SI022378,668.55,LEWIS`S MEDICAL SUPPLIES.,
Children and Adult Services,Public Health,Third Party Payments,460803,Contract Payments,09-May-2014,2742431-MARCH2014,825.00,LLOYDS PHARMACY.,
Neighbourhood Services,Technical Services,Stock,926900,Stock in hand-Inventory system,09-May-2014,2742434-136373,540.00,LUCY ZODION LTD.,
Regeneration & Economic Development,Economic Development and Housing,Cap Exp on Grants & Other Financial Assistance (REFCUS),918401,Capital grants,09-May-2014,2742436-RED-05-2014-035,"4,736.71",M & R DEVELOPMENTS & CONTRACTORS LTD..,
Neighbourhood Services,Direct Services,Supplies and Services,304221,Equipment and Materials,09-May-2014,2742447-SIN091292,"17,358.62",MHS BOILERS LTD.,
Neighbourhood Services,Direct Services,Third Party Payments,430100,Rendered by Private Contractors,09-May-2014,2742447-SIN091303,677.00,MHS BOILERS LTD.,
Neighbourhood Services,Direct Services,Supplies and Services,304221,Equipment and Materials,09-May-2014,2742447-SIN091384,697.20,MHS BOILERS LTD.,
RED HRA,HRA Capital,Construction Work,908105,Construction work,09-May-2014,2742477-8050,794.00,NELSONS OF DURHAM.,
RED HRA,HRA Capital,Construction Work,908105,Construction work,09-May-2014,2742477-8053,848.50,NELSONS OF DURHAM.,
RED HRA,HRA Capital,Construction Work,908105,Construction work,09-May-2014,2742477-8054,655.00,NELSONS OF DURHAM.,
Regeneration & Economic Development,Economic Development and Housing,Supplies and Services,308011,Furniture,09-May-2014,2742477-8061,540.00,NELSONS OF DURHAM.,
Corporate Resources,Legal & Democratic Services,Supplies and Services,340001,Postages,09-May-2014,2742479-RES-05-2014-024,"1,000.00",NEOPOST LTD CREDIFON RCB ACCOUNT.,
Regeneration & Economic Development,Strategy Programmes and Performance,Employees,040149,"Recruitment, Instruction and Training",09-May-2014,2742481-50058640,"1,800.00",NEW COLLEGE DURHAM.,
Regeneration & Economic Development,Strategy Programmes and Performance,Employees,040149,"Recruitment, Instruction and Training",09-May-2014,2742481-50058641,"1,800.00",NEW COLLEGE DURHAM.,
Neighbourhood Services,Culture & Sport,Premises,125009,Rents,09-May-2014,2742490-48326701,"19,361.00",NHS PROPERTY SERVICES LTD.,
Neighbourhood Services,Technical Services,Supplies and Services,304221,Equipment and Materials,09-May-2014,2742491-18450,575.47,NIBRA SIGNS LTD.,
Neighbourhood Services,Direct Services,Third Party Payments,430100,Rendered by Private Contractors,09-May-2014,2742494-10022911,"40,000.00",NORSTEAD.,
RED HRA,HRA Capital,Construction Work,908105,Construction work,09-May-2014,2742496-90008797,543.00,NORTHERN GAS NETWORKS LTD.,
Regeneration & Economic Development,Economic Development and Housing,Construction Work,908105,Construction work,09-May-2014,2742497-EXP-05-2014-001,836.00,NORTHERN POWERGRID (NORTHEAST) LTD.,
Corporate Resources,Human Resources,Supplies and Services,384199,Miscellaneous Expenses,09-May-2014,2742500-I2169001,856.80,NORTHGATE ARINSO UK LTD.,
Regeneration & Economic Development,Economic Development and Housing,Premises,135005,Water Services,09-May-2014,2742502-210359890013099,"1,148.47",NORTHUMBRIAN WATER LTD.,
Regeneration & Economic Development,Economic Development and Housing,Premises,135005,Water Services,09-May-2014,2742502-303696120013059,787.89,NORTHUMBRIAN WATER LTD.,
RED HRA,Housing Revenue Account,Supplies and Services,338027,Services,09-May-2014,2742513-1504,"3,488.31",OPEN COMMUNITIES LTD.,
Neighbourhood Services,Technical Services,Stock,926900,Stock in hand-Inventory system,09-May-2014,2742517-XL113658,546.34,PARK ELECTRICAL DISTRIBUTORS LTD.,
Neighbourhood Services,Technical Services,Stock,926900,Stock in hand-Inventory system,09-May-2014,2742517-XL113724,700.00,PARK ELECTRICAL DISTRIBUTORS LTD.,
Children and Adult Services,Education,Supplies and Services,304259,Equipment and Materials,09-May-2014,2742519-77181909HDI,994.42,PEARSON EDUCATION LTD.,
Children and Adult Services,Childrens Services,Third Party Payments,425019,Rendered by Voluntary Organisations,09-May-2014,2742522-20780,"2,241.00",PERCY HEDLEY FOUNDATION.,
Children and Adult Services,Childrens Services,Third Party Payments,425017,Rendered by Voluntary Organisations,09-May-2014,2742522-20781,"1,288.00",PERCY HEDLEY FOUNDATION.,
Dedicated Schools Grant,Dedicated Schools Grant,Third Party Payments,440080,Other Third Party Payments,09-May-2014,2742522-20898,"21,624.00",PERCY HEDLEY FOUNDATION.,
Neighbourhood Services,Technical Services,Stock,926900,Stock in hand-Inventory system,09-May-2014,2742533-44142,930.00,PLASREC LTD.,
Neighbourhood Services,Direct Services,Supplies and Services,304221,Equipment and Materials,09-May-2014,2742534-4120165280,979.96,PLUMBING TRADE SUPPLIES LTD.,
Neighbourhood Services,Direct Services,Supplies and Services,304221,Equipment and Materials,09-May-2014,2742534-4120165352,970.43,PLUMBING TRADE SUPPLIES LTD.,
Neighbourhood Services,Direct Services,Supplies and Services,304221,Equipment and Materials,09-May-2014,2742535-4120165202,935.98,PLUMBING TRADE SUPPLIES LTD.,
Neighbourhood Services,Culture & Sport,Supplies and Services,338099,Services,09-May-2014,2742539-4185583,"1,962.40",PRS FOR MUSIC.,
Neighbourhood Services,Culture & Sport,Supplies and Services,338099,Services,09-May-2014,2742539-4195584,"3,252.09",PRS FOR MUSIC.,
Regeneration & Economic Development,Economic Development and Housing,Supplies and Services,384199,Miscellaneous Expenses,09-May-2014,2742545-15643,"2,995.00",REGION SERVICES LTD.,
Children and Adult Services,Planning & Service Strategy,Supplies and Services,340001,Postages,09-May-2014,2742555-9047133173,"1,102.60",ROYAL MAIL GROUP PLC.,
Neighbourhood Services,Direct Services,Third Party Payments,430100,Rendered by Private Contractors,09-May-2014,2742559-APR03114,"1,238.08",RW CHICKEN (SCAFFOLDING) LTD.,
Children and Adult Services,Education,Supplies and Services,384199,Miscellaneous Expenses,09-May-2014,2742568-SSP1314-11,680.00,SEDGEFIELD SCHOOL SPORT PARTNERSHIP CIC.,
Neighbourhood Services,Direct Services,Supplies and Services,304259,Equipment and Materials,09-May-2014,2742572-CD970038362,990.98,SHERRIFF AMENITY.,
Neighbourhood Services,Redundant Direct Services,Supplies and Services,304221,Equipment and Materials,09-May-2014,2742572-CD970038565,"4,528.80",SHERRIFF AMENITY.,
Neighbourhood Services,Technical Services,Supplies and Services,304358,Equipment and Materials,09-May-2014,2742573-2014017,"1,239.00",SHIREHAVEN LTD.,
Neighbourhood Services,Technical Services,Supplies and Services,304358,Equipment and Materials,09-May-2014,2742573-2014018,909.00,SHIREHAVEN LTD.,
Neighbourhood Services,Technical Services,Supplies and Services,304358,Equipment and Materials,09-May-2014,2742573-2014019,939.00,SHIREHAVEN LTD.,
Neighbourhood Services,Technical Services,Supplies and Services,304358,Equipment and Materials,09-May-2014,2742573-2014020,"1,279.00",SHIREHAVEN LTD.,
Neighbourhood Services,Technical Services,Stock,926900,Stock in hand-Inventory system,09-May-2014,2742576-272055/120259,"1,430.20",SIGNATURE LTD T/A POST & COLUMN CO LTD.,
Neighbourhood Services,Culture & Sport,Premises,145015,Cleaning and Domestic Supplies,09-May-2014,2742579-266284,"1,200.50",SIS CHEMICALS.,
Neighbourhood Services,Culture & Sport,Supplies and Services,384700,Miscellaneous Expenses,09-May-2014,2742581-056,672.00,SJMK CONSULTING LTD T/A MY FIRST AID.,
Neighbourhood Services,Technical Services,Stock,926900,Stock in hand-Inventory system,09-May-2014,2742591-270037034,543.96,SOVEREIGN CHEMICALS LTD.,
Corporate Resources,I.C.T. Services,Stock,926900,Stock in hand-Inventory system,09-May-2014,2742592-OP/L841943,"6,137.60",SPECIALIST COMPUTER CENTRES PLC.,
Neighbourhood Services,Culture & Sport,Supplies and Services,384700,Miscellaneous Expenses,09-May-2014,2742593-NEI-EXP-04-2014-053,"1,312.00",SPENNYMOOR CHI TAEKWONDO CLUB.,
Children and Adult Services,Childrens Services,Third Party Payments,425017,Rendered by Voluntary Organisations,09-May-2014,2742595-1150037,"1,970.00",ST CUTHBERTS CARE.,
Children and Adult Services,Public Health,Third Party Payments,460803,Contract Payments,09-May-2014,2742605-TDAPRIL2014,"2,100.00",REDACTED - PAYMENT TO INDIVIDUAL,
Dedicated Schools Grant,Dedicated Schools Grant,Third Party Payments,425005,Rendered by Voluntary Organisations,09-May-2014,2742607-77,"3,604.00",TALBOT HOUSE SCHOOL.,
Corporate Resources,I.C.T. Services,Supplies and Services,344033,Telephones,09-May-2014,2742608-05007314,"1,867.84",TALKTALK BUSINESS.,
Neighbourhood Services,Direct Services,Third Party Payments,430103,Rendered by Private Contractors,09-May-2014,2742615-NEI-EXP-04-2014-061,"6,709.72",TEESDALE CONSERVATION VOLUNTEERS.,
Neighbourhood Services,Projects and Business services,Third Party Payments,430103,Rendered by Private Contractors,09-May-2014,2742615-NEI-EXP-04-2014-064,"7,853.23",TEESDALE CONSERVATION VOLUNTEERS.,
Neighbourhood Services,Culture & Sport,Supplies and Services,304259,Equipment and Materials,09-May-2014,2742616-13701,"1,060.00",TEESDALE EVENT & SITE SERVICES LTD.,
Neighbourhood Services,Technical Services,Stock,926900,Stock in hand-Inventory system,09-May-2014,2742623-N/IN121273,"1,153.64",THOMAS OWEN & SONS (NEWCASTLE) LTD.,
Neighbourhood Services,Technical Services,Stock,926900,Stock in hand-Inventory system,09-May-2014,2742623-N/IN121280,598.50,THOMAS OWEN & SONS (NEWCASTLE) LTD.,
Regeneration & Economic Development,"Spatial Policy, Planning, Assets & Environment",Supplies and Services,304040,Equipment and Materials,09-May-2014,2742624-6600283934,942.00,THOMSON REUTERS.,
Regeneration & Economic Development,Economic Development and Housing,Cap Exp on Grants & Other Financial Assistance (REFCUS),918401,Capital grants,09-May-2014,2742625-RED-05-2014-013,"1,555.00",THYSSENKRUPP ENCASA LTD.,
Neighbourhood Services,Technical Services,Stock,926900,Stock in hand-Inventory system,09-May-2014,2742641-INV024483,"72,400.00",URBIS SCHREDER LTD.,
Corporate Resources,I.C.T. Services,Stock,926900,Stock in hand-Inventory system,09-May-2014,2742645-2342426,"1,828.80",VIGLEN LTD.,
Corporate Resources,I.C.T. Services,Supplies and Services,342223,Computers and Communications,09-May-2014,2742645-2342615,726.00,VIGLEN LTD.,
Children and Adult Services,Public Health,Third Party Payments,460802,Contract Payments,09-May-2014,2742648-828Z1040,"14,527.00",VIRGIN CARE STOCKTON LLP.,
Neighbourhood Services,Culture & Sport,Supplies and Services,304245,Equipment and Materials,09-May-2014,2742651-5050,723.60,VORTEX LIGHTING LTD.,
Neighbourhood Services,Culture & Sport,Supplies and Services,338047,Services,09-May-2014,2742654-00906883,"2,515.87",WARNER BROS ENTERTAINMENT UK LTD.,
Neighbourhood Services,Culture & Sport,Supplies and Services,338047,Services,09-May-2014,2742654-22145741,"2,642.38",WARNER BROS ENTERTAINMENT UK LTD.,
Neighbourhood Services,Culture & Sport,Supplies and Services,338047,Services,09-May-2014,2742654-22146116,"2,144.25",WARNER BROS ENTERTAINMENT UK LTD.,
Neighbourhood Services,Culture & Sport,Supplies and Services,338047,Services,09-May-2014,2742654-22146117,"1,711.62",WARNER BROS ENTERTAINMENT UK LTD.,
Neighbourhood Services,Direct Services,Supplies and Services,338066,Services,09-May-2014,2742659-7850,"7,132.00",WESLEY MUSIC.,
Neighbourhood Services,Technical Services,Stock,926900,Stock in hand-Inventory system,09-May-2014,2742661-1898739,"1,043.70",WILKIES.,
Children and Adult Services,Public Health,Third Party Payments,460802,Contract Payments,09-May-2014,2742662,"3,007.39",WILLINGTON MEDICAL GROUP.,
Neighbourhood Services,Culture & Sport,Supplies and Services,384700,Miscellaneous Expenses,09-May-2014,2742663-NEI-INC-05-2014-005,608.00,WINGATE & STATION TOWN FAMILY CENTRE.,
Neighbourhood Services,Technical Services,Stock,926900,Stock in hand-Inventory system,09-May-2014,2742666-297137,519.00,WM SMITH & SONS (BARNARD CASTLE) LTD.,
Neighbourhood Services,Technical Services,Stock,926900,Stock in hand-Inventory system,09-May-2014,2742667-12140102,"1,417.26",WOLSELEY UK LTD.,
Neighbourhood Services,Technical Services,Stock,926900,Stock in hand-Inventory system,09-May-2014,2742667-12140354,"2,427.40",WOLSELEY UK LTD.,
Neighbourhood Services,Technical Services,Stock,926900,Stock in hand-Inventory system,09-May-2014,2742667-12248617,675.60,WOLSELEY UK LTD.,
Neighbourhood Services,Direct Services,Third Party Payments,430100,Rendered by Private Contractors,09-May-2014,2742672-31068,"5,949.65",YWC GROUP LTD.,
Children and Adult Services,Head of Adults,Transport,230005,Contract Hire,12-May-2014,2742675-EA220752,"1,680.00",A MURRAY TRAVEL.,
Regeneration & Economic Development,Economic Development and Housing,Third Party Payments,460402,Contract Payments,12-May-2014,2742676-10576,"4,660.00",A PATTERSON T/A AD ENGINEERING.,
Regeneration & Economic Development,Economic Development and Housing,Third Party Payments,460402,Contract Payments,12-May-2014,2742676-10581,"12,400.00",A PATTERSON T/A AD ENGINEERING.,
Neighbourhood Services,Direct Services,Supplies and Services,304221,Equipment and Materials,12-May-2014,2742679-13522,"2,142.00",ACREBROAD LTD T/A DOBERMANS FLOORING.,
Dedicated Schools Grant,Dedicated Schools Grant,Third Party Payments,425005,Rendered by Voluntary Organisations,12-May-2014,2742680-ACC/009061,"11,602.00",ADVANCED CHILDCARE.,
Neighbourhood Services,Technical Services,Supplies and Services,304221,Equipment and Materials,12-May-2014,2742681-19614774,788.23,AGGREGATE INDUSTRIES UK LTD.,
Neighbourhood Services,Technical Services,Supplies and Services,304221,Equipment and Materials,12-May-2014,2742681-19688872,"1,003.16",AGGREGATE INDUSTRIES UK LTD.,
Neighbourhood Services,Technical Services,Supplies and Services,304221,Equipment and Materials,12-May-2014,2742681-19699769,644.80,AGGREGATE INDUSTRIES UK LTD.,
Children and Adult Services,Public Health,Transport,230710,Contract Hire,12-May-2014,2742684-7203958,"2,769.15",AUTOMOTIVE LEASING LTD.,
Neighbourhood Services,Technical Services,Stock,926900,Stock in hand-Inventory system,12-May-2014,2742685-INV087795,"2,100.00",AZTEC CHEMICALS LTD.,
Corporate Resources,Centrally Administered Costs,Supplies and Services,372009,Subscriptions,12-May-2014,2742686-9000173964,"16,000.00",BARNSLEY METROPOLITAN BOROUGH COUNCIL.,
Regeneration & Economic Development,Transport and Contracted Services,Third Party Payments,440999,Other Third Party Payments,12-May-2014,2742687-26006,"4,087.50",BAYDALE CONTROL SYSTEMS LTD.,
Children and Adult Services,Childrens Services,Third Party Payments,425040,Rendered by Voluntary Organisations,12-May-2014,2742696-9034,"2,914.20",CHILDRENS FAMILY TRUST.,
Children and Adult Services,Childrens Services,Third Party Payments,425040,Rendered by Voluntary Organisations,12-May-2014,2742696-9035,"3,000.00",CHILDRENS FAMILY TRUST.,
Children and Adult Services,Head of Adults,Transport,230005,Contract Hire,12-May-2014,2742698-290,600.00,CONNORS MINI BUSES.,
RED HRA,HRA Centrally Managed,Premises,150005,Apportioned Exps of Operational Blds,12-May-2014,2742703-80001319,"3,513.00",DALE & VALLEY HOMES.,
RED HRA,HRA Centrally Managed,Premises,150005,Apportioned Exps of Operational Blds,12-May-2014,2742703-80001818,"10,250.97",DALE & VALLEY HOMES.,
RED HRA,HRA Centrally Managed,Premises,150005,Apportioned Exps of Operational Blds,12-May-2014,2742703-80001820,"6,863.20",DALE & VALLEY HOMES.,
RED HRA,HRA Centrally Managed,Premises,150005,Apportioned Exps of Operational Blds,12-May-2014,2742703-80001821,"15,337.77",DALE & VALLEY HOMES.,
RED HRA,HRA Centrally Managed,Premises,150005,Apportioned Exps of Operational Blds,12-May-2014,2742703-80001822,"3,491.10",DALE & VALLEY HOMES.,
Neighbourhood Services,Direct Services,Supplies and Services,304259,Equipment and Materials,12-May-2014,2742704-188793,585.00,DAVID DIXON GARDEN MACHINERY CENTRE.,
Corporate Resources,I.C.T. Services,Stock,926900,Stock in hand-Inventory system,12-May-2014,2742706-7402115609,"2,518.53",DELL COMPUTER CORPORATION LTD.,
Regeneration & Economic Development,Economic Development and Housing,Supplies and Services,384700,Miscellaneous Expenses,12-May-2014,2742709-RED-05-2014-061,"1,000.00",DURHAM CITY BUILDERS LTD.,
Assistant Chief Executive,Partnerships & Community Engagement Div.,Supplies and Services,384085,Miscellaneous Expenses,12-May-2014,2742710-ARML02,"3,000.00",DURHAM POLICE & CRIME COMMISSIONER.,
Neighbourhood Services,Direct Services,Supplies and Services,304221,Equipment and Materials,12-May-2014,2742713-059-142229,569.99,EDMUNDSON ELECTRICAL LTD.,
Children and Adult Services,Childrens Services,Supplies and Services,384491,Miscellaneous Expenses,12-May-2014,2742715,"1,104.00",EMERALD NURSERY.,
Neighbourhood Services,Redundant Direct Services,Supplies and Services,304221,Equipment and Materials,12-May-2014,2742720-M54185,"1,027.50",FLEXIFORM BUSINESS FURNITURE LTD T/A ASGARD SECURE STEEL STORAGE.,
Children and Adult Services,Childrens Services,Third Party Payments,425040,Rendered by Voluntary Organisations,12-May-2014,2742722-3061-01/04/2014,"3,000.00",FOSTER CARE SOLUTIONS LTD.,
Children and Adult Services,Childrens Services,Third Party Payments,425040,Rendered by Voluntary Organisations,12-May-2014,2742722-3062,"3,128.00",FOSTER CARE SOLUTIONS LTD.,
Children and Adult Services,Childrens Services,Third Party Payments,425040,Rendered by Voluntary Organisations,12-May-2014,2742722-3109,"3,100.00",FOSTER CARE SOLUTIONS LTD.,
Children and Adult Services,Childrens Services,Third Party Payments,425040,Rendered by Voluntary Organisations,12-May-2014,2742722-3110,"3,232.68",FOSTER CARE SOLUTIONS LTD.,
Children and Adult Services,Childrens Services,Third Party Payments,425040,Rendered by Voluntary Organisations,12-May-2014,2742722-3113,"2,931.39",FOSTER CARE SOLUTIONS LTD.,
Children and Adult Services,Childrens Services,Third Party Payments,425040,Rendered by Voluntary Organisations,12-May-2014,2742722-3115,"3,232.68",FOSTER CARE SOLUTIONS LTD.,
Children and Adult Services,Childrens Services,Third Party Payments,425040,Rendered by Voluntary Organisations,12-May-2014,2742722-3116,"3,232.68",FOSTER CARE SOLUTIONS LTD.,
Children and Adult Services,Childrens Services,Third Party Payments,425040,Rendered by Voluntary Organisations,12-May-2014,2742722-3120,"3,232.68",FOSTER CARE SOLUTIONS LTD.,
Assistant Chief Executive,Partnerships & Community Engagement Div.,Transfer Payments,525030,Other,12-May-2014,2742725-VOUCHER12AB,"1,000.00",FRIENDS OF ST JOHNS CHAPEL PRIMARY SCHOOL.,
Children and Adult Services,Childrens Services,Third Party Payments,425040,Rendered by Voluntary Organisations,12-May-2014,2742726-26137,"3,100.00",FUTURES FOR CHILDREN LTD.,
Regeneration & Economic Development,Economic Development and Housing,Construction Work,908105,Construction work,12-May-2014,2742732-RED-05-2014-012,"6,000.00",GOOD HOUSING LTD.,
Neighbourhood Services,Technical Services,Third Party Payments,460224,Contract Payments,12-May-2014,2742735-SIN7039968,"164,188.76",HCS DRAIN SERVICES LTD.,
Children and Adult Services,Education,Transport,230007,Contract Hire,12-May-2014,2742740-010817,"2,058.00",HODGSONS COACH OPERATORS LTD.,
Children and Adult Services,Education,Transport,230007,Contract Hire,12-May-2014,2742740-010820,588.00,HODGSONS COACH OPERATORS LTD.,
Children and Adult Services,Education,Transport,230007,Contract Hire,12-May-2014,2742740-010821,"7,665.00",HODGSONS COACH OPERATORS LTD.,
Children and Adult Services,Education,Transport,230007,Contract Hire,12-May-2014,2742740-010822,756.00,HODGSONS COACH OPERATORS LTD.,
Children and Adult Services,Education,Transport,230007,Contract Hire,12-May-2014,2742740-010826,"3,402.00",HODGSONS COACH OPERATORS LTD.,
Children and Adult Services,Education,Transport,230007,Contract Hire,12-May-2014,2742740-010827,"1,155.00",HODGSONS COACH OPERATORS LTD.,
Neighbourhood Services,Direct Services,Premises,115125,Repairs to Grounds,12-May-2014,2742741-B33/0067053,998.73,HOWDENS JOINERY LTD.,
Neighbourhood Services,Direct Services,Premises,115125,Repairs to Grounds,12-May-2014,2742741-B33/0067054,684.46,HOWDENS JOINERY LTD.,
Neighbourhood Services,Direct Services,Premises,115125,Repairs to Grounds,12-May-2014,2742741-B33/0067058,812.32,HOWDENS JOINERY LTD.,
Neighbourhood Services,Direct Services,Premises,115125,Repairs to Grounds,12-May-2014,2742741-B33/0067105,857.39,HOWDENS JOINERY LTD.,
Neighbourhood Services,Direct Services,Premises,115125,Repairs to Grounds,12-May-2014,2742741-B33/0067106,749.46,HOWDENS JOINERY LTD.,
Neighbourhood Services,Direct Services,Premises,115125,Repairs to Grounds,12-May-2014,2742741-B33/0067107,712.93,HOWDENS JOINERY LTD.,
RED HRA,Housing Revenue Account,Supplies and Services,342055,Computers and Communications,12-May-2014,2742742-INV214051,"8,400.00",HUBSOLUTIONS LTD.,
Children and Adult Services,Head of Adults,Transport,230005,Contract Hire,12-May-2014,2742743-IR1404004,900.00,I & R EXECUTIVE TRAVEL.,
Neighbourhood Services,Technical Services,Supplies and Services,304221,Equipment and Materials,12-May-2014,2742744-000910,884.58,INDIGO PACIFIC SITE SERVICES LTD.,
Assistant Chief Executive,Partnerships & Community Engagement Div.,Transfer Payments,525030,Other,12-May-2014,2742745-VOUCHER12AB,910.00,IRESHOPEBURN VILLAGE INSTITUTE.,
Assistant Chief Executive,Partnerships & Community Engagement Div.,Transfer Payments,525030,Other,12-May-2014,2742745-VOUCHER13AB,590.00,IRESHOPEBURN VILLAGE INSTITUTE.,
Neighbourhood Services,Culture & Sport,Supplies and Services,384199,Miscellaneous Expenses,12-May-2014,2742746-JD/DCC/1192,500.00,JACK DRUM ARTS LTD.,
Neighbourhood Services,Culture & Sport,Supplies and Services,338047,Services,12-May-2014,2742748-DUR2014,"2,790.08",JERRY SADOWITZ.,
Neighbourhood Services,Technical Services,Supplies and Services,304221,Equipment and Materials,12-May-2014,2742749-08/78581,"4,313.94",JOHN DAVIDSON (PIPES) LTD.,
Children and Adult Services,Education,Transport,230008,Contract Hire,12-May-2014,2742751-62,"1,196.00",JOHNS TAXIS (CHESTER LE STREET).,
Neighbourhood Services,Direct Services,Supplies and Services,304221,Equipment and Materials,12-May-2014,2742752-NQI49807,724.50,JT DOVE LTD.,
Neighbourhood Services,Culture & Sport,Third Party Payments,430100,Rendered by Private Contractors,12-May-2014,2742757-LCPMF14873,"55,849.72",LEISURE CONNECTION LTD.,
Children and Adult Services,Commissioning inc Supporting People,Third Party Payments,470111,Purchase of Care,12-May-2014,2742758-RINVTP/00315627,"3,916.67",LEONARD CHESHIRE DISABILITY.,
Neighbourhood Services,Direct Services,Supplies and Services,304221,Equipment and Materials,12-May-2014,2742760-4962952,"4,017.19",LINDAB LTD.,
Neighbourhood Services,Direct Services,Supplies and Services,304221,Equipment and Materials,12-May-2014,2742760-4964598,"2,563.05",LINDAB LTD.,
Neighbourhood Services,Direct Services,Supplies and Services,304221,Equipment and Materials,12-May-2014,2742762-3321995,"1,081.35",LONDON GENERAL SALES LTD.,
Neighbourhood Services,Direct Services,Third Party Payments,430100,Rendered by Private Contractors,12-May-2014,2742766-INVOICE163-002,"7,324.00",MB PLANT T/A 123 FIRE.,
Neighbourhood Services,Direct Services,Third Party Payments,430100,Rendered by Private Contractors,12-May-2014,2742766-INVOICE163-003,"9,874.91",MB PLANT T/A 123 FIRE.,
Corporate Resources,Legal & Democratic Services,Supplies and Services,342051,Computers and Communications,12-May-2014,2742767-2014174,"6,870.00",MODERN MINDSET LTD.,
Children and Adult Services,Head of Adults,Transport,230005,Contract Hire,12-May-2014,2742768-359,"1,248.00",MOLLYS TAXIS.,
RED HRA,HRA Centrally Managed,Supplies and Services,384999,Miscellaneous Expenses,12-May-2014,2742771-1017054,818.84,REDACTED - PAYMENT TO INDIVIDUAL,
Children and Adult Services,Head of Adults,Transport,230005,Contract Hire,12-May-2014,2742773-201404,540.00,MR JR FORT.,
Assistant Chief Executive,Partnerships & Community Engagement Div.,Supplies and Services,384700,Miscellaneous Expenses,12-May-2014,2742776,800.00,NEIGHBOURHOOD WATCH.,
Neighbourhood Services,Direct Services,Supplies and Services,304259,Equipment and Materials,12-May-2014,2742780-062078,500.00,NEW ROW FARM NURSERIES.,
Neighbourhood Services,Direct Services,Third Party Payments,430100,Rendered by Private Contractors,12-May-2014,2742782-10022936,"4,000.00",NORSTEAD.,
Neighbourhood Services,Direct Services,Third Party Payments,430100,Rendered by Private Contractors,12-May-2014,2742782-10022937,"7,000.00",NORSTEAD.,
Children and Adult Services,Planning & Service Strategy,Supplies and Services,332047,"Printing, Stationery and Gen Off Exps",12-May-2014,2742784-91306268,"3,240.40",NORTHGATE INFORMATION SOLUTIONS UK LTD.,
Children and Adult Services,Head of Adults,Transport,230005,Contract Hire,12-May-2014,2742787-DACC01/14,560.00,PB PRIVATE HIRE.,
Neighbourhood Services,Technical Services,Supplies and Services,304221,Equipment and Materials,12-May-2014,2742790-4004,"28,188.72",PINKNEY BUILDING CONTRACTORS LTD.,
Neighbourhood Services,Direct Services,Supplies and Services,304221,Equipment and Materials,12-May-2014,2742792-198222,"1,805.99",PLUMBING TRADE SUPPLIES LTD.,
Neighbourhood Services,Direct Services,Premises,145009,Cleaning and Domestic Supplies,12-May-2014,2742794-434976,639.20,PREMIER WASTE RECYCLING LTD.,
Neighbourhood Services,Direct Services,Premises,145009,Cleaning and Domestic Supplies,12-May-2014,2742794-446466,677.56,PREMIER WASTE RECYCLING LTD.,
Neighbourhood Services,Direct Services,Premises,145009,Cleaning and Domestic Supplies,12-May-2014,2742794-446634,677.56,PREMIER WASTE RECYCLING LTD.,
Neighbourhood Services,Direct Services,Third Party Payments,430100,Rendered by Private Contractors,12-May-2014,2742799-24711,"16,457.00",RJ UTILITY SERVICES LTD.,
Neighbourhood Services,Direct Services,Third Party Payments,430100,Rendered by Private Contractors,12-May-2014,2742802-MAY00414,571.42,RW CHICKEN (SCAFFOLDING) LTD.,
Children and Adult Services,Head of Adults,Transport,230005,Contract Hire,12-May-2014,2742803-WVO26/07-31/3/13,"1,980.00",S & S TRAVEL LTD.,
Regeneration & Economic Development,Transport and Contracted Services,Third Party Payments,430106,Rendered by Private Contractors,12-May-2014,2742804-88,625.52,SB TRAVEL.,
Dedicated Schools Grant,Dedicated Schools Grant,Third Party Payments,425005,Rendered by Voluntary Organisations,12-May-2014,2742807-0000013338,"12,931.66",SHILDON TOWN CRIER.,
Neighbourhood Services,Technical Services,Stock,926900,Stock in hand-Inventory system,12-May-2014,2742808-184140,736.40,SNAPFAST.,
Neighbourhood Services,Direct Services,Third Party Payments,430100,Rendered by Private Contractors,12-May-2014,2742810-4273,"4,222.54",ST ASTIER LTD.,
Children and Adult Services,Childrens Services,Third Party Payments,425017,Rendered by Voluntary Organisations,12-May-2014,2742811-1150034,"1,982.50",ST CUTHBERTS CARE.,
Regeneration & Economic Development,Economic Development and Housing,Supplies and Services,384700,Miscellaneous Expenses,12-May-2014,2742813-RED-05-2014-023,"1,425.60",SUNDERLAND GATEWAY.,
Children and Adult Services,Childrens Services,Supplies and Services,332047,"Printing, Stationery and Gen Off Exps",12-May-2014,2742815-6647228,711.95,SUPPLIES TEAM LTD.,
Regeneration & Economic Development,Transport and Contracted Services,Supplies and Services,338099,Services,12-May-2014,2742816-150016,"13,750.00",SUSTRANS.,
Children and Adult Services,Head of Adults,Transport,230005,Contract Hire,12-May-2014,2742817-33704F,"2,020.00",T MOORE & SON.,
Children and Adult Services,Education,Supplies and Services,324500,Provisions,12-May-2014,2742818-SI-TSD-1000449,"87,791.00",TAYLOR SHAW LTD.,
Children and Adult Services,Childrens Services,Third Party Payments,425040,Rendered by Voluntary Organisations,12-May-2014,2742819-21803,"3,232.86",TEAM FOSTERING.,
Neighbourhood Services,Culture & Sport,Supplies and Services,338047,Services,12-May-2014,2742821-8560,"1,062.84",THE JOHN BODDY AGENCY LLP CLIENT A/C.,
Corporate Resources,Legal & Democratic Services,Supplies and Services,372009,Subscriptions,12-May-2014,2742822-6800157782,"17,384.61",THOMSON REUTERS.,
Neighbourhood Services,Direct Services,Supplies and Services,304221,Equipment and Materials,12-May-2014,2742823-0001423038,"10,104.14",THORLUX LIGHTING.,
Regeneration & Economic Development,Economic Development and Housing,Supplies and Services,384700,Miscellaneous Expenses,12-May-2014,2742825-RED-05-2014-060,"1,000.00",TOM WHITE OPTICAL COMPANY LTD T/A WHITE OPTICS.,
Corporate Resources,I.C.T. Services,Supplies and Services,304303,Equipment and Materials,12-May-2014,2742826-110204,729.86,TP ELECTRICAL SUPPLIES & FIXINGS LTD.,
Children and Adult Services,Education,Supplies and Services,338035,Services,12-May-2014,2742827-1-373854647,"6,022.62",TRINITY COLLEGE LONDON.,
Children and Adult Services,Education,Employees,040001,"Recruitment, Instruction and Training",12-May-2014,2742828-TARINV/15299548,652.50,TSL EDUCATION LTD.,
Assistant Chief Executive,Partnerships & Community Engagement Div.,Transfer Payments,525030,Other,12-May-2014,2742830-VOUCHER13AB,"1,500.00",UPPER TEESDALE AGRICULTURAL SUPPORT SERVICES LTD (UTASS).,
Corporate Resources,I.C.T. Services,Stock,926900,Stock in hand-Inventory system,12-May-2014,2742833-2342674,"16,150.00",VIGLEN LTD.,
Children and Adult Services,Head of Adults,Transport,230005,Contract Hire,12-May-2014,2742834-877,500.00,WAYNE`S TAXIS.,
Children and Adult Services,Head of Adults,Transport,230005,Contract Hire,12-May-2014,2742836-5042,"2,161.00",WEARDALE PRIVATE HIRE.,
Neighbourhood Services,Technical Services,Stock,926900,Stock in hand-Inventory system,12-May-2014,2742839-12310050,"1,250.96",WOLSELEY UK LTD.,
Assistant Chief Executive,Partnerships & Community Engagement Div.,Transfer Payments,525030,Other,12-May-2014,2742840-VOUCHER13AB,"1,000.00",WOLSINGHAM FOOTBALL ACADEMY.,
Corporate Resources,I.C.T. Services,Supplies and Services,304337,Equipment and Materials,12-May-2014,2742841-V366325,604.53,XMA LTD.,
RED HRA,HRA Centrally Managed,Creditors,952191,Creditor-HRA-rents-refunds,13-May-2014,2743827,"1,000.39",REDACTED - PAYMENT TO INDIVIDUAL,
Neighbourhood Services,Culture & Sport,Income,715699,Sales,13-May-2014,2743972,819.68,SOCIETY OF LONDON THEATRE.,
Neighbourhood Services,Direct Services,Third Party Payments,430103,Rendered by Private Contractors,13-May-2014,2744007,"6,384.48",TEESDALE CONSERVATION VOLUNTEERS.,
Children and Adult Services,Childrens Services,Third Party Payments,440001,Other Third Party Payments,13-May-2014,231192-949792,575.19,REDACTED - PAYMENT TO INDIVIDUAL,
Children and Adult Services,Childrens Services,Supplies and Services,364352,Grants to Voluntary Organisations,13-May-2014,2742959-949219,628.57,REDACTED - PAYMENT TO INDIVIDUAL,
Children and Adult Services,Childrens Services,Third Party Payments,440015,Other Third Party Payments,13-May-2014,2743288-949440,"1,664.01",REDACTED - PAYMENT TO INDIVIDUAL,
Children and Adult Services,Childrens Services,Third Party Payments,440015,Other Third Party Payments,13-May-2014,2743313-949397,836.64,REDACTED - PAYMENT TO INDIVIDUAL,
Children and Adult Services,Childrens Services,Third Party Payments,440015,Other Third Party Payments,13-May-2014,2743313-949398,836.64,REDACTED - PAYMENT TO INDIVIDUAL,
Children and Adult Services,Childrens Services,Third Party Payments,440016,Other Third Party Payments,13-May-2014,2743418-949791,"1,073.82",REDACTED - PAYMENT TO INDIVIDUAL,
Children and Adult Services,Childrens Services,Third Party Payments,440028,Other Third Party Payments,13-May-2014,2743429-949781,714.84,REDACTED - PAYMENT TO INDIVIDUAL,
Children and Adult Services,Head of Adults,Transport,230005,Contract Hire,13-May-2014,2743448-41416,946.00,24/7 TAXI SERVICES LTD.,
Regeneration & Economic Development,Economic Development and Housing,Cap Exp on Grants & Other Financial Assistance (REFCUS),918401,Capital grants,13-May-2014,2743453-RED-05-2014-016,"7,003.00",A OGILVIE BUILDING CONTRACTORS LTD.,
Regeneration & Economic Development,Economic Development and Housing,Cap Exp on Grants & Other Financial Assistance (REFCUS),918401,Capital grants,13-May-2014,2743453-RED-05-2014-017,"3,609.00",A OGILVIE BUILDING CONTRACTORS LTD.,
Children and Adult Services,Childrens Services,Transport,230005,Contract Hire,13-May-2014,2743456-INV30-04-14,869.00,AABAT TAXIS.,
Neighbourhood Services,Direct Services,Premises,106080,Centrally Controlled Rep and Maint,13-May-2014,2743463-14396,"36,601.05",ACROL AIR CONDITIONING CO LTD.,
Children and Adult Services,Childrens Services,Third Party Payments,425041,Rendered by Voluntary Organisations,13-May-2014,2743465-09/15,"1,194.42",ADOPTION MATTERS NORTHWEST.,
Neighbourhood Services,Technical Services,Supplies and Services,304221,Equipment and Materials,13-May-2014,2743471-19357890,648.73,AGGREGATE INDUSTRIES UK LTD.,
Neighbourhood Services,Technical Services,Supplies and Services,304221,Equipment and Materials,13-May-2014,2743471-19459857,"6,518.68",AGGREGATE INDUSTRIES UK LTD.,
Neighbourhood Services,Technical Services,Supplies and Services,304221,Equipment and Materials,13-May-2014,2743472-19298502,972.00,AGGREGATE INDUSTRIES UK LTD.,
Children and Adult Services,Childrens Services,Employees,040149,"Recruitment, Instruction and Training",13-May-2014,2743476-450,"1,000.00",ALAN GAUNT & ASSOCIATES LTD.,
Neighbourhood Services,Culture & Sport,Supplies and Services,304337,Equipment and Materials,13-May-2014,2743477-14/04/2014,"1,756.65",ALISON BLACK LTD T/A SPORTMAX.,
Neighbourhood Services,Culture & Sport,Supplies and Services,312013,"Newspapers, Books and Periodicals",13-May-2014,2743493-4270029,613.78,ASKEWS & HOLTS LIBRARY SERVICES LTD.,
Neighbourhood Services,Culture & Sport,Supplies and Services,312017,"Newspapers, Books and Periodicals",13-May-2014,2743493-4270960,658.57,ASKEWS & HOLTS LIBRARY SERVICES LTD.,
Neighbourhood Services,Culture & Sport,Supplies and Services,312017,"Newspapers, Books and Periodicals",13-May-2014,2743493-4270976,607.87,ASKEWS & HOLTS LIBRARY SERVICES LTD.,
Neighbourhood Services,Culture & Sport,Supplies and Services,312017,"Newspapers, Books and Periodicals",13-May-2014,2743493-4271028,568.52,ASKEWS & HOLTS LIBRARY SERVICES LTD.,
Neighbourhood Services,Culture & Sport,Supplies and Services,312017,"Newspapers, Books and Periodicals",13-May-2014,2743493-4271096,569.78,ASKEWS & HOLTS LIBRARY SERVICES LTD.,
Neighbourhood Services,Culture & Sport,Supplies and Services,312017,"Newspapers, Books and Periodicals",13-May-2014,2743493-4271178,604.16,ASKEWS & HOLTS LIBRARY SERVICES LTD.,
Neighbourhood Services,Culture & Sport,Supplies and Services,312017,"Newspapers, Books and Periodicals",13-May-2014,2743493-4271426,756.09,ASKEWS & HOLTS LIBRARY SERVICES LTD.,
Neighbourhood Services,Culture & Sport,Supplies and Services,312017,"Newspapers, Books and Periodicals",13-May-2014,2743493-4271551,501.55,ASKEWS & HOLTS LIBRARY SERVICES LTD.,
Neighbourhood Services,Culture & Sport,Supplies and Services,312017,"Newspapers, Books and Periodicals",13-May-2014,2743493-4271682,625.30,ASKEWS & HOLTS LIBRARY SERVICES LTD.,
Neighbourhood Services,Culture & Sport,Supplies and Services,312017,"Newspapers, Books and Periodicals",13-May-2014,2743493-4271721,626.76,ASKEWS & HOLTS LIBRARY SERVICES LTD.,
Neighbourhood Services,Culture & Sport,Supplies and Services,312017,"Newspapers, Books and Periodicals",13-May-2014,2743493-4271774,645.21,ASKEWS & HOLTS LIBRARY SERVICES LTD.,
RED HRA,Housing Revenue Account,Supplies and Services,338027,Services,13-May-2014,2743499-14/003,"1,650.00",BAILDON DEAN CONSULTING.,
Neighbourhood Services,Culture & Sport,Supplies and Services,304259,Equipment and Materials,13-May-2014,2743503-1760,"1,726.64",BANDLAND.,
Children and Adult Services,Head of Adults,Transport,230005,Contract Hire,13-May-2014,2743519-1315,800.00,BOBBY DOVE.,
Children and Adult Services,Childrens Services,Premises,120021,Energy Costs,13-May-2014,2743529-102337251,"2,072.00",BRITISH GAS TRADING LTD.,
Neighbourhood Services,Technical Services,Stock,926900,Stock in hand-Inventory system,13-May-2014,2743547-851401142,"5,232.00",CARLISLE CONSTRUCTION MATERIALS LTD.,
Neighbourhood Services,Direct Services,Supplies and Services,304221,Equipment and Materials,13-May-2014,2743548-851400814,762.50,CARLISLE CONSTRUCTION MATERIALS LTD.,
Neighbourhood Services,Culture & Sport,Supplies and Services,324001,Provisions,13-May-2014,2743549-840169912,815.03,CARLSBERG UK LTD.,
Neighbourhood Services,Culture & Sport,Supplies and Services,384199,Miscellaneous Expenses,13-May-2014,2743550-080,"1,650.00",CAROLINE CHURCHILL.,
Regeneration & Economic Development,Economic Development and Housing,Premises,106082,Centrally Controlled Rep and Maint,13-May-2014,2743552-15135,"3,798.56",CATHEDRAL LOCK & SAFE SERVICES LTD.,
Neighbourhood Services,"Environment,Health & Consumer Protection",Supplies and Services,352001,Conference Expenses,13-May-2014,2743561-INV476680,622.50,CHARTERED INSTITUTE OF ENVIRONMENTAL HEALTH.,
Children and Adult Services,Childrens Services,Supplies and Services,384199,Miscellaneous Expenses,13-May-2014,2743563-709/100,500.00,CHILDREN NORTH EAST.,
Children and Adult Services,Childrens Services,Third Party Payments,425041,Rendered by Voluntary Organisations,13-May-2014,2743570-2805011755,"17,758.00",CITY OF SUNDERLAND.,
Children and Adult Services,Childrens Services,Third Party Payments,479101,Purchase of Care,13-May-2014,2743578-3910003212,"8,253.26",CO DURHAM & DARLINGTON NHS FOUNDATION TRUST.,
Children and Adult Services,Childrens Services,Premises,145050,Cleaning and Domestic Supplies,13-May-2014,2743578-3910003663,"1,054.93",CO DURHAM & DARLINGTON NHS FOUNDATION TRUST.,
Children and Adult Services,Childrens Services,Supplies and Services,384638,Miscellaneous Expenses,13-May-2014,2743579-MCT-01,"5,000.00",MAKING CHANGES TOGETHER PARENTS STEERING GROUP.,
Neighbourhood Services,Technical Services,Third Party Payments,430100,Rendered by Private Contractors,13-May-2014,2743597-10258,"1,473.35",COUPE LINE LTD.,
Neighbourhood Services,Technical Services,Third Party Payments,430100,Rendered by Private Contractors,13-May-2014,2743597-15831,863.50,COUPE LINE LTD.,
Regeneration & Economic Development,Economic Development and Housing,Supplies and Services,384199,Miscellaneous Expenses,13-May-2014,2743602-SH1,"5,000.00",CULTURE WORKS CIC.,
Assistant Chief Executive,Partnerships & Community Engagement Div.,Transfer Payments,525030,Other,13-May-2014,2743616-VOUCHER13AB-STAN009,"5,056.00",DERWENTSIDE TRUST FOR SPORT & THE ARTS.,
Assistant Chief Executive,Partnerships & Community Engagement Div.,Transfer Payments,525030,Other,13-May-2014,2743616-VOUCHER13AB-STAN010,"15,000.00",DERWENTSIDE TRUST FOR SPORT & THE ARTS.,
Children and Adult Services,Education,Supplies and Services,384199,Miscellaneous Expenses,13-May-2014,2743618-049/14,"7,658.00",DISC LTD.,
Neighbourhood Services,Culture & Sport,Construction Work,908105,Construction work,13-May-2014,2743621-9100678014,"2,324.24",DORMA UK LTD.,
Neighbourhood Services,Direct Services,Premises,106082,Centrally Controlled Rep and Maint,13-May-2014,2743621-9888153873,"16,005.51",DORMA UK LTD.,
Neighbourhood Services,Direct Services,Supplies and Services,304998,Equipment and Materials,13-May-2014,2743628-NEI-EXP-05-2014-002,"3,000.00",DRIVING STANDARDS AGENCY.,
Assistant Chief Executive,Partnerships & Community Engagement Div.,Transfer Payments,525030,Other,13-May-2014,2743637-VOUCHER13AB-DCTY010,"1,642.92",DURHAM MARKETS CO.,
Assistant Chief Executive,Partnerships & Community Engagement Div.,Transfer Payments,525030,Other,13-May-2014,2743637-VOUCHER14AB-DCTY001,"4,937.08",DURHAM MARKETS CO.,
Children and Adult Services,Childrens Services,Supplies and Services,384899,Miscellaneous Expenses,13-May-2014,2743639-20011916,"3,067.00",DURHAM POLICE & CRIME COMMISSIONER.,
Dedicated Schools Grant,Dedicated Schools Grant,Supplies and Services,384199,Miscellaneous Expenses,13-May-2014,2743642-3/3/14-30/5/14,"1,046.50",EARLY LEARNERS PRIVATE DAY NURSERY.,
RED HRA,HRA Centrally Managed,Premises,150005,Apportioned Exps of Operational Blds,13-May-2014,2743646-SINV/00003351,"1,012.93",EAST DURHAM HOMES.,
RED HRA,HRA Centrally Managed,Premises,150005,Apportioned Exps of Operational Blds,13-May-2014,2743646-SINV/00003352,"8,898.00",EAST DURHAM HOMES.,
Neighbourhood Services,Culture & Sport,Supplies and Services,338047,Services,13-May-2014,2743662-60153709,572.53,ENTERTAINMENT ONE UK LTD.,
Assistant Chief Executive,Partnerships & Community Engagement Div.,Cap Exp on Grants & Other Financial Assistance (REFCUS),918004,Contributions to other bodies,13-May-2014,2743666,"2,101.00",ESH PARISH COUNCIL.,
Neighbourhood Services,Culture & Sport,Supplies and Services,304252,Equipment and Materials,13-May-2014,2743667-2903,710.00,ESSEX UPHOLSTERY LTD.,
Children and Adult Services,Childrens Services,Third Party Payments,425040,Rendered by Voluntary Organisations,13-May-2014,2743676-0000050832,"3,232.86",FIVE RIVERS CHILD CARE LTD.,
Neighbourhood Services,Direct Services,Premises,120037,Energy Costs,13-May-2014,2743677-2015000084,"1,149.50",FOREVER FUELS LTD,
Children and Adult Services,Childrens Services,Third Party Payments,425040,Rendered by Voluntary Organisations,13-May-2014,2743679-3064,"3,128.40",FOSTER CARE SOLUTIONS LTD.,
Children and Adult Services,Childrens Services,Third Party Payments,425040,Rendered by Voluntary Organisations,13-May-2014,2743679-3119,"3,232.68",FOSTER CARE SOLUTIONS LTD.,
Children and Adult Services,Childrens Services,Supplies and Services,384199,Miscellaneous Expenses,13-May-2014,2743680-5000,"1,000.00",FOUNDATION HOUSING.,
Neighbourhood Services,Technical Services,Stock,926900,Stock in hand-Inventory system,13-May-2014,2743683-6/386554,601.80,FRED WILLIAMSON & SONS LTD.,
Children and Adult Services,Childrens Services,Third Party Payments,425040,Rendered by Voluntary Organisations,13-May-2014,2743687-26135,"3,232.99",FUTURES FOR CHILDREN LTD.,
Neighbourhood Services,Technical Services,Supplies and Services,304357,Equipment and Materials,13-May-2014,2743690-DCC040514,"13,082.16",GAP GROUP LTD.,
Neighbourhood Services,Culture & Sport,Supplies and Services,338099,Services,13-May-2014,2743691-16246,"1,600.00",GARNETTS LTD (COACHES).,
RED HRA,HRA Capital,Construction Work,908105,Construction work,13-May-2014,2743694-4DUR003,"6,540.98",GENTOO CONSTRUCTION LTD.,
Assistant Chief Executive,Partnerships & Community Engagement Div.,Cap Exp on Grants & Other Financial Assistance (REFCUS),918004,Contributions to other bodies,13-May-2014,2743701,"12,000.00",GREAT AYCLIFFE TOWN COUNCIL.,
Neighbourhood Services,Culture & Sport,Supplies and Services,384700,Miscellaneous Expenses,13-May-2014,2743703-EXP-04-2014-055,"1,084.00",GREENFIELD TENNIS CLUB.,
Children and Adult Services,Childrens Services,Third Party Payments,440035,Other Third Party Payments,13-May-2014,2743712-CAS-04-2014-155,633.38,REDACTED - PAYMENT TO INDIVIDUAL,
Neighbourhood Services,Culture & Sport,Supplies and Services,338099,Services,13-May-2014,2743715-HBBATH30,700.00,HILARITY BITES COMEDY CLUB.,
Corporate Resources,I.C.T. Services,Supplies and Services,332029,"Printing, Stationery and Gen Off Exps",13-May-2014,2743716-68976,535.00,HILLPRINT MEDIA LTD.,
Corporate Resources,I.C.T. Services,Supplies and Services,332029,"Printing, Stationery and Gen Off Exps",13-May-2014,2743716-68985,"1,296.00",HILLPRINT MEDIA LTD.,
Children and Adult Services,Childrens Services,Supplies and Services,304259,Equipment and Materials,13-May-2014,2743726-B33/0063040,612.08,HOWDENS JOINERY LTD.,
Neighbourhood Services,Culture & Sport,Premises,106082,Centrally Controlled Rep and Maint,13-May-2014,2743729-R13/109V5,"9,474.10",HYGIENIC CLEANING COMPANY (UK) LTD.,
Children and Adult Services,Head of Adults,Transport,230005,Contract Hire,13-May-2014,2743730-IR1404003,638.00,I & R EXECUTIVE TRAVEL.,
Neighbourhood Services,"Environment,Health & Consumer Protection",Income,720330,Fees and Charges,13-May-2014,2743738-17778,916.25,INTELLIGENT DATA SYSTEMS (UK) LTD.,
Neighbourhood Services,Direct Services,Third Party Payments,430100,Rendered by Private Contractors,13-May-2014,2743744-2399,"3,440.00",JAMES INGLEFORD SCAFFOLDING LTD.,
Neighbourhood Services,Projects and Business services,Supplies and Services,304357,Equipment and Materials,13-May-2014,2743751-1288579,576.60,JOHN NIXON LTD.,
Neighbourhood Services,Technical Services,Supplies and Services,304358,Equipment and Materials,13-May-2014,2743753-15979,"1,046.50",JOHN R BUTTERFIELD LTD.,
Children and Adult Services,Head of Adults,Transport,230005,Contract Hire,13-May-2014,2743767-KW243,500.00,KWIK CABS.,
Children and Adult Services,Childrens Services,Premises,120021,Energy Costs,13-May-2014,2743775-SI-002056,"1,832.00",LEISUREWORKS.,
Neighbourhood Services,Culture & Sport,Supplies and Services,384540,Miscellaneous Expenses,13-May-2014,2743775-SI-002252,"2,000.00",LEISUREWORKS.,
Neighbourhood Services,Direct Services,Third Party Payments,430100,Rendered by Private Contractors,13-May-2014,2743783-1817,847.00,LMC ELECTRICAL SERVICES T/A LMC ELECTRICAL & STAIRLIFT SERVICES LTD.,
Neighbourhood Services,Direct Services,Third Party Payments,430100,Rendered by Private Contractors,13-May-2014,2743783-1838,"1,169.00",LMC ELECTRICAL SERVICES T/A LMC ELECTRICAL & STAIRLIFT SERVICES LTD.,
Neighbourhood Services,Direct Services,Supplies and Services,304221,Equipment and Materials,13-May-2014,2743787-3305994,649.60,LONDON GENERAL SALES LTD.,
Neighbourhood Services,Direct Services,Supplies and Services,304221,Equipment and Materials,13-May-2014,2743787-3305995,"1,000.00",LONDON GENERAL SALES LTD.,
Children and Adult Services,Head of Adults,Transport,230005,Contract Hire,13-May-2014,2743790-STIRK13,"1,282.00",MA BODDY.,
Neighbourhood Services,Direct Services,Supplies and Services,304221,Equipment and Materials,13-May-2014,2743791-827/032999,618.71,MAGNET LTD.,
Corporate Resources,Centrally Administered Costs,Supplies and Services,338013,Services,13-May-2014,2743803-946814,"33,318.00",MAZARS LLP.,
Children and Adult Services,Head of Adults,Transport,230005,Contract Hire,13-May-2014,2743813-352-30/04/2014,"1,155.00",MOLLYS TAXIS.,
Children and Adult Services,Head of Adults,Transport,230005,Contract Hire,13-May-2014,2743813-360,858.00,MOLLYS TAXIS.,
Children and Adult Services,Head of Adults,Transport,230005,Contract Hire,13-May-2014,2743816-1-164,"2,200.00",MR D KEMP T/A ACE EXECUTIVE.,
Children and Adult Services,Head of Adults,Transport,230005,Contract Hire,13-May-2014,2743819-050,"1,196.00",MR GN ROBBINS T/A GNR MINIBUS HIRE.,
Children and Adult Services,Head of Adults,Third Party Payments,472101,Purchase of Care,13-May-2014,2743840-12389,"5,288.25",NEURO PARTNERS LTD.,
Regeneration & Economic Development,Strategy Programmes and Performance,Employees,040149,"Recruitment, Instruction and Training",13-May-2014,2743841-50058644,"1,800.00",NEW COLLEGE DURHAM.,
Regeneration & Economic Development,Strategy Programmes and Performance,Employees,040149,"Recruitment, Instruction and Training",13-May-2014,2743841-50058647,"1,800.00",NEW COLLEGE DURHAM.,
Children and Adult Services,Education,Supplies and Services,384199,Miscellaneous Expenses,13-May-2014,2743841-SLINV/00000752,"46,594.00",NEW COLLEGE DURHAM.,
Children and Adult Services,Public Health,Supplies and Services,384540,Miscellaneous Expenses,13-May-2014,2743845-517684,"2,079.00",NEWSQUEST (YORKSHIRE & NORTH EAST) LTD.,
Children and Adult Services,Public Health,Supplies and Services,384540,Miscellaneous Expenses,13-May-2014,2743845-5177809,"2,079.00",NEWSQUEST (YORKSHIRE & NORTH EAST) LTD.,
Children and Adult Services,Head of Adults,Transport,230005,Contract Hire,13-May-2014,2743847-3015,748.00,NIGHTINGALE COACHES.,
Children and Adult Services,Head of Adults,Transport,230005,Contract Hire,13-May-2014,2743847-3016,"2,346.00",NIGHTINGALE COACHES.,
Children and Adult Services,Head of Adults,Transport,230005,Contract Hire,13-May-2014,2743847-3017,"1,360.00",NIGHTINGALE COACHES.,
Children and Adult Services,Head of Adults,Transport,230005,Contract Hire,13-May-2014,2743847-3019,780.00,NIGHTINGALE COACHES.,
Children and Adult Services,Head of Adults,Transport,230005,Contract Hire,13-May-2014,2743847-3020,630.00,NIGHTINGALE COACHES.,
Children and Adult Services,Head of Adults,Transport,230005,Contract Hire,13-May-2014,2743847-3023,774.48,NIGHTINGALE COACHES.,
Regeneration & Economic Development,Strategy Programmes and Performance,Supplies and Services,384899,Miscellaneous Expenses,13-May-2014,2743855-FEDF007/1,"3,196.00",NORTHERN PRINT SOLUTIONS.,
Neighbourhood Services,Technical Services,Stock,926900,Stock in hand-Inventory system,13-May-2014,2743858-1168602,872.48,NORTHERN TOOLS & ACCESSORIES.,
Corporate Resources,Corporate Finance,Supplies and Services,384199,Miscellaneous Expenses,13-May-2014,2743871-1434984,"30,180.83",ORACLE CORPORATION UK LTD.,
Children and Adult Services,Education,Supplies and Services,312009,"Newspapers, Books and Periodicals",13-May-2014,2743886-1510906,716.63,PETERS LTD.,
Corporate Resources,I.C.T. Services,Supplies and Services,342051,Computers and Communications,13-May-2014,2743889-OP/I725344,"382,741.68",PHOENIX SOFTWARE LTD.,
Children and Adult Services,Childrens Services,Third Party Payments,440062,Other Third Party Payments,13-May-2014,2743892-12669,649.60,PHYSIOTHERAPY FOR YOU.,
Neighbourhood Services,Direct Services,Supplies and Services,304221,Equipment and Materials,13-May-2014,2743897-4120165412,"1,011.83",PLUMBING TRADE SUPPLIES LTD.,
Regeneration & Economic Development,Economic Development and Housing,Supplies and Services,384199,Miscellaneous Expenses,13-May-2014,2743901-279110,580.00,PRECISE MEDIA MONITORING LTD.,
Neighbourhood Services,Direct Services,Supplies and Services,384194,Miscellaneous Expenses,13-May-2014,2743903-447772,"16,090.39",PREMIER WASTE RECYCLING LTD.,
Children and Adult Services,Head of Adults,Transport,230005,Contract Hire,13-May-2014,2743920-13132,"2,298.00",RAPID MINIBUSES.,
Children and Adult Services,Head of Adults,Transport,230005,Contract Hire,13-May-2014,2743920-13133,"1,700.00",RAPID MINIBUSES.,
Corporate Resources,I.C.T. Services,Supplies and Services,304040,Equipment and Materials,13-May-2014,2743931-DE3501050,"16,970.00",RM EDUCATION PLC.,
Children and Adult Services,Head of Adults,Transport,230005,Contract Hire,13-May-2014,2743932-199,"1,440.00",ROAD RUNNERS (NE) LTD.,
Neighbourhood Services,Direct Services,Construction Work,908105,Construction work,13-May-2014,2743936-4100416927,"2,940.00",ROCKS R US.,
Corporate Resources,I.C.T. Services,Supplies and Services,340001,Postages,13-May-2014,2743940-9047184663,"8,861.22",ROYAL MAIL GROUP PLC.,
Neighbourhood Services,Direct Services,Supplies and Services,304259,Equipment and Materials,13-May-2014,2743959-CD970038364,"2,647.72",SHERRIFF AMENITY.,
Neighbourhood Services,Direct Services,Supplies and Services,304259,Equipment and Materials,13-May-2014,2743959-CD970042134,"1,745.00",SHERRIFF AMENITY.,
Neighbourhood Services,Direct Services,Supplies and Services,304221,Equipment and Materials,13-May-2014,2743959-CD970042135,"3,826.80",SHERRIFF AMENITY.,
Children and Adult Services,Education,Third Party Payments,440999,Other Third Party Payments,13-May-2014,2743969-DCCASB004,577.20,SMARTT.,
Corporate Resources,I.C.T. Services,Supplies and Services,342051,Computers and Communications,13-May-2014,2743974-INV00917235,"17,095.00",SOFTCAT LTD.,
Dedicated Schools Grant,Dedicated Schools Grant,Third Party Payments,440080,Other Third Party Payments,13-May-2014,2743976-SLINV/00001079,"7,488.47",SOUTH TYNESIDE COLLEGE.,
Corporate Resources,I.C.T. Services,Stock,926900,Stock in hand-Inventory system,13-May-2014,2743978-OP/L832672,"10,595.40",SPECIALIST COMPUTER CENTRES PLC.,
Neighbourhood Services,Direct Services,Supplies and Services,338099,Services,13-May-2014,2743986-SA070-13,880.00,STRAY AID LTD.,
Neighbourhood Services,Technical Services,Stock,926900,Stock in hand-Inventory system,13-May-2014,2743992-1160548,546.27,T CROSSLING & CO LTD.,
Neighbourhood Services,Direct Services,Supplies and Services,304221,Equipment and Materials,13-May-2014,2743992-1161690,534.00,T CROSSLING & CO LTD.,
Neighbourhood Services,Direct Services,Supplies and Services,304221,Equipment and Materials,13-May-2014,2743992-1162943,762.50,T CROSSLING & CO LTD.,
Dedicated Schools Grant,Dedicated Schools Grant,Third Party Payments,425005,Rendered by Voluntary Organisations,13-May-2014,2743994-76,"21,856.65",TALBOT HOUSE SCHOOL.,
Dedicated Schools Grant,Dedicated Schools Grant,Third Party Payments,425005,Rendered by Voluntary Organisations,13-May-2014,2743994-88,"2,325.24",TALBOT HOUSE SCHOOL.,
Assistant Chief Executive,Partnerships & Community Engagement Div.,Supplies and Services,384086,Miscellaneous Expenses,13-May-2014,2743997,"5,000.00",TANTOBIE ASSOC FOR SPORT & THE COMMUNITY.,
Neighbourhood Services,Culture & Sport,Supplies and Services,324117,Provisions,13-May-2014,2743999-9410805589,696.85,TCHIBO COFFEE INTERNATIONAL LTD.,
Children and Adult Services,Childrens Services,Third Party Payments,425040,Rendered by Voluntary Organisations,13-May-2014,2744004-21793,"3,128.57",TEAM FOSTERING.,
Children and Adult Services,Childrens Services,Third Party Payments,425040,Rendered by Voluntary Organisations,13-May-2014,2744004-22002,"3,128.57",TEAM FOSTERING.,
Children and Adult Services,Childrens Services,Third Party Payments,425040,Rendered by Voluntary Organisations,13-May-2014,2744004-22070,"3,232.86",TEAM FOSTERING.,
Children and Adult Services,Childrens Services,Third Party Payments,425040,Rendered by Voluntary Organisations,13-May-2014,2744004-22079,"3,128.57",TEAM FOSTERING.,
Assistant Chief Executive,Partnerships & Community Engagement Div.,Supplies and Services,384071,Miscellaneous Expenses,13-May-2014,2744011-14,539.50,THE CAKE HOUSE.,
Children and Adult Services,Childrens Services,Supplies and Services,384302,Miscellaneous Expenses,13-May-2014,2744015-151STI-0067,553.80,THE ORIGINAL BOWLING CO LTD.,
Regeneration & Economic Development,Economic Development and Housing,Supplies and Services,384199,Miscellaneous Expenses,13-May-2014,2744047-1818,"1,500.00",VISIT COUNTY DURHAM.,
Neighbourhood Services,Culture & Sport,Supplies and Services,338099,Services,13-May-2014,2744047-ISM,811.70,VISIT COUNTY DURHAM.,
Regeneration & Economic Development,Economic Development and Housing,Supplies and Services,384199,Miscellaneous Expenses,13-May-2014,2744047-LOSI29024,"7,500.00",VISIT COUNTY DURHAM.,
Regeneration & Economic Development,Economic Development and Housing,Supplies and Services,304221,Equipment and Materials,13-May-2014,2744062-07566,"1,125.33",WM SMITH & SONS (BARNARD CASTLE) LTD.,
RED HRA,HRA Centrally Managed,Creditors,952191,Creditor-HRA-rents-refunds,14-May-2014,231300,500.00,REDACTED - PAYMENT TO INDIVIDUAL,
RED HRA,HRA Centrally Managed,Creditors,952191,Creditor-HRA-rents-refunds,14-May-2014,231316,663.27,REDACTED - PAYMENT TO INDIVIDUAL,
RED HRA,HRA Centrally Managed,Creditors,952191,Creditor-HRA-rents-refunds,14-May-2014,231317,"1,012.97",REDACTED - PAYMENT TO INDIVIDUAL,
RED HRA,HRA Centrally Managed,Creditors,952191,Creditor-HRA-rents-refunds,14-May-2014,231322,513.28,REDACTED - PAYMENT TO INDIVIDUAL,
RED HRA,HRA Centrally Managed,Creditors,952191,Creditor-HRA-rents-refunds,14-May-2014,231343,561.58,REDACTED - PAYMENT TO INDIVIDUAL,
Regeneration & Economic Development,Transport and Contracted Services,Supplies and Services,344033,Telephones,14-May-2014,2744094,"3,560.03",BRITISH TELECOMMUNICATIONS PLC.,
Neighbourhood Services,Culture & Sport,Supplies and Services,338047,Services,14-May-2014,231207-1862,"4,571.35",ALAN FIELD ASSOCIATES.,
Children and Adult Services,Childrens Services,Supplies and Services,384534,Miscellaneous Expenses,14-May-2014,231211-CAS-05-2014-025,500.00,REDACTED - PAYMENT TO INDIVIDUAL,
Children and Adult Services,Childrens Services,Supplies and Services,308011,Furniture,14-May-2014,231216-37521,969.99,BARGAIN BUYS RETAIL LTD.,
Assistant Chief Executive,Partnerships & Community Engagement Div.,Supplies and Services,384085,Miscellaneous Expenses,14-May-2014,231217-BELR02-14HARB03-14,860.00,BARNARD CASTLE DISTRICT GUIDES.,
Children and Adult Services,Childrens Services,Supplies and Services,384302,Miscellaneous Expenses,14-May-2014,231225-ANGLING,"2,114.00",CAST2CATCH.,
Neighbourhood Services,Technical Services,Supplies and Services,304358,Equipment and Materials,14-May-2014,231226-1606,"12,154.05",CG SIMPSON & SON.,
Neighbourhood Services,Culture & Sport,Supplies and Services,324117,Provisions,14-May-2014,231245-266454,772.00,DURHAM UNIVERSITY CONFERENCE & TOURISM LTD.,
Children and Adult Services,Public Health,Third Party Payments,460802,Contract Payments,14-May-2014,231263-A83061/UCD,"1,219.08",GAINFORD SURGERY.,
Neighbourhood Services,Technical Services,Stock,926900,Stock in hand-Inventory system,14-May-2014,231265-0249/0191179,546.80,GRAHAM.,
RED HRA,Housing Revenue Account,Employees,040149,"Recruitment, Instruction and Training",14-May-2014,231268-OP/I1O9355,734.00,HARTLEPOOL COLLEGE OF FURTHER EDUCATION.,
Children and Adult Services,Childrens Services,Supplies and Services,338045,Services,14-May-2014,231269-K2206,"1,715.00",HEWITTS SOLICITORS.,
Dedicated Schools Grant,Dedicated Schools Grant,Transfer Payments,510032,School Children,14-May-2014,231272-CAS-05-2014-007,"1,200.00",HOUSE OF EDEN CHILDRENS NURSERY.,
Children and Adult Services,Public Health,Third Party Payments,460803,Contract Payments,14-May-2014,231290-FXL31/JUNE/13,"1,306.66",LLOYDS PHARMACY.,
RED HRA,HRA Centrally Managed,Supplies and Services,384999,Miscellaneous Expenses,14-May-2014,231307-1062057,685.55,REDACTED - PAYMENT TO INDIVIDUAL,
RED HRA,HRA Centrally Managed,Supplies and Services,384999,Miscellaneous Expenses,14-May-2014,231311-1023062,818.46,REDACTED - PAYMENT TO INDIVIDUAL,
RED HRA,HRA Centrally Managed,Supplies and Services,384999,Miscellaneous Expenses,14-May-2014,231318-1033747007,717.51,REDACTED - PAYMENT TO INDIVIDUAL,
RED HRA,HRA Centrally Managed,Supplies and Services,384999,Miscellaneous Expenses,14-May-2014,231336-1045081,555.42,REDACTED - PAYMENT TO INDIVIDUAL,
RED HRA,HRA Centrally Managed,Supplies and Services,384999,Miscellaneous Expenses,14-May-2014,231348-1030892,979.63,REDACTED - PAYMENT TO INDIVIDUAL,
RED HRA,HRA Centrally Managed,Supplies and Services,384999,Miscellaneous Expenses,14-May-2014,231353-1033572,534.69,REDACTED - PAYMENT TO INDIVIDUAL,
RED HRA,HRA Centrally Managed,Supplies and Services,384999,Miscellaneous Expenses,14-May-2014,231356-1027865,812.79,REDACTED - PAYMENT TO INDIVIDUAL,
RED HRA,HRA Centrally Managed,Supplies and Services,384999,Miscellaneous Expenses,14-May-2014,231357-1029740,504.55,REDACTED - PAYMENT TO INDIVIDUAL,
RED HRA,HRA Centrally Managed,Supplies and Services,384999,Miscellaneous Expenses,14-May-2014,231361-1033052,850.76,REDACTED - PAYMENT TO INDIVIDUAL,
RED HRA,HRA Centrally Managed,Supplies and Services,384999,Miscellaneous Expenses,14-May-2014,231364-1035256,763.81,REDACTED - PAYMENT TO INDIVIDUAL,
RED HRA,HRA Centrally Managed,Supplies and Services,384999,Miscellaneous Expenses,14-May-2014,231366-1032865,500.00,REDACTED - PAYMENT TO INDIVIDUAL,
RED HRA,HRA Centrally Managed,Supplies and Services,384999,Miscellaneous Expenses,14-May-2014,231368-1029577,781.25,REDACTED - PAYMENT TO INDIVIDUAL,
Assistant Chief Executive,Partnerships & Community Engagement Div.,Supplies and Services,338094,Services,14-May-2014,231387-HALLANDSTUDIO,500.00,SEDGEFIELD COMMUNITY COLLEGE ASSOCIATION (SCCA).,
Children and Adult Services,Childrens Services,Supplies and Services,304259,Equipment and Materials,14-May-2014,231399-4704,505.90,VJB LAUNDERETTE SERVICES.,
Neighbourhood Services,Technical Services,Third Party Payments,410037,Rendered by Other Local Authorities,14-May-2014,2744074-001322,546.00,A PARRY MOBILE WELDING & FABRICATION.,
Neighbourhood Services,Culture & Sport,Supplies and Services,312017,"Newspapers, Books and Periodicals",14-May-2014,2744084-4271067,580.04,ASKEWS & HOLTS LIBRARY SERVICES LTD.,
Neighbourhood Services,Culture & Sport,Supplies and Services,312017,"Newspapers, Books and Periodicals",14-May-2014,2744084-4271068,521.33,ASKEWS & HOLTS LIBRARY SERVICES LTD.,
Neighbourhood Services,Culture & Sport,Supplies and Services,312017,"Newspapers, Books and Periodicals",14-May-2014,2744084-4271427,659.13,ASKEWS & HOLTS LIBRARY SERVICES LTD.,
Neighbourhood Services,Culture & Sport,Supplies and Services,312017,"Newspapers, Books and Periodicals",14-May-2014,2744084-4271462,556.38,ASKEWS & HOLTS LIBRARY SERVICES LTD.,
Neighbourhood Services,Direct Services,Transport,210057,Repair and Maintenance of Vehicles,14-May-2014,2744087-45046018,892.63,BELL TRUCK SALES LTD.,
Children and Adult Services,Commissioning inc Supporting People,Third Party Payments,442002,Supporting People,14-May-2014,2744089-1957125,"13,539.44",BID SERVICES WITH DEAF PEOPLE.,
Neighbourhood Services,Direct Services,Transport,230005,Contract Hire,14-May-2014,2744096-NEW8108979,"1,059.80",BURNT TREE GROUP LTD.,
Neighbourhood Services,Direct Services,Transport,230005,Contract Hire,14-May-2014,2744096-NEW8109004,840.00,BURNT TREE GROUP LTD.,
Neighbourhood Services,Direct Services,Transport,230005,Contract Hire,14-May-2014,2744096-NEW8109019,539.84,BURNT TREE GROUP LTD.,
Neighbourhood Services,Direct Services,Supplies and Services,304259,Equipment and Materials,14-May-2014,2744101-449080,938.00,CARRS BILLINGTON AGRICULTURE.,
Neighbourhood Services,Direct Services,Stock,926004,Stock,14-May-2014,2744102-282025,506.77,CARRS BILLINGTON AGRICULTURE.,
Neighbourhood Services,Direct Services,Third Party Payments,430100,Rendered by Private Contractors,14-May-2014,2744103-046,"19,613.64",CEILINGS DIRECT LTD.,
Neighbourhood Services,Direct Services,Third Party Payments,430100,Rendered by Private Contractors,14-May-2014,2744103-047,"3,080.53",CEILINGS DIRECT LTD.,
Children and Adult Services,Childrens Services,Employees,080025,Agency Staff,14-May-2014,2744104-2282452,"1,025.00",CELSIAN.,
Children and Adult Services,Childrens Services,Employees,080025,Agency Staff,14-May-2014,2744104-2282453,"2,275.00",CELSIAN.,
Children and Adult Services,Childrens Services,Employees,080025,Agency Staff,14-May-2014,2744104-2284867,767.00,CELSIAN.,
Children and Adult Services,Childrens Services,Employees,080025,Agency Staff,14-May-2014,2744104-2285121,"2,190.50",CELSIAN.,
Neighbourhood Services,Technical Services,Stock,926900,Stock in hand-Inventory system,14-May-2014,2744107-65792,978.67,CHANTER BIOMED UK LTD.,
Neighbourhood Services,"Environment,Health & Consumer Protection",Third Party Payments,410037,Rendered by Other Local Authorities,14-May-2014,2744109-EXP-04-2014-058,"2,356.00",REDACTED - PAYMENT TO INDIVIDUAL,
Neighbourhood Services,"Environment,Health & Consumer Protection",Third Party Payments,410037,Rendered by Other Local Authorities,14-May-2014,2744109-EXP-05-2014-057,"1,544.00",REDACTED - PAYMENT TO INDIVIDUAL,
Children and Adult Services,Commissioning inc Supporting People,Third Party Payments,479111,Purchase of Care,14-May-2014,2744110-CACD004,"15,000.00",CITIZENS ADVICE COUNTY DURHAM.,
Neighbourhood Services,Technical Services,Third Party Payments,430100,Rendered by Private Contractors,14-May-2014,2744120-10227,"2,016.20",COUPE LINE LTD.,
Neighbourhood Services,Technical Services,Third Party Payments,430100,Rendered by Private Contractors,14-May-2014,2744120-10228,"1,830.72",COUPE LINE LTD.,
Neighbourhood Services,Technical Services,Third Party Payments,430100,Rendered by Private Contractors,14-May-2014,2744120-15826,969.48,COUPE LINE LTD.,
Children and Adult Services,Commissioning inc Supporting People,Third Party Payments,442002,Supporting People,14-May-2014,2744123-1957124,"19,868.48",CREATIVE SUPPORT LTD.,
Regeneration & Economic Development,Economic Development and Housing,Construction Work,908105,Construction work,14-May-2014,2744124-030314-180314,"1,035.15",CROFT HOUSE RESIDENTIAL HOME.,
Neighbourhood Services,Culture & Sport,Supplies and Services,384199,Miscellaneous Expenses,14-May-2014,2744127-DLI-003,"1,250.00",DAVID SCOTT.,
Neighbourhood Services,Direct Services,Transport,210057,Repair and Maintenance of Vehicles,14-May-2014,2744129-DE10784410,"1,795.80",DENNIS EAGLE LTD.,
Children and Adult Services,Commissioning inc Supporting People,Third Party Payments,442002,Supporting People,14-May-2014,2744130-1957117,"5,668.48",DISC LTD.,
Children and Adult Services,Commissioning inc Supporting People,Third Party Payments,442002,Supporting People,14-May-2014,2744130-1957150,"27,885.68",DISC LTD.,
Neighbourhood Services,Direct Services,Supplies and Services,304221,Equipment and Materials,14-May-2014,2744131-517618,857.13,DONWOOD (DOUBLE GLAZING) LTD.,
Regeneration & Economic Development,Transport and Contracted Services,Third Party Payments,440999,Other Third Party Payments,14-May-2014,2744133-5595-16,"1,666.67",DTA CONSULTING ENGINEERS.,
Neighbourhood Services,Technical Services,Employees,080025,Agency Staff,14-May-2014,2744134-4198,"5,522.50",DUNELM GEOTECHNICAL & ENVIRONMENTAL LTD.,
Children and Adult Services,Commissioning inc Supporting People,Third Party Payments,441001,Supporting People,14-May-2014,2744135-1957151,"20,819.76",DURHAM ACTION ON SINGLE HOUSING.,
Children and Adult Services,Commissioning inc Supporting People,Third Party Payments,443001,Supporting People,14-May-2014,2744135-1957152,"3,689.80",DURHAM ACTION ON SINGLE HOUSING.,
Neighbourhood Services,Direct Services,Third Party Payments,430100,Rendered by Private Contractors,14-May-2014,2744137-12272,788.50,EASI GEARS LTD.,
Children and Adult Services,Commissioning inc Supporting People,Third Party Payments,441001,Supporting People,14-May-2014,2744138-1957159,"5,483.40",EAST DURHAM COMMUNITY INITIATIVES LTD.,
Regeneration & Economic Development,Strategy Programmes and Performance,Supplies and Services,384899,Miscellaneous Expenses,14-May-2014,2744140-FEDF011/1,"4,000.00",ELAN EATERIES LTD.,
Regeneration & Economic Development,"Spatial Policy, Planning, Assets & Environment",Premises,120009,Energy Costs,14-May-2014,2744142-H10049E812,859.61,EON UK PLC.,
Children and Adult Services,Commissioning inc Supporting People,Third Party Payments,442002,Supporting People,14-May-2014,2744143-1957123,"9,851.44",FABRICK HOUSING GROUP LTD.,
Children and Adult Services,Commissioning inc Supporting People,Third Party Payments,441001,Supporting People,14-May-2014,2744143-1957161,"26,571.84",FABRICK HOUSING GROUP LTD.,
Children and Adult Services,Childrens Services,Third Party Payments,425040,Rendered by Voluntary Organisations,14-May-2014,2744149-630114736,"4,079.43",FOSTERING PEOPLE LTD.,
Children and Adult Services,Commissioning inc Supporting People,Third Party Payments,442002,Supporting People,14-May-2014,2744150-1956972,"30,071.20",FOUNDATION HOUSING.,
Children and Adult Services,Education,Supplies and Services,312011,"Newspapers, Books and Periodicals",14-May-2014,2744154-12410396,739.73,GARDNERS BOOKS LTD.,
Children and Adult Services,Education,Transport,230007,Contract Hire,14-May-2014,2744155-16227,"11,325.45",GARNETTS LTD (COACHES).,
Neighbourhood Services,Technical Services,Supplies and Services,304358,Equipment and Materials,14-May-2014,2744158-9616,690.00,GEORGE VARDY HAULAGE.,
Regeneration & Economic Development,Transport and Contracted Services,Third Party Payments,430106,Rendered by Private Contractors,14-May-2014,2744160-41617,643.50,GO GATESHEAD LTD.,
Children and Adult Services,Commissioning inc Supporting People,Third Party Payments,442002,Supporting People,14-May-2014,2744166-1957160,"5,995.44",HANOVER HOUSING ASSOCIATION.,
Children and Adult Services,Commissioning inc Supporting People,Third Party Payments,441001,Supporting People,14-May-2014,2744167-1957095,"33,938.68",HARBOUR SUPPORT SERVICES.,
Neighbourhood Services,Direct Services,Supplies and Services,304221,Equipment and Materials,14-May-2014,2744169-680222,638.84,HARVEST ENERGY LTD.,
Neighbourhood Services,Direct Services,Stock,926004,Stock,14-May-2014,2744169-680816,"1,876.18",HARVEST ENERGY LTD.,
Neighbourhood Services,Direct Services,Stock,926004,Stock,14-May-2014,2744169-680817,"18,233.08",HARVEST ENERGY LTD.,
Neighbourhood Services,Direct Services,Stock,926004,Stock,14-May-2014,2744169-680818,"13,094.74",HARVEST ENERGY LTD.,
Neighbourhood Services,Direct Services,Third Party Payments,430101,Rendered by Private Contractors,14-May-2014,2744171-5067056100,645.79,HI Q TYRESERVICES.,
Neighbourhood Services,Direct Services,Third Party Payments,430101,Rendered by Private Contractors,14-May-2014,2744171-5067064593,826.04,HI Q TYRESERVICES.,
Neighbourhood Services,Direct Services,Third Party Payments,430101,Rendered by Private Contractors,14-May-2014,2744171-5067064594,826.04,HI Q TYRESERVICES.,
Neighbourhood Services,Direct Services,Third Party Payments,430101,Rendered by Private Contractors,14-May-2014,2744171-5067067421,693.90,HI Q TYRESERVICES.,
Neighbourhood Services,Direct Services,Third Party Payments,430101,Rendered by Private Contractors,14-May-2014,2744171-5067068841,619.53,HI Q TYRESERVICES.,
Children and Adult Services,Commissioning inc Supporting People,Third Party Payments,443001,Supporting People,14-May-2014,2744174-1957096,"1,051.36",HOME HOUSING ASSOCIATION LTD.,
Neighbourhood Services,Technical Services,Employees,040149,"Recruitment, Instruction and Training",14-May-2014,2744178-1094,600.00,HSF TRAINING LTD.,
Neighbourhood Services,Culture & Sport,Supplies and Services,304252,Equipment and Materials,14-May-2014,2744184-1867,510.00,INGRAMSOUNDS.,
Neighbourhood Services,Technical Services,Supplies and Services,304357,Equipment and Materials,14-May-2014,2744188-5304633,974.85,JA GILSON (AGRICULTURAL CONTRACTORS) LTD.,
RED HRA,HRA Capital,Construction Work,908105,Construction work,14-May-2014,2744189-15390,"2,023.07",JDP CONTRACTING SERVICES LTD.,
Neighbourhood Services,Direct Services,Third Party Payments,430100,Rendered by Private Contractors,14-May-2014,2744189-15518,"6,740.06",JDP CONTRACTING SERVICES LTD.,
Neighbourhood Services,Direct Services,Third Party Payments,430100,Rendered by Private Contractors,14-May-2014,2744189-15751,"5,392.37",JDP CONTRACTING SERVICES LTD.,
Neighbourhood Services,Technical Services,Supplies and Services,304221,Equipment and Materials,14-May-2014,2744194-00080585,"1,768.00",JOBLING PURSER LTD.,
Regeneration & Economic Development,Transport and Contracted Services,Third Party Payments,430106,Rendered by Private Contractors,14-May-2014,2744195-DCC4/14,"6,453.01",JOHN JAMES BRUNSKILL.,
Neighbourhood Services,Technical Services,Supplies and Services,304358,Equipment and Materials,14-May-2014,2744196-15903,578.00,JOHN R BUTTERFIELD LTD.,
Neighbourhood Services,Technical Services,Supplies and Services,304358,Equipment and Materials,14-May-2014,2744196-15910,685.70,JOHN R BUTTERFIELD LTD.,
Neighbourhood Services,Technical Services,Supplies and Services,304358,Equipment and Materials,14-May-2014,2744196-15938,975.00,JOHN R BUTTERFIELD LTD.,
Neighbourhood Services,Technical Services,Supplies and Services,304358,Equipment and Materials,14-May-2014,2744196-15939,797.00,JOHN R BUTTERFIELD LTD.,
Neighbourhood Services,Technical Services,Supplies and Services,304358,Equipment and Materials,14-May-2014,2744196-15941,747.50,JOHN R BUTTERFIELD LTD.,
Neighbourhood Services,Technical Services,Supplies and Services,304358,Equipment and Materials,14-May-2014,2744196-15942,741.00,JOHN R BUTTERFIELD LTD.,
Neighbourhood Services,Technical Services,Supplies and Services,304358,Equipment and Materials,14-May-2014,2744196-15946,688.20,JOHN R BUTTERFIELD LTD.,
Neighbourhood Services,Technical Services,Supplies and Services,304358,Equipment and Materials,14-May-2014,2744196-15949,713.40,JOHN R BUTTERFIELD LTD.,
Neighbourhood Services,Technical Services,Supplies and Services,304358,Equipment and Materials,14-May-2014,2744196-15951,777.40,JOHN R BUTTERFIELD LTD.,
Neighbourhood Services,Technical Services,Supplies and Services,304358,Equipment and Materials,14-May-2014,2744196-15952,632.20,JOHN R BUTTERFIELD LTD.,
Neighbourhood Services,Technical Services,Supplies and Services,304358,Equipment and Materials,14-May-2014,2744196-15955,793.50,JOHN R BUTTERFIELD LTD.,
Neighbourhood Services,Technical Services,Supplies and Services,304358,Equipment and Materials,14-May-2014,2744196-15974,975.00,JOHN R BUTTERFIELD LTD.,
Neighbourhood Services,Technical Services,Supplies and Services,304358,Equipment and Materials,14-May-2014,2744196-15975,"1,432.00",JOHN R BUTTERFIELD LTD.,
Neighbourhood Services,Technical Services,Supplies and Services,304358,Equipment and Materials,14-May-2014,2744196-15976,935.00,JOHN R BUTTERFIELD LTD.,
Neighbourhood Services,Technical Services,Supplies and Services,304358,Equipment and Materials,14-May-2014,2744196-15977,850.00,JOHN R BUTTERFIELD LTD.,
Neighbourhood Services,Technical Services,Supplies and Services,304358,Equipment and Materials,14-May-2014,2744196-15980,651.75,JOHN R BUTTERFIELD LTD.,
Neighbourhood Services,Technical Services,Supplies and Services,304358,Equipment and Materials,14-May-2014,2744196-15981,"1,117.80",JOHN R BUTTERFIELD LTD.,
Neighbourhood Services,Technical Services,Supplies and Services,304358,Equipment and Materials,14-May-2014,2744196-15982,914.20,JOHN R BUTTERFIELD LTD.,
Neighbourhood Services,Technical Services,Supplies and Services,304358,Equipment and Materials,14-May-2014,2744196-15983,718.20,JOHN R BUTTERFIELD LTD.,
Neighbourhood Services,Technical Services,Supplies and Services,304358,Equipment and Materials,14-May-2014,2744196-15984,573.00,JOHN R BUTTERFIELD LTD.,
Neighbourhood Services,Technical Services,Supplies and Services,304358,Equipment and Materials,14-May-2014,2744196-15985,914.80,JOHN R BUTTERFIELD LTD.,
Neighbourhood Services,Technical Services,Supplies and Services,304358,Equipment and Materials,14-May-2014,2744196-16006,800.00,JOHN R BUTTERFIELD LTD.,
Neighbourhood Services,Technical Services,Supplies and Services,304358,Equipment and Materials,14-May-2014,2744196-16008,737.50,JOHN R BUTTERFIELD LTD.,
Neighbourhood Services,Technical Services,Supplies and Services,304358,Equipment and Materials,14-May-2014,2744196-16009,678.00,JOHN R BUTTERFIELD LTD.,
Neighbourhood Services,Technical Services,Supplies and Services,304358,Equipment and Materials,14-May-2014,2744196-16012,580.80,JOHN R BUTTERFIELD LTD.,
Neighbourhood Services,Technical Services,Supplies and Services,304358,Equipment and Materials,14-May-2014,2744196-16013,600.90,JOHN R BUTTERFIELD LTD.,
Neighbourhood Services,Technical Services,Supplies and Services,304358,Equipment and Materials,14-May-2014,2744196-16016,603.00,JOHN R BUTTERFIELD LTD.,
Neighbourhood Services,Technical Services,Supplies and Services,304358,Equipment and Materials,14-May-2014,2744196-16017,558.00,JOHN R BUTTERFIELD LTD.,
Neighbourhood Services,Technical Services,Supplies and Services,304358,Equipment and Materials,14-May-2014,2744196-16018,667.00,JOHN R BUTTERFIELD LTD.,
Neighbourhood Services,Technical Services,Supplies and Services,304358,Equipment and Materials,14-May-2014,2744196-16033,775.00,JOHN R BUTTERFIELD LTD.,
Neighbourhood Services,Technical Services,Supplies and Services,304358,Equipment and Materials,14-May-2014,2744196-16035,747.50,JOHN R BUTTERFIELD LTD.,
Neighbourhood Services,Technical Services,Supplies and Services,304358,Equipment and Materials,14-May-2014,2744196-16036,665.50,JOHN R BUTTERFIELD LTD.,
Neighbourhood Services,Technical Services,Supplies and Services,304358,Equipment and Materials,14-May-2014,2744196-16037,830.25,JOHN R BUTTERFIELD LTD.,
Neighbourhood Services,Technical Services,Supplies and Services,304358,Equipment and Materials,14-May-2014,2744196-16040,584.40,JOHN R BUTTERFIELD LTD.,
Neighbourhood Services,Technical Services,Supplies and Services,304358,Equipment and Materials,14-May-2014,2744196-16042,654.75,JOHN R BUTTERFIELD LTD.,
Neighbourhood Services,Technical Services,Supplies and Services,304358,Equipment and Materials,14-May-2014,2744196-16065,577.50,JOHN R BUTTERFIELD LTD.,
Neighbourhood Services,Technical Services,Supplies and Services,304358,Equipment and Materials,14-May-2014,2744196-16078,814.75,JOHN R BUTTERFIELD LTD.,
